Workbook

Sheet Feedstock Info (hidden)
A1: COLUMN A FEEDSTOCK NAMES FROM DROPDOWN (checked and referenced feedstock hidden) green=checked reference | B1: DO NOT CHANGE ORDER
D2: Moisture content (as received) | E2: Moisture content (application) | F2: Ash content | G2: Volatile matter | H2: Fixed carbon | I2: LHV (referring to column D) | J2: HHV (energy potential) | K2: Carbon | L2: Hydrogen | M2: Nitrogen | N2: Oxygen | O2: Others | P2: Heat capacity | Q2: Solids content [w%] | R2: Cellulose | S2: Hemicellulose | T2: Lignin | U2: Lipids | V2: Protein | W2: Total ash and biochemical | X2: biogas yield Nm3/t fresh matter | Y2: %CH4 | Z2: Recommended process | AA2: Process options | AB2: Potential products - these can be upgraded further | AJ2: List names
B3: Feedstock | C3: Residue type | D3: wt% | E3: wt% | F3: wt% | G3: wt% | H3: wt% | I3: MJ/kg | J3: MJ/kg | K3: wt.% | L3: wt.% | M3: wt.% | N3: wt.% | O3: wt.% | P3: kJ/(kg K) | R3: wt% dry | S3: wt% dry | T3: wt% dry | U3: wt% dry | V3: wt% dry | W3: wt% dry | AD3: Reference
A4: =B4 -> Avocado waste | B4: Avocado waste | C4: mixup from avacado oil | D4: 82.75 | E4: 82.75 | F4: 2.2 | G4: 95 | H4: 16 | I4: 16.7 | J4: 18 | K4: 48 | L4: 10 | M4: 1 | N4: 39 | O4: =100-SUM(K4:N4) -> 2 | P4: 3 | Q4: =100-E4 -> 17.25 | R4: =SUM(K4:O4) -> 100 | X4: 60 | Z4: biological, hydrothermal | AA4: anaerobic digestion, fermentation, hydrothermal | AC4: Sánchez, F., Araus, K., Domínguez, M.P., et al. Thermochemical Transformation of Residual Avocado Seeds: Torrefaction and Carbonization. Waste and Biomass Valorization 2017; 8:2495-510. 10.1007/s12649-016-9699-6 | AD4: Costagli, G., Betti, M. Avocado oil extraction processes: method for cold-pressed high-quality edible oil production versus traditional production. Journal of Agricultural Engineering 2015; 46:115-22. 10.4081/jae.2015.467 | AJ4: Avocado waste
A5: =B5 -> Cashew nutshell | B5: Cashew nutshell | C5: processing residue | D5: 10 | E5: 10 | F5: 2 | G5: 73 | H5: 20 | I5: 19 | J5: 21 | K5: 49 | L5: 5 | M5: 1 | N5: 45 | O5: 0 | P5: 3.333333 | Q5: =100-E5 -> 90 | Z5: thermochemical | AA5: combustion, gasification, pyrolysis | AB5: Heat/power, syn-gas, char, bio-liquid, | AC5: Uamusse, M. et al., Gasification of Cashew Nut Shell Using Gasifier Stovein Mozambique , Journal of Power and Energy Engineering > Vol.2 No.7, July 2014, DOI: 10.4236/jpee.2014.27002 | AJ5: Nutshells
A6: =B6 -> Cassava fibre | B6: Cassava fibre | C6: processing residue | D6: 7.23 | E6: 67 | F6: 1 | G6: 89 | H6: 10 | I6: 5 | J6: 16 | K6: 45 | L6: 6.2 | M6: 0.04 | N6: 47.42 | O6: 1.34 | P6: 3.333333 | Q6: 33 | R6: 28.5 | S6: 31.3 | T6: 22.2 | W6: 6 | Z6: biological, hydrothermal | AA6: anaerobic digestion, fermentation, hydrothermal | AB6: Bio-liquid, bio-gas, ethanol | AC6: Zanata, E.R. et al. 2016, Kinetic studies of thermal decomposition of sugarcane bagasse and cassava bagasse, J. therm. Anal. Calorim. | AD6: TNO. (2021). Phyllis2—Database for the physico-chemical composition of (treated) lignocellulosic biomass, micro- and macroalgae, various feedstocks for biogas production and biochar. https://phyllis.nl/ | AE6: Ekop, I.E. et al. (219); Utilization of Cassava Wastes for Value Added Products: An Overview; International Journal of Scientific Engineering and Science, Volume 3, Issue 1, 31-39; https://zenodo.org/record/2556466#.XwMvuEb0nIU | AF6: https://www.tistr.or.th/anbor/list.php?alldata=&key=&id=10
A7: =B7&" "&C7 -> Cassava stalks | B7: Cassava | C7: stalks | D7: 70 | E7: 40 | F7: 3 | G7: 75 | H7: 22.8 | I7: 10 | J7: 18 | K7: 47 | L7: 6 | M7: 0.8 | N7: 45 | O7: =100-SUM(K7:N7) -> 1.2 | P7: 3.333333 | Q7: 60 | R7: 30 | S7: 16 | T7: 20 | U7: 0.5 | V7: 1 | W7: 2 | Z7: thermochemical | AA7: combustion, gasification, pyrolysis | AB7: Heat/power, syn-gas, char, bio-liquid, | AC7: García-Velásquez, C. A., Daza, L., & Cardona, C. A. (2020). Economic and Energy Valorization of Cassava Stalks as Feedstock for Ethanol and Electricity Production. BioEnergy Research. doi:10.1007/s12155-020-10098-8 | AD7: TNO. (2021). Phyllis2—Database for the physico-chemical composition of (treated) lignocellulosic biomass, micro- and macroalgae, various feedstocks for biogas production and biochar. https://phyllis.nl/ | AE7: Zhu, W., Lestander, T. A., Örberg, H., Wei, M., Hedman, B., Ren, J., Xie, G., & Xiong, S. (2015). Cassava stems: A new resource to increase food and fuel production. GCB Bioenergy, 7(1), 72–83. https://doi.org/10.1111/gcbb.12112 | AJ7: Cassava stalks
A8: Cattle manure | B8: Cattle manure | D8: 75 | E8: 75 | F8: 13 | G8: 80 | H8: 18 | I8: n/a | J8: 20 | K8: 45 | L8: 6 | M8: 1 | N8: 41 | O8: 7 | P8: 3.333333 | Q8: 25 | X8: 90 | Y8: 55 | Z8: biological, hydrothermal | AA8: anaerobic digestion, fermentation, hydrothermal | AC8: Bayerisches Staatsministerium für Ernährung. (2020). Biogasausbeuten verschiedener Substrate. https://www.lfl.bayern.de/iba/energie/049711/?sel_list=51%2Cl&anker0=substratanker#substratanker | AD8: Achinas, S., Euverink, G.J.W. Theoretical analysis of biogas potential prediction from agricultural waste. Resource-Efficient Technologies 2016; 2:143-7. https://doi.org/10.1016/j.reffit.2016.08.001 | AE8: TNO. (2021). Phyllis2—Database for the physico-chemical composition of (treated) lignocellulosic biomass, micro- and macroalgae, various feedstocks for biogas production and biochar. https://phyllis.nl/ | AJ8: Cattle manure
A9: Chicken manure | B9: Chicken manure | D9: 85 | E9: 85 | F9: 20 | G9: 75 | H9: 10 | I9: 10 | J9: 18 | K9: 45 | L9: 6 | M9: 6 | N9: 40 | O9: 3 | P9: 3.333333 | Q9: 15 | X9: 55.4 | Y9: 58 | Z9: biological, hydrothermal | AA9: anaerobic digestion, fermentation, hydrothermal | AC9: Bayerisches Staatsministerium für Ernährung. (2020). Biogasausbeuten verschiedener Substrate. https://www.lfl.bayern.de/iba/energie/049711/?sel_list=51%2Cl&anker0=substratanker#substratanker | AD9: TNO. (2021). Phyllis2—Database for the physico-chemical composition of (treated) lignocellulosic biomass, micro- and macroalgae, various feedstocks for biogas production and biochar. https://phyllis.nl/ | AE9: Achinas, S., Euverink, G.J.W. Theoretical analysis of biogas potential prediction from agricultural waste. Resource-Efficient Technologies 2016; 2:143-7. https://doi.org/10.1016/j.reffit.2016.08.001 | AJ9: Chicken manure
A10: Wood logs | B10: Hardwood | C10: harvesting residue | D10: 25 | E10: 25 | F10: 2 | G10: 82 | H10: 16 | I10: 13.6 | J10: 19 | K10: 50 | L10: 6 | M10: 1 | N10: 40 | O10: 3 | P10: 3.333333 | Q10: 75 | Z10: thermochemical | AA10: combustion, gasification, pyrolysis | AB10: Heat/power, syn-gas, char, bio-liquid, | AC10: Forest Research. (2021). Moisture content. Forest Research. https://www.forestresearch.gov.uk/tools-and-resources/biomass-energy-resources/reference-biomass/facts-figures/moisture-content/ | AD10: TNO. (2021). Phyllis2—Database for the physico-chemical composition of (treated) lignocellulosic biomass, micro- and macroalgae, various feedstocks for biogas production and biochar. https://phyllis.nl/ | AJ10: Wood logs
A11: =B11 -> Coconut husk | B11: Coconut husk | C11: processing residue | D11: 15 | E11: 15 | F11: 2 | G11: 67.4 | H11: 25.2 | I11: 16 | J11: 20 | K11: 50 | L11: 6 | M11: 0.1 | N11: 40 | O11: 3.9 | P11: 3.333333 | Q11: 85 | R11: 25 | S11: 24.5 | T11: 35 | Z11: thermochemical | AA11: combustion, gasification, pyrolysis | AB11: Heat/power, syn-gas, char, bio-liquid, | AC11: TNO. (2021). Phyllis2—Database for the physico-chemical composition of (treated) lignocellulosic biomass, micro- and macroalgae, various feedstocks for biogas production and biochar. https://phyllis.nl/ | AF11: Bolivar-Telleria, M., et al. (2018). Second-Generation Bioethanol from Coconut Husk. BioMed Research International, 2018, 4916497. doi:10.1155/2018/4916497 | AG11: Tsamba, A. J., et al. (2006). "Pyrolysis characteristics and global kinetics of coconut and cashew nut shells." Fuel Processing Technology 87(6): 523-530. | AJ11: Coconut husk
A12: =B12 -> Coffee husk | B12: Coffee husk | C12: processing residue | D12: 10 | E12: 10 | F12: 2.5 | G12: 83.2 | H12: 14.3 | I12: 17 | J12: 19 | K12: 49.4 | L12: 6.1 | M12: 0.81 | N12: 41.2 | O12: 2.49 | P12: 3.333333 | Q12: 90 | Z12: thermochemical | AA12: combustion, gasification, pyrolysis | AB12: Heat/power, syn-gas, char, bio-liquid, | AC12: TNO. (2021). Phyllis2—Database for the physico-chemical composition of (treated) lignocellulosic biomass, micro- and macroalgae, various feedstocks for biogas production and biochar. https://phyllis.nl/ | AD12: TNO. (2021). Phyllis2—Database for the physico-chemical composition of (treated) lignocellulosic biomass, micro- and macroalgae, various feedstocks for biogas production and biochar. https://phyllis.nl/
A13: =B13 -> Cotton stalks | B13: Cotton stalks | C13: harvesting residue | D13: 17 | E13: 17 | F13: 7 | G13: 75 | H13: 25 | I13: 13 | J13: 18 | K13: 49 | L13: 6 | M13: 1.5 | N13: 42 | O13: 1.5 | P13: 3.333333 | Q13: 83 | R13: 67 | T13: 25 | Z13: thermochemical | AA13: combustion, gasification, pyrolysis | AB13: Heat/power, syn-gas, char, bio-liquid, | AC13: TNO. (2021). Phyllis2—Database for the physico-chemical composition of (treated) lignocellulosic biomass, micro- and macroalgae, various feedstocks for biogas production and biochar. https://phyllis.nl/ | AD13: Gemtos, T.A., Tsiricoglou, T. Harvesting of cotton residue for energy production. Biomass and Bioenergy 1999; 16:51-9. https://doi.org/10.1016/S0961-9534(98)00065-8 | AJ13: Cotton straw
A14: Dairy slurry | B14: Dairy slurry | D14: 90 | E14: 90 | G14: 85 | H14: 20 | I14: n/a | J14: 18 | K14: 49 | L14: 6 | M14: 3 | N14: 41 | O14: 1 | P14: 3.333333 | Q14: 10 | R14: =Q14*G14/100 -> 8.5 | X14: 20.2 | Z14: biological, hydrothermal | AA14: anaerobic digestion, fermentation, hydrothermal | AC14: Bayerisches Staatsministerium für Ernährung. (2020). Biogasausbeuten verschiedener Substrate. https://www.lfl.bayern.de/iba/energie/049711/?sel_list=51%2Cl&anker0=substratanker#substratanker | AE14: TNO. (2021). Phyllis2—Database for the physico-chemical composition of (treated) lignocellulosic biomass, micro- and macroalgae, various feedstocks for biogas production and biochar. https://phyllis.nl/ | AJ14: Cow slurry
A15: Fruit waste | B15: Fruit | C15: processing residue | D15: 90 | E15: 90 | F15: 5 | G15: 85 | H15: 15 | I15: n/a | J15: 18 | K15: 48 | L15: 6 | M15: 1 | N15: 45 | O15: 0 | P15: 3.333333 | Q15: 10 | R15: 15 | S15: 15 | T15: 5 | V15: 6.2 | W15: 4 | Z15: biological, hydrothermal | AA15: anaerobic digestion, fermentation, hydrothermal | AB15: Bio-liquid, bio-gas, ethanol | AC15: Bayerisches Staatsministerium für Ernährung. (2020). Biogasausbeuten verschiedener Substrate. https://www.lfl.bayern.de/iba/energie/049711/?sel_list=51%2Cl&anker0=substratanker#substratanker | AD15: Adeniyi, A. G., Otoikhian, K. S., Ighalo, J. O., & Alhassan, I. (2019). Pyrolysis of Different Fruit Peel Waste Via a Thermodynamic Model. Ournal of Engineering Research and Development, 2(2), 16–24. http://ajerd.abuad.edu.ng/wp-content/uploads/2019/12/AJERD0202_03.pdf | AE15: Ouadi, M., Bashir, M. A., Speranza, L. G., Jahangiri, H., & Hornung, A. (2019). Food and Market Waste–A Pathway to Sustainable Fuels and Waste Valorization. Energy & Fuels, 33(10), 9843–9850. https://doi.org/10.1021/acs.energyfuels.9b01650 | AF15: TNO. (2021). Phyllis2—Database for the physico-chemical composition of (treated) lignocellulosic biomass, micro- and macroalgae, various feedstocks for biogas production and biochar. https://phyllis.nl/ | AG15: Bayerisches Staatsministerium für Ernährung. (2020). Biogasausbeuten verschiedener Substrate. https://www.lfl.bayern.de/iba/energie/049711/?sel_list=51%2Cl&anker0=substratanker#substratanker | AJ15: Fruit waste
A16: =B16 -> Groundnut shells | B16: Groundnut shells | C16: processing residue | D16: 10 | E16: 10 | F16: 4 | G16: 75 | H16: 20 | I16: 17 | J16: 21 | K16: 47 | L16: 6 | M16: 4 | N16: 41 | O16: 2 | P16: 3.333333 | Q16: 90 | Z16: thermochemical | AA16: combustion, gasification, pyrolysis | AB16: Heat/power, syn-gas, char, bio-liquid, | AC16: TNO. (2021). Phyllis2—Database for the physico-chemical composition of (treated) lignocellulosic biomass, micro- and macroalgae, various feedstocks for biogas production and biochar. https://phyllis.nl/ | AJ16: Groundnut shells
A17: =B17 -> Macadamia shells | B17: Macadamia shells | C17: processing residue | D17: 10 | E17: 10 | F17: 1 | G17: 75 | H17: 23 | I17: 19 | J17: 21 | K17: 55 | L17: 6 | M17: 1 | N17: 38 | O17: 0 | P17: 3.333333 | Q17: 90 | R17: 26.9 | S17: 17.8 | T17: 40.1 | Z17: thermochemical | AA17: combustion, gasification, pyrolysis | AB17: Heat/power, syn-gas, char, bio-liquid, | AC17: TNO. (2021). Phyllis2—Database for the physico-chemical composition of (treated) lignocellulosic biomass, micro- and macroalgae, various feedstocks for biogas production and biochar. https://phyllis.nl/ | AD17: T. P. Xavier et al., (2016) A Study of Pyrolysis of Macadamia Nut Shell: Parametric Sensitivity Analysis of the IPR Model, Brazilian Journal of Chemical Engineering, Vol. 33, No. 01, pp. 115 - 122, January - March, 2016 dx.doi.org/10.1590/0104-6632.20160331s00003629 | AJ17: Macadamia shells
A18: Maize processing residue | B18: Maize | C18: processing residue | D18: 70 | E18: 70 | F18: 7.68 | G18: 73.56 | H18: 18.56 | I18: 8 | J18: 16 | K18: 45.81 | L18: 5.6 | M18: 0.94 | N18: 39.89 | O18: 7.76 | P18: 3.333333 | Q18: 30 | Z18: biological, hydrothermal | AA18: anaerobic digestion, fermentation, hydrothermal | AB18: Bio-liquid, bio-gas, ethanol | AD18: Tippayawong, N., et al. (2020). "Characterization of hydrochar from hydrothermal carbonization of maize residues." Energy Reports 6: 114-118.
A19: Maize cobs&stalks | B19: Maize cobs | C19: Harvesting residue | D19: 10 | E19: 10 | F19: 3 | G19: 80 | H19: 18 | I19: 16 | J19: 18 | K19: 47 | L19: 6 | M19: 1 | N19: 45 | O19: 1 | P19: 3.333333 | Q19: 90 | R19: 45 | S19: 30 | T19: 7.4 | Z19: thermochemical | AA19: combustion, gasification, pyrolysis | AB19: Heat/power, syn-gas, char, bio-liquid, | AC19: TNO. (2021). Phyllis2—Database for the physico-chemical composition of (treated) lignocellulosic biomass, micro- and macroalgae, various feedstocks for biogas production and biochar. https://phyllis.nl/ | AJ19: Maize stalks & cobs
A20: Mango Processing residue | B20: Mango | C20: Processing residue | D20: 60 | E20: 60 | F20: 3 | G20: 75 | H20: 26 | I20: n/a | J20: 19 | K20: 45 | L20: 7 | M20: 1 | N20: 47 | O20: 0 | P20: 3.333333 | Q20: 40 | R20: 25 | S20: 15 | T20: 19 | U20: 26.5 | Z20: biological, hydrothermal | AA20: anaerobic digestion, fermentation, hydrothermal | AB20: Bio-liquid, bio-gas, ethanol | AC20: TNO. (2021). Phyllis2—Database for the physico-chemical composition of (treated) lignocellulosic biomass, micro- and macroalgae, various feedstocks for biogas production and biochar. https://phyllis.nl/ | AJ20: Mango pulp
A21: Oil Palm residue mix | B21: Oil Palm | C21: residue mix | D21: 25 | E21: 25 | F21: 4 | G21: 77 | H21: 23.13 | I21: 15 | J21: 18 | K21: 48.85 | L21: 6.83 | M21: 0.35 | N21: 38.5 | O21: 5.47 | P21: 3.333333 | Q21: 75 | R21: 30 | S21: 26 | T21: 35 | Z21: thermochemical | AA21: combustion, gasification, pyrolysis | AB21: Heat/power, syn-gas, char, bio-liquid, | AC21: Elbersen, W. Valorization of palm oil (mill) residues. Identifying and solving the challenges. 2013; 38 p., URL: https://english.rvo.nl/sites/default/files/2013/12/Report%20palm%20oil%20byproducts.pdf | AD21: TNO. (2021). Phyllis2—Database for the physico-chemical composition of (treated) lignocellulosic biomass, micro- and macroalgae, various feedstocks for biogas production and biochar. https://phyllis.nl/ | AE21: Abdullah, N., & Sulaiman, F. (2013). The Properties of the Washed Empty Fruit Bunches of Oil Palm. Journal of Physical Science, 24(2), 117–137. https://jps.usm.my/wp-content/uploads/2014/10/24-2-8.pdf | AJ21: Oil Palm residue mix
A22: Oil Palm Empty Fruit Bunch | B22: Oil Palm | C22: Empty Fruit Bunch | D22: 60 | E22: 60 | F22: 5 | G22: 71 | H22: 21.26 | I22: 6.4 | J22: 17.5 | K22: 47.98 | L22: 5.26 | M22: 1.17 | N22: 36.61 | O22: 8.98 | P22: 3.333333 | Q22: 40 | R22: 38 | S22: 35 | T22: 22 | Z22: biological, hydrothermal | AA22: anaerobic digestion, fermentation, hydrothermal | AB22: Bio-liquid, bio-gas, ethanol | AC22: Elbersen, W. Valorization of palm oil (mill) residues. Identifying and solving the challenges. 2013; 38 p., URL: https://english.rvo.nl/sites/default/files/2013/12/Report%20palm%20oil%20byproducts.pdf | AD22: TNO. (2021). Phyllis2—Database for the physico-chemical composition of (treated) lignocellulosic biomass, micro- and macroalgae, various feedstocks for biogas production and biochar. https://phyllis.nl/ | AE22: Wilson, L., Yang, W., Blasiak, W., John, G. R., & Mhilu, C. F. (2011). Thermal characterization of tropical biomass feedstocks. Energy Conversion and Management, 52(1), 191–198. https://doi.org/10.1016/j.enconman.2010.06.058 | AJ22: Oil Palm Empty fruit bunch
A23: Oil Palm Effluent POME | B23: Oil Palm Effluent | C23: POME | D23: 90 | E23: 90 | F23: 4.75 | G23: 85 | H23: 17.52 | I23: n/a | J23: 17 | K23: 40 | L23: 8.5 | M23: 1.1 | N23: 50.06 | O23: 0.34 | P23: 3.333333 | Q23: 10 | X23: 34 | Z23: biological, hydrothermal | AA23: anaerobic digestion, fermentation, hydrothermal | AC23: Elbersen, W. Valorization of palm oil (mill) residues. Identifying and solving the challenges. 2013; 38 p., URL: https://english.rvo.nl/sites/default/files/2013/12/Report%20palm%20oil%20byproducts.pdf | AD23: Hassan, S., Kee, L. S., & Al-Kayiem, H. H. (2013). EXPERIMENTAL STUDY OF PALM OIL MILL EFFLUENT AND OIL PALM FROND WASTE MIXTURE AS AN ALTERNATIVE BIOMASS FUEL. Journal of Engineering Science and Technology, 8(6), 703–712. http://jestec.taylors.edu.my/Vol%208%20Issue%206%20December%2013/Volume%20(8)%20Issue%20(6)%20703-%20712.pdf | AE23: Wilson, L., Yang, W., Blasiak, W., John, G. R., & Mhilu, C. F. (2011). Thermal characterization of tropical biomass feedstocks. Energy Conversion and Management, 52(1), 191–198. https://doi.org/10.1016/j.enconman.2010.06.058 | AJ23: Oil Palm Effluent POME
A24: Oil Palm Fruit Fibre | B24: Oil Palm Fruit Fibre | D24: 30 | E24: 20 | F24: 5 | G24: 73 | H24: 18.8 | I24: 15 | J24: 20 | K24: 47.48 | L24: 6.01 | M24: 1.4 | N24: 36.41 | O24: 8.7 | Q24: 80 | R24: 34.5 | S24: 31.8 | T24: 25.7 | AC24: Elbersen, W. Valorization of palm oil (mill) residues. Identifying and solving the challenges. 2013; 38 p., URL: https://english.rvo.nl/sites/default/files/2013/12/Report%20palm%20oil%20byproducts.pdf | AD24: Yusoff, S. (2006). Renewable energy from palm oil – innovation on effective utilization of waste. Journal of Cleaner Production, 14(1), 87–93. https://doi.org/10.1016/j.jclepro.2004.07.005 | AE24: Wilson, L., Yang, W., Blasiak, W., John, G. R., & Mhilu, C. F. (2011). Thermal characterization of tropical biomass feedstocks. Energy Conversion and Management, 52(1), 191–198. https://doi.org/10.1016/j.enconman.2010.06.058 | AJ24: Oil Palm Fruit Fibre
A25: Oil Palm Kernel Shells | B25: Oil Palm Kernel Shells | D25: 10 | E25: 10 | F25: 3 | G25: 70 | H25: 25 | I25: 18 | J25: 21 | K25: 49 | L25: 6 | M25: 2 | N25: 43 | O25: 0 | Q25: 90 | R25: 20.8 | S25: 22.7 | T25: 50.7 | AC25: Elbersen, W. Valorization of palm oil (mill) residues. Identifying and solving the challenges. 2013; 38 p., URL: https://english.rvo.nl/sites/default/files/2013/12/Report%20palm%20oil%20byproducts.pdf | AD25: Yusoff, S. (2006). Renewable energy from palm oil – innovation on effective utilization of waste. Journal of Cleaner Production, 14(1), 87–93. https://doi.org/10.1016/j.jclepro.2004.07.005 | AE25: Ahmad, R., Hamidin, N., Ali, U. F. M., & Abidin, C. Z. A. (2014). Characterization of Bio-Oil From Palm Kernel Shell Pyrolysis. JOURNAL OF MECHANICAL ENGINEERING AND SCIENCES, 7, 1134–1140. https://doi.org/10.15282/jmes.7.2014.12.0110 | AF25: Wilson, L., Yang, W., Blasiak, W., John, G. R., & Mhilu, C. F. (2011). Thermal characterization of tropical biomass feedstocks. Energy Conversion and Management, 52(1), 191–198. https://doi.org/10.1016/j.enconman.2010.06.058 | AG25: TNO. (2021). Phyllis2—Database for the physico-chemical composition of (treated) lignocellulosic biomass, micro- and macroalgae, various feedstocks for biogas production and biochar. https://phyllis.nl/ | AJ25: Oil Palm Fruit Kernel
A26: Pig manure | B26: Pig manure | D26: 77.5 | E26: 77.5 | F26: 12 | G26: 83 | H26: 24 | I26: n/a | J26: 21 | K26: 49 | L26: 6.5 | M26: 3 | N26: 40 | O26: 1.5 | P26: 3.333333 | Q26: 22.5 | X26: 74.3 | Y26: 60 | Z26: biological, hydrothermal | AA26: anaerobic digestion, fermentation, hydrothermal | AC26: Bayerisches Staatsministerium für Ernährung. (2020). Biogasausbeuten verschiedener Substrate. https://www.lfl.bayern.de/iba/energie/049711/?sel_list=51%2Cl&anker0=substratanker#substratanker | AD26: Cantrell, K.B., Martin II, J.H. Stochastic state-space temperature regulation of biochar production. Part II: Application to manure processing via pyrolysis. 2012; 92:490-5. https://doi.org/10.1002/jsfa.4617 | AE26: TNO. (2021). Phyllis2—Database for the physico-chemical composition of (treated) lignocellulosic biomass, micro- and macroalgae, various feedstocks for biogas production and biochar. https://phyllis.nl/ | AF26: Achinas, S., Euverink, G.J.W. Theoretical analysis of biogas potential prediction from agricultural waste. Resource-Efficient Technologies 2016; 2:143-7. https://doi.org/10.1016/j.reffit.2016.08.001 | AJ26: Pig manure
A27: Pig slurry | B27: Pig slurry | D27: 94 | E27: 94 | F27: 20 | G27: 85 | H27: 23 | I27: n/a | J27: 20 | K27: 46 | L27: =L14 -> 6 | M27: 7 | N27: 41 | O27: 0 | P27: 3.333333 | Q27: 6 | X27: 20.4 | Y27: 60 | Z27: biological, hydrothermal | AA27: anaerobic digestion, fermentation, hydrothermal | AC27: Bayerisches Staatsministerium für Ernährung. (2020). Biogasausbeuten verschiedener Substrate. https://www.lfl.bayern.de/iba/energie/049711/?sel_list=51%2Cl&anker0=substratanker#substratanker | AD27: Sommer, S.G., Hjorth, M., Leahy, J.J., et al. Pig slurry characteristics, nutrient balance and biogas production as affected by separation and acidification. The Journal of Agricultural Science 2015; 153:177-91. 10.1017/S0021859614000367 | AJ27: Pig slurry
A28: Pineapple waste Processing residue | B28: Pineapple waste | C28: Processing residue | D28: 90 | E28: 90 | F28: 4 | G28: 83 | H28: 18 | I28: n/a | J28: 18 | K28: 49 | L28: 6.03 | M28: 1 | N28: 42 | O28: =100-SUM(K28:N28) -> 1.97 | P28: 3.5 | Q28: 10 | X28: 50 | Z28: biological, hydrothermal | AA28: anaerobic digestion, fermentation, hydrothermal | AB28: Bio-liquid, bio-gas, ethanol | AC28: TNO. (2021). Phyllis2—Database for the physico-chemical composition of (treated) lignocellulosic biomass, micro- and macroalgae, various feedstocks for biogas production and biochar. https://phyllis.nl/ | AD28: Engineering Tool Box (2021), https://www.engineeringtoolbox.com/specific-heat-capacity-food-d_295.html | AE28: Rani, D.S., Nand, K. Ensilage of pineapple processing waste for methane generation. Waste Management 2004; 24:523-8. https://doi.org/10.1016/j.wasman.2003.10.010 | AJ28: Pineapple pulp
A29: Potato peels | B29: Potato peels | D29: 89 | E29: 89 | F29: 5 | G29: 93 | H29: 14.2 | I29: n/a | J29: 18 | K29: 44 | L29: 6 | M29: 4 | N29: 46 | O29: 0 | P29: 3.43 | Q29: 11 | X29: 50 | AC29: Bayerisches Staatsministerium für Ernährung. (2020). Biogasausbeuten verschiedener Substrate. https://www.lfl.bayern.de/iba/energie/049711/?sel_list=51%2Cl&anker0=substratanker#substratanker | AD29: Liang, S., Han, Y., Wei, L., et al. Production and characterization of bio-oil and bio-char from pyrolysis of potato peel wastes. Biomass Conversion and Biorefinery 2015; 5:237-46. 10.1007/s13399-014-0130-x | AE29: Engineering Tool Box (2021), https://www.engineeringtoolbox.com/specific-heat-capacity-food-d_295.html | AJ29: Potato processing
A30: Rice husk | B30: Rice Husk | C30: Processing residue | D30: 10 | E30: 10 | F30: 18 | G30: 75 | H30: 23 | I30: 17 | J30: 19 | K30: 47 | L30: 6 | M30: 1 | N30: 46 | O30: 0 | P30: 3.333333 | Q30: 90 | R30: 28.77 | S30: 17.25 | T30: 19.87 | U30: 0.4 | V30: 3.2 | W30: 83.89 | Z30: thermochemical | AA30: combustion, gasification, pyrolysis | AB30: Heat/power, syn-gas, char, bio-liquid, | AC30: Wilson, L., Yang, W., Blasiak, W., John, G. R., & Mhilu, C. F. (2011). Thermal characterization of tropical biomass feedstocks. Energy Conversion and Management, 52(1), 191–198. https://doi.org/10.1016/j.enconman.2010.06.058 | AD30: TNO. (2021). Phyllis2—Database for the physico-chemical composition of (treated) lignocellulosic biomass, micro- and macroalgae, various feedstocks for biogas production and biochar. https://phyllis.nl/ | AE30: IRRI. Rice husk - IRRI Rice Knowledge Bank. 2020, http://www.knowledgebank.irri.org/step-by-step-production/postharvest/rice-by-products/rice-husk | AJ30: Rice husk
A31: =B31 -> Rice straw | B31: Rice straw | C31: Harvesting residue | D31: 15 | E31: 15 | F31: 18 | G31: 75 | H31: 19 | I31: 16 | J31: 19 | K31: 48 | L31: 6 | M31: 2 | N31: 40 | O31: 4 | P31: 3.333333 | Q31: 85 | R31: 35.69 | S31: 23.68 | T31: 14.02 | W31: 91.55 | Z31: thermochemical | AA31: combustion, gasification, pyrolysis | AB31: Heat/power, syn-gas, char, bio-liquid, | AC31: TNO. (2021). Phyllis2—Database for the physico-chemical composition of (treated) lignocellulosic biomass, micro- and macroalgae, various feedstocks for biogas production and biochar. https://phyllis.nl/ | AD31: Van Hung, N., Maguyon-Detras, M.C., Migo, M.V., et al. Rice Straw Overview: Availability, Properties, and Management Practices. In: Gummert, Martin, et al., editors. Sustainable Rice Straw Management. Cham: Springer International Publishing; 2020. p. 1-13 | AJ31: Rice straw
A32: Wood processing residue | B32: Wood | C32: processing residue | D32: 20 | E32: 20 | F32: 1 | G32: 83 | H32: 17 | I32: 15 | J32: 19 | K32: 49 | L32: 6 | M32: 0.5 | N32: 42 | O32: 2.5 | P32: 3.333333 | Q32: 80 | Z32: thermochemical | AA32: combustion, gasification, pyrolysis | AB32: Heat/power, syn-gas, char, bio-liquid, | AC32: TNO. (2021). Phyllis2—Database for the physico-chemical composition of (treated) lignocellulosic biomass, micro- and macroalgae, various feedstocks for biogas production and biochar. https://phyllis.nl/ | AJ32: Wood processing residue
A33: Sisal Sisal pulp | B33: Sisal | C33: Sisal pulp | D33: 90 | E33: 85.5 | F33: 6.1 | G33: 85 | H33: 12.6 | I33: n/a | J33: 17.35 | K33: 48 | L33: 7.2 | M33: 1.66 | N33: 39.1 | O33: 4.04 | P33: 3.333333 | Q33: 14.5 | R33: =Q33*G33/100 -> 12.325 | Z33: biological, hydrothermal | AA33: anaerobic digestion, fermentation, hydrothermal | AB33: Bio-liquid, bio-gas, ethanol | AD33: Terrapon-Pfaff, J. C., Fischedick, M., & Monheim, H. (2012). Energy potentials and sustainability—the case of sisal residues in Tanzania. Energy for Sustainable Development, 16(3), 312-319. doi:https://doi.org/10.1016/j.esd.2012.06.001 | AE33: Wilson, L., et al. (2011). "Thermal characterization of tropical biomass feedstocks." Energy Conversion and Management 52(1): 191-198. | AJ33: Sisal Sisal pulp
A34: Sisal Sisal ball | B34: Sisal | C34: Sisal ball | D34: 70 | E34: 70 | F34: 6.1 | G34: 93 | H34: 14.6 | I34: 6 | J34: 17.35 | K34: 48 | L34: 6 | M34: 0.1 | N34: 42 | O34: 3.9 | P34: 3.333333 | Q34: 30 | Z34: biological, hydrothermal | AA34: anaerobic digestion, fermentation, hydrothermal | AD34: Terrapon-Pfaff, J. C., Fischedick, M., & Monheim, H. (2012). Energy potentials and sustainability—the case of sisal residues in Tanzania. Energy for Sustainable Development, 16(3), 312-319. doi:https://doi.org/10.1016/j.esd.2012.06.001 | AE34: Wilson, L., Yang, W., Blasiak, W., John, G. R., & Mhilu, C. F. (2011). Thermal characterization of tropical biomass feedstocks. Energy Conversion and Management, 52(1), 191–198. https://doi.org/10.1016/j.enconman.2010.06.058 | AJ34: Sisal Sisal ball
A35: Sisal Sisal wastewater | B35: Sisal | C35: Sisal wastewater | D35: 100 | E35: 99.88 | F35: 6.1 | G35: 87 | H35: 13.6 | I35: n/a | J35: 17.35 | K35: 47.5 | L35: 6 | M35: 0.88 | N35: 40.9 | O35: 4.72 | P35: 3.333333 | Q35: 0.12 | Z35: biological, hydrothermal | AA35: anaerobic digestion, fermentation, hydrothermal | AD35: Terrapon-Pfaff, J. C., Fischedick, M., & Monheim, H. (2012). Energy potentials and sustainability—the case of sisal residues in Tanzania. Energy for Sustainable Development, 16(3), 312-319. doi:https://doi.org/10.1016/j.esd.2012.06.001 | AJ35: Sisal Sisal wastewater
A36: =B36 -> Sugarcane bagasse | B36: Sugarcane bagasse | C36: Processing residue | D36: 20 | E36: 20 | F36: 3 | G36: 83 | H36: 16 | I36: 13 | J36: 19 | K36: 48.81 | L36: 5.9 | M36: 0.49 | N36: 43.1 | O36: 1.7 | P36: 3.333333 | Q36: 80 | R36: 37.27 | S36: 35.8 | T36: 20.13 | W36: 95.9 | Z36: thermochemical | AA36: combustion, gasification, pyrolysis | AB36: Heat/power, syn-gas, char, bio-liquid, | AC36: Celignis. (2020). Analysis of Sugarcane Bagasse, Cellulose Content of Sugarcane Bagasse, Lignin Content of Sugarcane Bagasse. https://www.celignis.com/feedstock.php?value=13 | AD36: TNO. (2021). Phyllis2—Database for the physico-chemical composition of (treated) lignocellulosic biomass, micro- and macroalgae, various feedstocks for biogas production and biochar. https://phyllis.nl/ | AE36: Motta, I. L., Miranda, N. T., Maciel Filho, R., & Wolf Maciel, M. R. (2019). Sugarcane bagasse gasification: Simulation and analysis of different operating parameters, fluidizing media, and gasifier types. Biomass and Bioenergy, 122, 433–445. https://doi.org/10.1016/j.biombioe.2019.01.051 | AF36: Kumar, R., & Kumar, M. (2016). AN EXPERIMENTAL STUDY TO EVALUATE THE CALORIFIC VALUES OF BAGASSE AFTER OPEN SUN DRYING. International Journal of Science, Engineering and Technology Research, 5(6), 4. http://ijsetr.org/wp-content/uploads/2016/06/IJSETR-VOL-5-ISSUE-6-2153-2156.pdf | AJ36: Bagasse
A37: =B37 -> Sugarcane leaves | B37: Sugarcane leaves | C37: Harvesting residue | D37: 30 | E37: 30 | F37: 7.72 | G37: 77.4 | H37: 14.88 | I37: 10 | J37: 16 | K37: 39.75 | L37: 5.5 | M37: 0.19 | N37: 46.84 | O37: 7.72 | P37: 3.333333 | Q37: 70 | Z37: thermochemical | AA37: combustion, gasification, pyrolysis | AB37: Heat/power, syn-gas, char, bio-liquid, | AC37: Celignis. (2020). Analysis of Sugarcane Bagasse, Cellulose Content of Sugarcane Bagasse, Lignin Content of Sugarcane Bagasse. https://www.celignis.com/feedstock.php?value=13 | AD37: TNO. (2021). Phyllis2—Database for the physico-chemical composition of (treated) lignocellulosic biomass, micro- and macroalgae, various feedstocks for biogas production and biochar. https://phyllis.nl/
A38: =B38 -> Vegetable waste | B38: Vegetable waste | C38: more green stuff, fibre more than starch | D38: 90 | E38: 90 | F38: 10 | G38: 85 | H38: 15 | I38: n/a | J38: 18 | K38: 48 | L38: 7 | M38: 4 | N38: 41 | O38: 0 | P38: 4 | Q38: 10 | X38: 60 | AC38: Bayerisches Staatsministerium für Ernährung. (2020). Biogasausbeuten verschiedener Substrate. https://www.lfl.bayern.de/iba/energie/049711/?sel_list=51%2Cl&anker0=substratanker#substratanker | AD38: TNO. (2021). Phyllis2—Database for the physico-chemical composition of (treated) lignocellulosic biomass, micro- and macroalgae, various feedstocks for biogas production and biochar. https://phyllis.nl/ | AE38: Ouadi, M., Bashir, M. A., Speranza, L. G., Jahangiri, H., & Hornung, A. (2019). Food and Market Waste–A Pathway to Sustainable Fuels and Waste Valorization. Energy & Fuels, 33(10), 9843–9850. https://doi.org/10.1021/acs.energyfuels.9b01650 | AJ38: Vegetable waste
A39: =B39 -> Wood chips | B39: Wood chips | C39: processing residue | D39: =D32 -> 20 | E39: =E32 -> 20 | F39: 1 | G39: 83 | H39: 17 | I39: 15 | J39: 19 | K39: 49 | L39: 6 | M39: 0.5 | N39: 42 | O39: 2.5 | P39: 3.333333 | Q39: 80 | Z39: thermochemical | AA39: combustion, gasification, pyrolysis | AB39: Heat/power, syn-gas, char, bio-liquid, | AC39: Forest Research. (2021). Moisture content. Forest Research. https://www.forestresearch.gov.uk/tools-and-resources/biomass-energy-resources/reference-biomass/facts-figures/moisture-content/ | AD39: TNO. (2021). Phyllis2—Database for the physico-chemical composition of (treated) lignocellulosic biomass, micro- and macroalgae, various feedstocks for biogas production and biochar. https://phyllis.nl/ | AJ39: Wood chips
A40: Biomass briquettes | D40: 10 | E40: 10 | F40: 2 | G40: 85 | H40: 20 | I40: 17 | J40: 19 | K40: 48 | L40: 5 | M40: 0.5 | N40: 45 | O40: 1.5 | P40: 3.333333 | Q40: 90 | AC40: TNO. (2021). Phyllis2—Database for the physico-chemical composition of (treated) lignocellulosic biomass, micro- and macroalgae, various feedstocks for biogas production and biochar. https://phyllis.nl/ | AJ40: Briquettes
A41: NO SECOND FEEDSTOCK | B41: 0 | C41: 0 | D41: 0 | E41: 0 | F41: 0 | G41: 0 | H41: 0 | I41: 0 | J41: 0 | K41: 0 | L41: 0 | M41: 0 | N41: 0 | O41: 0 | P41: 0 | R41: 0 | S41: 0 | T41: 0 | U41: 0 | V41: 0 | W41: 0 | X41: 0 | Y41: 0 | Z41: 0 | AA41: 0 | AB41: 0 | AC41: 0 | AD41: 0

Sheet Feedstocks_Pathways
F1: Bioenergy Mass-Energy Balance Model | I1: Created by Jorge López Ordovás, Katie Chong, Mirjam Röder. Energy & Bioproducts Research Institute (EBRI), Aston University, 2020-21. Contact: bioenergy@aston.ac.uk
B3: 1. Choose demand sector and feedstocks from dropdown menus. | F3: 2. Choose specific inputs for each demand sector. Clear the values that are not required by clicking on "Clear Values" button | J3: 3. Results displayed below.
B5: General Inputs | F5: Specific Demand Sector Inputs | J5: Results
B6: Demand Sector | F6: =INDIRECT("'"&$E$22&"'!A"&I6) ->  | H6: =INDIRECT("'"&$E$22&"'!C"&I6) ->  | I6: 50 | L6: =INDIRECT("'"&$E$22&"'!H"&I6) ->  | M6: =INDIRECT("'"&$E$22&"'!I"&I6) -> 
B7: =LOOKUP(E22,T21:T27,U21:U27) ->  | H7: =INDIRECT("'"&$E$22&"'!C"&I7) ->  | I7: 51 | J7: =INDIRECT("'"&$E$22&"'!F"&I7) ->  | K7: =INDIRECT("'"&$E$22&"'!G"&I7) -> 
B8: Feedstock 1 | H8: =INDIRECT("'"&$E$22&"'!C"&I8) ->  | I8: 52 | K8: =INDIRECT("'"&$E$22&"'!G"&I8) -> 
B9: Feedstock 2 | I9: 53 | J9: =INDIRECT("'"&$E$22&"'!F"&I9) -> 
B10: Percentage of second feedstock | H10: =INDIRECT("'"&$E$22&"'!C"&I10) ->  | I10: 54
B11: =IF(E22="ds2","Target capacity as MWth",IF(E22="ds1","Target capacity as MWth","Target capacity as MW")) ->  | D11: MW | I11: 55
B12: Capacity factor / Plant availability | D12: % | F12: =INDIRECT("'"&$E$22&"'!A"&I12) ->  | I12: 56
I13: 57 | L13: =INDIRECT("'"&$E$22&"'!I"&I13) -> 
B14: The cells that can be amended by the user are highlighted in orange | I14: 58 | L14: =INDIRECT("'"&$E$22&"'!I"&I14) -> 
I15: 59 | J15: =H24 -> Annual operational hours | L15: =ROUND(I24,0) -> 0
B21: Demand Sector | C21: Country | D21: Feedstock | E21: Acronym | F21: Biomass annual(D4) | G21: Hello | H21: kW | I21: 1000 | J21: Feedstock 1 | K21: =LOOKUP(C8,P22:P58,Q22:Q58) ->  | P21: Feedstock name from list | Q21: Name on MASTER Spreadsheet | T21: DS1 | U21: Biomass used to replace fossil fuels in clinker production
B22: =C6 -> 0 | C22: =LOOKUP(B22,C29:I29,C53:I53) ->  | D22: =C8 -> 0 | E22: =LOOKUP(B22,C29:I29,C54:I54) ->  | F22: =INDIRECT("'"&E22&"'!"&E24) ->  | G22: my | H22: MW | I22: 1 | J22: Feedstock 2 | K22: =LOOKUP(C9,P22:P58,Q22:Q58) ->  | P22: Avocado waste | Q22: Avocado waste | T22: DS2 | U22: Biomass used to replace fuelwood for withering and/or drying of tea leaves
B23: =LOOKUP(B22,C29:I29,C30:I30) ->  | C23: =B23&"Feedstock1" ->  | E23: =LOOKUP(B22,C29:I29,C55:I55) ->  | L23: =14 -> 14 | M23: =L23/L24 -> 0.0001598173516 | P23: Bagasse | Q23: Sugarcane bagasse | T23: DS3 | U23: Biomass used in wood production industry to provide heat and/or power
B24: =C11/LOOKUP(D11,H21:H22,I21:I22) -> 0 | C24: MW | E24: D4 | F24: ='DS2'!D4 ->  | G24: name | H24: Annual operational hours | I24: =24*365*C12 -> 0 | J24: h | L24: =365*24*10 -> 87600 | P24: Briquettes | Q24: Biomass briquettes | T24: DS4 | U24: Palm industry residues used for anaerobic digestion. The subsequent biogas used to provide heat and/or power
B25: =LOOKUP(B22,C29:I29,C57:I57) ->  | C25: Choice First | E25: =E23&B27 ->  | G25: =G21&" "&G22&" "&G24 -> Hello my name | P25: Cassava fibre | Q25: Cassava fibre | T25: DS5 | U25: Fruit and vegetable residuse used for anaerobic digestion. The subsequent biogas used to provide heat and/or power
B26: =LOOKUP(E22,C54:I54,C62:I62) ->  | C26: Choice Second | P26: Cassava stalks | Q26: Cassava stalks | T26: DS6 | U26: Dairy and cattle manure/slurry used for anaerobic digestion. The subsequent biogas used to provide heat and/or power
B27: FlowDiagram | P27: Cattle manure | Q27: Cattle manure | T27: DS7 | U27: Sisal industry residues used for anaerobic digestion. The subsequent biogas used to provide heat and/or power
P28: Chicken manure | Q28: Chicken manure
B29: Pathway | C29: 1. Cement manufacturing | D29: 2. Tea processing | E29: 3. Wood processing | F29: 4. Palm oil processing | G29: 5. Horticulture | H29: 6. Dairy | I29: 7. Sisal processing | P29: Coconut husk | Q29: Coconut husk
C30: Cement | D30: Tea | E30: Wood | F30: PalmOil | G30: Fruit | H30: Dairy | I30: Sisal | K30: Feedstock choices for the model; If changed, it must be changed on the table on the right | P30: Coffee husk | Q30: Coffee husk
B31: Feedstock 1 | C31: Briquettes | D31: Bagasse | E31: Bagasse | F31: Cattle manure | G31: Avocado waste | H31: Cattle manure | I31: Sisal Sisal ball | P31: Cotton straw | Q31: Cotton stalks
B32: Feedstock 2 | C32: Cassava stalks | D32: Briquettes | E32: Cassava stalks | F32: Chicken manure | G32: Fruit waste | H32: Chicken manure | I32: Sisal Sisal pulp | P32: Cow slurry | Q32: Dairy slurry
B33: Feedstock 3 | C33: Cotton straw | D33: Cassava stalks | E33: Coconut husk | F33: Maize stalks & cobs | G33: Mango pulp | H33: Cow slurry | I33: Sisal Sisal wastewater | P33: Fruit waste | Q33: Fruit waste
B34: Feedstock 4 | C34: Groundnut shells | D34: Coconut husk | E34: Groundnut shells | F34: Oil Palm Effluent POME | G34: Pineapple pulp | H34: Pig manure | I34: Cattle manure | P34: Groundnut shells | Q34: Groundnut shells
B35: Feedstock 5 | C35: Maize stalks & cobs | D35: Macadamia shells | E35: Maize stalks & cobs | F35: Oil Palm Empty Fruit Bunch | G35: Potato processing | H35: Pig slurry | I35: Chicken manure | P35: Macadamia shells | Q35: Macadamia shells
B36: Feedstock 6 | C36: Oil Palm Empty Fruit Bunch | D36: Maize stalks & cobs | E36: Oil Palm Empty Fruit Bunch | F36: Cow slurry | G36: Vegetable waste | H36: Rice husk | I36: Cow slurry | P36: Maize processing residue | Q36: Maize processing residue
B37: Feedstock 7 | C37: Oil Palm Fruit Fibre | D37: Nutshells | E37: Oil Palm Fruit Fibre | F37: Pig manure | G37: =B44 -> No feedstock | H37: Rice straw | I37: Pig manure | P37: Maize stalks & cobs | Q37: Maize cobs&stalks
B38: Feedstock 8 | C38: Oil Palm Kernel Shells | D38: Wood chips | E38: Oil Palm Kernel Shells | F38: Pig slurry | H38: =B44 -> No feedstock | I38: Pig slurry | P38: Mango pulp | Q38: Mango Processing residue
B39: Feedstock 9 | C39: Oil Palm residue mix | D39: Wood logs | E39: Oil Palm residue mix | F39: Rice husk | I39: =B44 -> No feedstock | P39: Nutshells | Q39: Cashew nutshell
B40: Feedstock 10 | C40: Rice husk | D40: =B44 -> No feedstock | E40: Rice husk | F40: Rice straw | P40: Oil Palm Effluent POME | Q40: Oil Palm Effluent POME
B41: Feedstock 11 | C41: Wood chips | E41: Wood chips | F41: =B44 -> No feedstock | P41: Oil Palm Empty Fruit Bunch | Q41: Oil Palm Empty Fruit Bunch
B42: Feedstock 12 | C42: Wood logs | E42: Wood logs | P42: Oil Palm Fruit Fibre | Q42: Oil Palm Fruit Fibre
B43: Feedstock 13 | C43: Wood processing residue | E43: Wood processing residue | P43: Oil Palm Kernel Shells | Q43: Oil Palm Kernel Shells
B44: No feedstock | C44: =B44 -> No feedstock | E44: =B44 -> No feedstock | P44: Oil Palm residue mix | Q44: Oil Palm residue mix
C45: CementFeedstock1 | D45: TeaFeedstock1 | E45: WoodFeedstock1 | F45: PalmOilFeedstock1 | G45: FruitFeedstock1 | H45: DairyFeedstock1 | I45: SisalFeedstock1 | P45: Pig manure | Q45: Pig manure
C46: - | P46: Pig slurry | Q46: Pig slurry
C47: NOTE: for palm oil residues use processing residues OR use EFB number from Elbersen, W. Valorization of palm oil (mill) residues. Identifying and solving the challenges. 2013; 38 p. | D47: NOTE: for softwood use softwood residues | E47: NOTE: for SRC use Eucalyptus | F47: NOTE: for palm oil residues use processing residues OR use EFB number from Elbersen, W. Valorization of palm oil (mill) residues. Identifying and solving the challenges. 2013; 38 p. | H47: Note: I think you still need to do the manure stuff | P47: Pineapple pulp | Q47: Pineapple waste Processing residue
C48: NOTE: for hardwood use cocoa trimmings | D48: NOTE: for hardwood use Eucalyptus | E48: NOTE: for old trees use coconut timber | H48: Cow slurry is the liquid stuff | P48: Potato processing | Q48: Potato peels
E49: NOTE: for sawmill residues use sawdust | H49: Cow manure the more solid | P49: Rice husk | Q49: Rice husk
H50: Pig slurry is the liquid stuff | P50: Rice straw | Q50: Rice straw
H51: pig manure the more solid | P51: Sisal Sisal ball | Q51: Sisal Sisal ball
H52: Chicken manure | P52: Sisal Sisal pulp | Q52: Sisal Sisal pulp
B53: Country | C53: Nigeria | D53: Kenya | E53: Tanzania | F53: Ghana | G53: Kenya | H53: South Africa | I53: Kenya | P53: Sisal Sisal wastewater | Q53: Sisal Sisal wastewater
B54: Demand Sector | C54: DS1 | D54: DS2 | E54: DS3 | F54: DS4 | G54: DS5 | H54: DS6 | I54: DS7 | P54: Sugarcane leaves | Q54: Sugarcane leaves
B55: =E22 ->  | C55: Cement | D55: Tea | E55: Wood | F55: PalmOil | G55: Fruit&Veg | H55: Dairy | I55: Sisal | P55: Vegetable waste | Q55: Vegetable waste | X55: Moisture content (as received) [wt.%] | Y55: Moisture content (application) [wt.%] | Z55: Ash content [wt.%] | AA55: Volatile matter [wt.%] | AB55: Fixed carbon [wt.%] | AC55: LHV [MJ/kg] | AD55: HHV [MJ/kg] | AE55: Carbon [wt.%] | AF55: Hydrogen [wt.%] | AG55: Nitrogen [wt.%] | AH55: Oxygen [wt.%] | AI55: Others [wt.%] | AJ55: Heat capacity [kJ/kg K] | AK55: solids content [w%]
P56: Wood chips | Q56: Wood chips | W56: =C8 -> 0 | X56: =VLOOKUP($K$21,'Feedstock Info'!$1:$1048576,4,FALSE) ->  | Y56: =VLOOKUP($K$21,'Feedstock Info'!$1:$1048576,5,FALSE) ->  | Z56: =VLOOKUP($K$21,'Feedstock Info'!$1:$1048576,6,FALSE) ->  | AA56: =VLOOKUP($K$21,'Feedstock Info'!$1:$1048576,7,FALSE) ->  | AB56: =VLOOKUP($K$21,'Feedstock Info'!$1:$1048576,8,FALSE) ->  | AC56: =VLOOKUP($K$21,'Feedstock Info'!$1:$1048576,9,FALSE) ->  | AD56: =VLOOKUP($K$21,'Feedstock Info'!$1:$1048576,10,FALSE) ->  | AE56: =VLOOKUP($K$21,'Feedstock Info'!$1:$1048576,11,FALSE) ->  | AF56: =VLOOKUP($K$21,'Feedstock Info'!$1:$1048576,12,FALSE) ->  | AG56: =VLOOKUP($K$21,'Feedstock Info'!$1:$1048576,13,FALSE) ->  | AH56: =VLOOKUP($K$21,'Feedstock Info'!$1:$1048576,14,FALSE) ->  | AI56: =VLOOKUP($K$21,'Feedstock Info'!$1:$1048576,15,FALSE) ->  | AJ56: =VLOOKUP($K$21,'Feedstock Info'!$1:$1048576,16,FALSE) ->  | AK56: =VLOOKUP($K$21,'Feedstock Info'!$1:$1048576,17,FALSE) ->  | AL56: =AK56*AA56/100 -> 
C57: CementFossilfuel | D57: TeaDemand | E57: WoodEnergyProduction | F57: PalmOilTechnology | G57: FruitVegEnergyProduction | H57: DairyEnergyProduction | I57: SisalEnergyProduction | P57: Wood logs | Q57: Wood logs | W57: =C9 -> 0 | X57: =IF($C$9=$B$44,X56,VLOOKUP($K$22,'Feedstock Info'!$1:$1048576,4,FALSE)) ->  | Y57: =IF($C$9=$B$44,Y56,VLOOKUP($K$22,'Feedstock Info'!$1:$1048576,5,FALSE)) ->  | Z57: =IF($C$9=$B$44,Z56,VLOOKUP($K$22,'Feedstock Info'!$1:$1048576,6,FALSE)) ->  | AA57: =IF($C$9=$B$44,AA56,VLOOKUP($K$22,'Feedstock Info'!$1:$1048576,7,FALSE)) ->  | AB57: =IF($C$9=$B$44,AB56,VLOOKUP($K$22,'Feedstock Info'!$1:$1048576,8,FALSE)) ->  | AC57: =IF($C$9=$B$44,AC56,VLOOKUP($K$22,'Feedstock Info'!$1:$1048576,9,FALSE)) ->  | AD57: =IF($C$9=$B$44,AD56,VLOOKUP($K$22,'Feedstock Info'!$1:$1048576,10,FALSE)) ->  | AE57: =IF($C$9=$B$44,AE56,VLOOKUP($K$22,'Feedstock Info'!$1:$1048576,11,FALSE)) ->  | AF57: =IF($C$9=$B$44,AF56,VLOOKUP($K$22,'Feedstock Info'!$1:$1048576,12,FALSE)) ->  | AG57: =IF($C$9=$B$44,AG56,VLOOKUP($K$22,'Feedstock Info'!$1:$1048576,13,FALSE)) ->  | AH57: =IF($C$9=$B$44,AH56,VLOOKUP($K$22,'Feedstock Info'!$1:$1048576,14,FALSE)) ->  | AI57: =IF($C$9=$B$44,AI56,VLOOKUP($K$22,'Feedstock Info'!$1:$1048576,15,FALSE)) ->  | AJ57: =IF($C$9=$B$44,AJ56,VLOOKUP($K$22,'Feedstock Info'!$1:$1048576,16,FALSE)) ->  | AK57: =IF($C$9=$B$44,AK56,VLOOKUP($K$22,'Feedstock Info'!$1:$1048576,17,FALSE)) ->  | AL57: =AK57*AA57/100 -> 
C58: =DS1_Information!K36 -> Coal | D58: =DS2_Information!B16 -> Drying | E58: CHP | F58: CHP | G58: =DS5_Information!I44 -> CHP | H58: =DS6_Information!L49 -> CHP | I58: =DS7_Information!I49 -> CHP | P58: Wood processing residue | Q58: Wood processing residue | W58: Mixture | X58: =X56*(1-$C$10)+X57*$C$10 ->  | Y58: =Y56*(1-$C$10)+Y57*$C$10 ->  | Z58: =Z56*(1-$C$10)+Z57*$C$10 -> 
C59: =DS1_Information!K38 -> Natural Gas | D59: =DS2_Information!B17 -> Drying + Withering | E59: Electricity only | F59: Electricity only | G59: =DS5_Information!J44 -> Electricity only | H59: =DS6_Information!M49 -> Electricity only | I59: =DS7_Information!J49 -> Electricity only
C60: =DS1_Information!K37 -> Petcoke | D60: =DS2_Information!B19 -> Withering | E60: Heat only | F60: Heat only | G60: =DS5_Information!K44 -> Heat only | H60: =DS6_Information!N49 -> Heat only | I60: =DS7_Information!K49 -> Heat only
W61: DS2 mixture 50:50 | X61: =AVERAGE(X56:X57) ->  | Y61: =AVERAGE(Y56:Y57) ->  | Z61: =AVERAGE(Z56:Z57) -> 
C62: CementEnergyDemand | D62: TeaNA | E62: WoodNA | F62: PalmOilEnergyProduction | G62: FruitVegNA | H62: DairyNA | I62: SisalNA
C63: =DS1_Information!E3 -> Dry (multi-stage) | D63: N/A | F63: =IF($E$22="ds4", IF($G$6="heat only", "High-pressure steam", " "), " ") ->  | G63: N/A | H63: N/A | I63: N/A
C64: =DS1_Information!E4 -> Dry (single-stage) | F64: =IF($E$22="ds4", IF($G$6="heat only", "Low-pressure steam", " "), " ") -> 
C65: =DS1_Information!E5 -> Wet
B69: User guidance. For further information see the "Methodology" tab.

Sheet DS1_Information (hidden)
T1: CaSO4 | U1: CaO | V1: SO3
C2: Phase | E2: Energy demand [GJ/t clinker] or [MJ/kg clinker] | H2: Reaction heat [GJ/t] | K2: Clinker production [t raw material/ t clinker] | T2: =1/AI12 -> 0.007342143906 | U2: 0.022727 | V2: 0.022727
C3: Solid | E3: Dry (multi-stage) | F3: 3.4 | H3: Max | I3: 1.6 | K3: Min | L3: 1.5 | P3: Cement conversion (clinker-->cement) | Q3: 0.75 | U3: =U2*AI13 -> 1.2749847 | X3: Reagents | AB3: Products | AH3: Molecular weight | AK3: Molecular weight
C4: Gas | E4: Dry (single-stage) | F4: 4.5 | H4: Min | I4: 1.85 | K4: Max | L4: 1.6 | X4: Reagent 1 | Z4: Reagent 2 | AB4: Product 1 | AD4: Product 2 | AH4: Ca | AI4: 40.1 | AK4: Al | AL4: 27
E5: Wet | F5: 6.06 | X5: CaCO3 | AB5: CaO | AD5: CO2 | AH5: Si | AI5: 28.1 | AK5: C | AL5: 12
W6: Stoichiometric coefficient | X6: 1 | AB6: 1 | AD6: 1 | AH6: Al | AI6: 27 | AK6: Ca | AL6: 40.1
E7: Reaction calcination | F7: CaCO3-->CaO+CO2 | K7: Typical composition of coal ash | P7: Formula | W7: Molecular weight | X7: =IF(NOT(X5=""),LOOKUP(X5,$AK$4:$AK$33,$AL$4:$AL$33),"") -> 100.1 | Z7: =IF(NOT(Z5=""),LOOKUP(Z5,$AK$4:$AK$33,$AL$4:$AL$33),"") ->  | AB7: =IF(NOT(AB5=""),LOOKUP(AB5,$AK$4:$AK$33,$AL$4:$AL$33),"") -> 56.1 | AD7: =IF(NOT(AD5=""),LOOKUP(AD5,$AK$4:$AK$33,$AL$4:$AL$33),"") -> 44 | AH7: Fe | AI7: 55.8 | AK7: CaCO3 | AL7: 100.1
F8: limestone--> lime + CO2 | K8: SiO2 | L8: Al2O3 | M8: Fe2O3 | N8: CaO | P8: Component | Q8: Al | R8: Mg | S8: Ca | T8: Si | U8: Fe | X8: =IF(NOT(X5=""),"kg reagent/kg product","") -> kg reagent/kg product | Z8: =IF(NOT(Z5=""),"kg reagent/kg product","") ->  | AB8: =IF(NOT(AB5=""),"kg product/kg reagent","") -> kg product/kg reagent | AD8: =IF(NOT(AD5=""),"kg product/kg reagent","") -> kg product/kg reagent | AH8: S | AI8: 32.1 | AK8: CaO | AL8: 56.1
E9: Clinkerization | F9: CaO+SiO2+Al2O3+Fe2O3 | K9: 0.463 | L9: 0.256 | M9: 0.187 | N9: 0.028 | P9: Composition | X9: =IF(NOT(OR(AB5="",X5="")),AB5,"") -> CaO | Y9: =IF(NOT(OR(AD5="",X5="")),AD5,"") -> CO2 | Z9: =IF(NOT(OR(AB5="",Z5="")),AB5,"") ->  | AA9: =IF(NOT(OR(AD5="",Z5="")),AD5,"") ->  | AB9: =IF(NOT(OR(X5="",AB5="")),X5,"") -> CaCO3 | AC9: =IF(NOT(OR(Z5="",AB5="")),Z5,"") ->  | AD9: =IF(NOT(OR(AD5="",X5="")),X5,"") -> CaCO3 | AE9: =IF(NOT(OR(Z5="",AD5="")),Z5,"") ->  | AH9: O | AI9: 16 | AK9: CaSO4 | AL9: 136.2
F10: Lime+Silica+Alumina+Iron(+Gypsum)-->Clinker | K10: =K9/SUM($K$9:$N$9) -> 0.4957173448 | L10: =L9/SUM($K$9:$N$9) -> 0.2740899358 | M10: =M9/SUM($K$9:$N$9) -> 0.2002141328 | N10: =N9/SUM($K$9:$N$9) -> 0.02997858672 | O10: NORMALISED | P10: Coefficient | Q10: 61.902 | R10: 97.599 | S10: 115.261 | T10: -77.055 | U10: -8886 | X10: =IF(OR(X5="",AB5=""),"",X6*X7/(AB6*AB7)) -> 1.784313725 | Y10: =IF(OR(X5="",AD5=""),"",X6*X7/(AD6*AD7)) -> 2.275 | Z10: =IF(OR(Z5="",AB5=""),"",Z6*Z7/(AB6*AB7)) ->  | AA10: =IF(OR(Z5="",AD5=""),"",Z6*Z7/(AD6*AD7)) ->  | AB10: =IF(OR(X5="",AB5=""),"",AB6*AB7/(X6*X7)) -> 0.5604395604 | AC10: =IF(OR(Z5="",AB5=""),"",AB6*AB7/(Z6*Z7)) ->  | AD10: =IF(OR(X5="",AD5=""),"",AD6*AD7/(X6*X7)) -> 0.4395604396 | AE10: =IF(OR(Z5="",AD5=""),"",AD6*AD7/(Z6*Z7)) ->  | AH10: H | AI10: 1 | AK10: CaSO4.2H2O | AL10: 172.2
E11: Temperature | F11: 1450 | G11: °C | K11: =K10*AI22+L10*AI23+M10*AI24+N10*AI25 -> 107.2487152 | O11: Weight | P11: Heat required [kcal/kg clinker] | Q11: =SUM(Q10*Q9,R10*R9,S10*S9,T10*T9,U10*U9) -> 0 | R11: Heat required [MJ/kg] | S11: =Q11*4.184/1000 -> 0 | AH11: C | AI11: 12 | AK11: CH4 | AL11: 16
X12: Reagents | AB12: Products | AH12: CaSO4 | AI12: =AI4+AI8+AI9*4 -> 136.2 | AK12: CO2 | AL12: 44
E13: Clinker composition | F13: Percentage\Source | G13: Application of Electric Arc Furnace Slag | H13: Sodium sulphate effect on cement produced with building stone waste | I13: Industrial versus Laboratory Clinker Processing Using Grinding Aids (Scale Effect) | J13: Chemical activation and set acceleration of lime-natural pozzolan cement | K13: Estimation | L13: Normalised | R13: Excess air | X13: Reagent 1 | Z13: Reagent 2 | AB13: Product 1 | AD13: Product 2 | AH13: CaO | AI13: =($AI$9+$AI$4) -> 56.1 | AK13: Fe | AL13: 55.8
F14: CaO | G14: 66.5 | H14: 65.96 | I14: 64.2 | J14: 64.73 | K14: =AVERAGE(G14:J14)/100 -> 0.653475 | L14: =K14/(SUM($K$14:$K$17)) -> 0.6802071406 | R14: O2 exit gas | S14: Percent excess air | X14: H | Z14: O2 | AB14: H2O | AH14: SO3 | AI14: =($AI$9*3+$AI$8) -> 80.1 | AK14: H | AL14: 1
F15: SiO2 | G15: 21.3 | H15: 21.01 | I15: 20.6 | J15: 21.88 | K15: =AVERAGE(G15:J15)/100 -> 0.211975 | L15: =K15/(SUM($K$14:$K$17)) -> 0.2206464037 | R15: 0.5 | S15: 0.3 | W15: Stoichiometric coefficient | X15: 2 | Z15: 0.5 | AB15: 1 | AH15: CaCO3 | AI15: =($AI$9*3+$AI$11+$AI$4) -> 100.1 | AK15: H2O | AL15: 18
F16: Al2O3 | G16: 6 | H16: 4.64 | I16: 6.32 | J16: 5.56 | K16: =AVERAGE(G16:J16)/100 -> 0.0563 | L16: =K16/(SUM($K$14:$K$17)) -> 0.0586031019 | R16: 1 | S16: 5 | W16: Molecular weight | X16: =IF(NOT(X14=""),LOOKUP(X14,$AK$4:$AK$33,$AL$4:$AL$33),"") -> 1 | Z16: =IF(NOT(Z14=""),LOOKUP(Z14,$AK$4:$AK$33,$AL$4:$AL$33),"") -> 32 | AB16: =IF(NOT(AB14=""),LOOKUP(AB14,$AK$4:$AK$33,$AL$4:$AL$33),"") -> 18 | AD16: =IF(NOT(AD14=""),LOOKUP(AD14,$AK$4:$AK$33,$AL$4:$AL$33),"") ->  | AH16: CO2 | AI16: =($AI$9*2+$AI$11) -> 44 | AK16: O | AL16: 16
F17: Fe2O3 | G17: 3.23 | H17: 4.24 | I17: 4.3 | J17: 3.81 | K17: =AVERAGE(G17:J17)/100 -> 0.03895 | L17: =K17/(SUM($K$14:$K$17)) -> 0.0405433538 | R17: 1.5 | S17: 8 | X17: =IF(NOT(X14=""),"kg reagent/kg product","") -> kg reagent/kg product | Z17: =IF(NOT(Z14=""),"kg reagent/kg product","") -> kg reagent/kg product | AB17: =IF(NOT(AB14=""),"kg product/kg reagent","") -> kg product/kg reagent | AD17: =IF(NOT(AD14=""),"kg product/kg reagent","") ->  | AH17: CaSO4.2H2O | AI17: =AI12+2*(AI19) -> 172.2 | AK17: O2 | AL17: 32
J18: Summation | K18: =SUM(K14:K17) -> 0.9607 | L18: =K18/(SUM($K$14:$K$17)) -> 1 | R18: 2 | S18: 10 | X18: =IF(NOT(OR(AB14="",X14="")),AB14,"") -> H2O | Y18: =IF(NOT(OR(AD14="",X14="")),AD14,"") ->  | Z18: =IF(NOT(OR(AB14="",Z14="")),AB14,"") -> H2O | AA18: =IF(NOT(OR(AD14="",Z14="")),AD14,"") ->  | AB18: =IF(NOT(OR(X14="",AB14="")),X14,"") -> H | AC18: =IF(NOT(OR(Z14="",AB14="")),Z14,"") -> O2 | AD18: =IF(NOT(OR(AD14="",X14="")),X14,"") ->  | AE18: =IF(NOT(OR(Z14="",AD14="")),Z14,"") ->  | AH18: O2 | AI18: =AI9*2 -> 32 | AK18: S | AL18: 32.1
F19: Size | G19: Excess air ratio | R19: 2.5 | S19: 13 | X19: =IF(OR(X14="",AB14=""),"",X15*X16/(AB15*AB16)) -> 0.1111111111 | Y19: =IF(OR(X14="",AD14=""),"",X15*X16/(AD15*AD16)) ->  | Z19: =IF(OR(Z14="",AB14=""),"",Z15*Z16/(AB15*AB16)) -> 0.8888888889 | AA19: =IF(OR(Z14="",AD14=""),"",Z15*Z16/(AD15*AD16)) ->  | AB19: =IF(OR(X14="",AB14=""),"",AB15*AB16/(X15*X16)) -> 9 | AC19: =IF(OR(Z14="",AB14=""),"",AB15*AB16/(Z15*Z16)) -> 1.125 | AD19: =IF(OR(X14="",AD14=""),"",AD15*AD16/(X15*X16)) ->  | AE19: =IF(OR(Z14="",AD14=""),"",AD15*AD16/(Z15*Z16)) ->  | AH19: H2O | AI19: =2*AI10+AI9 -> 18 | AK19: Si | AL19: 28.1
F20: Small Scale | G20: Above | H20: 1.5 | R20: 3 | S20: 16.5 | AH20: SO4 | AI20: =AI8+4*AI9 -> 96.1 | AK20: SO3 | AL20: 80.1
R21: 3.5 | S21: 20 | X21: Reagents | AB21: Products | AH21: CH4 | AI21: =4*AI10+AI11 -> 16 | AK21: SO4 | AL21: 96.1
F22: Reaction heat clinkerization | G22: 1.695 | H22: MJ/kg clinker | R22: o2 exit gas=5.9143 x [excess air] - 1.2238 | X22: Reagent 1 | Z22: Reagent 2 | AB22: Product 1 | AD22: Product 2 | AH22: SiO2 | AI22: =AI5+2*AI18 -> 92.1
K23: Coal | X23: C | Z23: O2 | AB23: CO2 | AH23: Al2O3 | AI23: =2*AI6+3*AI9 -> 102
F24: Ultimate analysis (d.b.) biomass fuels | K24: Reference | L24: Moisture | M24: Low heating value [MJ/kg] | N24: LHV dry [MJ/kg] | O24: High Heating Value [MJ/kg] | P24: HHV dry [MJ/kg] | Q24: ash content (d.b.) | R24: C (d.b) | S24: H (d.b.) | T24: Density | W24: Stoichiometric coefficient | X24: 1 | Z24: 1 | AB24: 1 | AH24: Fe2O3 | AI24: =2*AI7+3*AI9 -> 159.6
G25: Max | H25: Min | I25: Average | K25: 1859 | L25: 0.064 | M25: 28.02 | N25: 30.1 | O25: 29.29 | P25: 31.29 | Q25: 0.089 | R25: 0.7662 | S25: 0.0545 | W25: Molecular weight | X25: =IF(NOT(X23=""),LOOKUP(X23,$AK$4:$AK$33,$AL$4:$AL$33),"") -> 12 | Z25: =IF(NOT(Z23=""),LOOKUP(Z23,$AK$4:$AK$33,$AL$4:$AL$33),"") -> 32 | AB25: =IF(NOT(AB23=""),LOOKUP(AB23,$AK$4:$AK$33,$AL$4:$AL$33),"") -> 44 | AD25: =IF(NOT(AD23=""),LOOKUP(AD23,$AK$4:$AK$33,$AL$4:$AL$33),"") ->  | AH25: CaO | AI25: =AI4+AI9 -> 56.1
F26: C | G26: 43.2 | H26: 54.9 | I26: 0.5 | K26: 3077 | L26: 0.11 | M26: 24.41 | N26: 27.73 | O26: 25.56 | P26: 28.72 | Q26: 0.108 | R26: 0.699 | S26: 0.046 | X26: =IF(NOT(X23=""),"kg reagent/kg product","") -> kg reagent/kg product | Z26: =IF(NOT(Z23=""),"kg reagent/kg product","") -> kg reagent/kg product | AB26: =IF(NOT(AB23=""),"kg product/kg reagent","") -> kg product/kg reagent | AD26: =IF(NOT(AD23=""),"kg product/kg reagent","") -> 
F27: H | G27: 4.4 | H27: 7.2 | I27: 0.05 | K27: 3078 | L27: 0.041 | M27: 26.73 | N27: 27.98 | O27: 27.72 | P27: 28.91 | Q27: 0.125 | R27: 0.724 | S27: 0.043 | X27: =IF(NOT(OR(AB23="",X23="")),AB23,"") -> CO2 | Y27: =IF(NOT(OR(AD23="",X23="")),AD23,"") ->  | Z27: =IF(NOT(OR(AB23="",Z23="")),AB23,"") -> CO2 | AA27: =IF(NOT(OR(AD23="",Z23="")),AD23,"") ->  | AB27: =IF(NOT(OR(X23="",AB23="")),X23,"") -> C | AC27: =IF(NOT(OR(Z23="",AB23="")),Z23,"") -> O2 | AD27: =IF(NOT(OR(AD23="",X23="")),X23,"") ->  | AE27: =IF(NOT(OR(Z23="",AD23="")),Z23,"") -> 
F28: O | G28: 34.1 | H28: 48.2 | I28: =40% -> 0.4 | K28: 3079 | L28: 0.118 | M28: 25.31 | N28: 29.02 | O28: 26.52 | P28: 30.07 | Q28: 0.074 | R28: 0.735 | S28: 0.049 | X28: =IF(OR(X23="",AB23=""),"",X24*X25/(AB24*AB25)) -> 0.2727272727 | Y28: =IF(OR(X23="",AD23=""),"",X24*X25/(AD24*AD25)) ->  | Z28: =IF(OR(Z23="",AB23=""),"",Z24*Z25/(AB24*AB25)) -> 0.7272727273 | AA28: =IF(OR(Z23="",AD23=""),"",Z24*Z25/(AD24*AD25)) ->  | AB28: =IF(OR(X23="",AB23=""),"",AB24*AB25/(X24*X25)) -> 3.666666667 | AC28: =IF(OR(Z23="",AB23=""),"",AB24*AB25/(Z24*Z25)) -> 1.375 | AD28: =IF(OR(X23="",AD23=""),"",AD24*AD25/(X24*X25)) ->  | AE28: =IF(OR(Z23="",AD23=""),"",AD24*AD25/(Z24*Z25)) -> 
K29: 3267 | L29: 0.074 | M29: 28.66 | N29: 31.15 | O29: 29.89 | P29: 32.28 | Q29: 0.088 | R29: 0.783 | S29: 0.052
E30: COAL | K30: 3268 | L30: 0.118 | M30: 25.28 | N30: 28.99 | O30: 26.51 | P30: 30.06 | Q30: 0.084 | R30: 0.745 | S30: 0.049 | X30: Reagents | AB30: Products
F31: C | G31: H | H31: O | K31: 3269 | L31: 0.099 | M31: 25.74 | N31: 28.84 | O31: 26.98 | P31: 29.94 | Q31: 0.103 | R31: 0.74 | S31: 0.051 | X31: Reagent 1 | Z31: Reagent 2 | AB31: Product 1 | AD31: Product 2
E32: Mol. Weight | F32: =AI11 -> 12 | G32: =AI10 -> 1 | H32: =AI9 -> 16 | K32: 3270 | L32: 0.11 | M32: 24.57 | N32: 27.91 | O32: 25.75 | P32: 28.93 | Q32: 0.123 | R32: 0.723 | S32: 0.047 | X32: CaSO4.2H2O | AB32: CaO | AD32: SO3
E33: Composition | F33: =F38 -> 0.7394 | G33: =G38 -> 0.0489375 | H33: =H38 -> 0.2116625 | K33: AVERAGE | L33: =AVERAGE(L25:L32) -> 0.09175 | M33: =AVERAGE(M25:M32) -> 26.09 | N33: 28.965 | O33: 27.2775 | P33: 30.025 | Q33: 0.09925 | R33: 0.7394 | S33: 0.0489375 | W33: Stoichiometric coefficient | X33: 1 | AB33: 1 | AD33: 1
E34: Mol transformation | F34: =F33/F32 -> 0.06161666667 | G34: =G33/G32 -> 0.0489375 | H34: =H33/H32 -> 0.01322890625 | K34: STDEV [%] | L34: =_xlfn.STDEV.P(L25:L32)/L33 -> 0.2923922834 | M34: =_xlfn.STDEV.P(M25:M32)/M33 -> 0.05629777851 | N34: 0.03799687184 | O34: 0.05438451259 | P34: 0.03877096964 | Q34: 0.1752214639 | R34: 0.03315759938 | S34: 0.0693781704 | W34: Molecular weight | X34: =IF(NOT(X32=""),LOOKUP(X32,$AK$4:$AK$33,$AL$4:$AL$33),"") -> 172.2 | Z34: =IF(NOT(Z32=""),LOOKUP(Z32,$AK$4:$AK$33,$AL$4:$AL$33),"") ->  | AB34: =IF(NOT(AB32=""),LOOKUP(AB32,$AK$4:$AK$33,$AL$4:$AL$33),"") -> 56.1 | AD34: =IF(NOT(AD32=""),LOOKUP(AD32,$AK$4:$AK$33,$AL$4:$AL$33),"") -> 80.1
E35: Mol fraction | F35: =F34/SUM($F$34:$I$34) -> 0.4977794234 | G35: =G34/SUM($F$34:$I$34) -> 0.3953488861 | H35: =H34/SUM($F$34:$I$34) -> 0.1068716904 | K35: Average | L35: C | M35: 0.75 | N35: H | O35: 0.05 | X35: =IF(NOT(X32=""),"kg reagent/kg product","") -> kg reagent/kg product | Z35: =IF(NOT(Z32=""),"kg reagent/kg product","") ->  | AB35: =IF(NOT(AB32=""),"kg product/kg reagent","") -> kg product/kg reagent | AD35: =IF(NOT(AD32=""),"kg product/kg reagent","") -> kg product/kg reagent
E36: Formula | F36: =F35/MIN($F$35:$H$35) -> 4.657729483 | G36: =G35/MIN($F$35:$H$35) -> 3.699285419 | H36: =H35/MIN($F$35:$H$35) -> 1 | K36: Coal | L36: =L33 -> 0.09175 | M36: 26 | N36: =N33 -> 28.965 | O36: 27.2775 | P36: 30.025 | Q36: 0.09925 | R36: 0.7394 | S36: 0.0489375 | T36: 1.2 | X36: =IF(NOT(OR(AB32="",X32="")),AB32,"") -> CaO | Y36: =IF(NOT(OR(AD32="",X32="")),AD32,"") -> SO3 | Z36: =IF(NOT(OR(AB32="",Z32="")),AB32,"") ->  | AA36: =IF(NOT(OR(AD32="",Z32="")),AD32,"") ->  | AB36: =IF(NOT(OR(X32="",AB32="")),X32,"") -> CaSO4.2H2O | AC36: =IF(NOT(OR(Z32="",AB32="")),Z32,"") ->  | AD36: =IF(NOT(OR(AD32="",X32="")),X32,"") -> CaSO4.2H2O | AE36: =IF(NOT(OR(Z32="",AD32="")),Z32,"") -> 
E37: Mol Weight | F37: =F36*F32+G36*G32+H36*H32 -> 75.59203921 | K37: Petcoke | L37: 0.03 | M37: 33 | N37: 33 | O37: 34 | P37: 34 | Q37: 0.03 | R37: 0.8 | S37: 0.05 | T37: 1.3 | X37: =IF(OR(X32="",AB32=""),"",X33*X34/(AB33*AB34)) -> 3.069518717 | Y37: =IF(OR(X32="",AD32=""),"",X33*X34/(AD33*AD34)) -> 2.149812734 | Z37: =IF(OR(Z32="",AB32=""),"",Z33*Z34/(AB33*AB34)) ->  | AA37: =IF(OR(Z32="",AD32=""),"",Z33*Z34/(AD33*AD34)) ->  | AB37: =IF(OR(X32="",AB32=""),"",AB33*AB34/(X33*X34)) -> 0.3257839721 | AC37: =IF(OR(Z32="",AB32=""),"",AB33*AB34/(Z33*Z34)) ->  | AD37: =IF(OR(X32="",AD32=""),"",AD33*AD34/(X33*X34)) -> 0.4651567944 | AE37: =IF(OR(Z32="",AD32=""),"",AD33*AD34/(Z33*Z34)) -> 
E38: Coal composition | F38: =DS1_MEB!Z20 -> 0.7394 | G38: =DS1_MEB!AA20 -> 0.0489375 | H38: =DS1_MEB!AB20 -> 0.2116625 | K38: Natural Gas | L38: 0 | M38: 50 | N38: 47.1 | O38: 52.2 | P38: 52.2 | Q38: 0 | R38: 0.75 | S38: 0.25 | T38: 0.8
X39: Reagents | AB39: Products
E40: BIOMASS | K40: Clay composition | L40: Type 1 (Gbankil) | M40: Type 2 (Kusanaab) | N40: Type 3 (Yaane) | O40: Type 4 (Yikine) | P40: Average | Q40: STDEV | X40: Reagent 1 | Z40: Reagent 2 | AB40: Product 1 | AD40: Product 2
F41: C | G41: H | H41: O | K41: Na2O | L41: 0.0061 | M41: 0.0041 | N41: 0.0034 | O41: 0.0129 | P41: =AVERAGE(L41:O41) -> 0.006625 | Q41: =STDEV(L41:O41)/P41 -> 0.6546345081 | X41: CaSO4.2H2O | AB41: H2O
E42: Molar weight | F42: =AI11 -> 12 | G42: =AI10 -> 1 | H42: =AI9 -> 16 | K42: MgO | L42: 0.0088 | M42: 0.0074 | N42: 0.0093 | O42: 0.0113 | P42: =AVERAGE(L42:O42) -> 0.0092 | Q42: =STDEV(L42:O42)/P42 -> 0.1754910295 | S42: Components | W42: Stoichiometric coefficient | X42: 1 | AB42: 2
E43: Composition | F43: =F48 ->  | G43: =G48 ->  | H43: =H48 ->  | K43: Al2O3 | L43: 0.231 | M43: 0.241 | N43: 0.277 | O43: 0.19 | P43: 0.23475 | Q43: 0.1524199417 | S43: =K44 -> SiO2 | T43: =P44 -> 0.63325 | W43: Molecular weight | X43: =IF(NOT(X41=""),LOOKUP(X41,$AK$4:$AK$33,$AL$4:$AL$33),"") -> 172.2 | Z43: =IF(NOT(Z41=""),LOOKUP(Z41,$AK$4:$AK$33,$AL$4:$AL$33),"") ->  | AB43: =IF(NOT(AB41=""),LOOKUP(AB41,$AK$4:$AK$33,$AL$4:$AL$33),"") -> 18 | AD43: =IF(NOT(AD41=""),LOOKUP(AD41,$AK$4:$AK$33,$AL$4:$AL$33),"") -> 
E44: Mol tranf | F44: =F43/F42 ->  | G44: =G43/G42 ->  | H44: =H43/H42 ->  | K44: SiO2 | L44: 0.636 | M44: 0.632 | N44: 0.599 | O44: 0.666 | P44: 0.63325 | Q44: 0.04329257041 | S44: =K43 -> Al2O3 | T44: =P43 -> 0.23475 | X44: =IF(NOT(X41=""),"kg reagent/kg product","") -> kg reagent/kg product | Z44: =IF(NOT(Z41=""),"kg reagent/kg product","") ->  | AB44: =IF(NOT(AB41=""),"kg product/kg reagent","") -> kg product/kg reagent | AD44: =IF(NOT(AD41=""),"kg product/kg reagent","") -> 
E45: Mol fraction | F45: =F44/SUM($F$44:$H$44) ->  | G45: =G44/SUM($F$44:$H$44) ->  | H45: =H44/SUM($F$44:$H$44) ->  | K45: P2O5 | L45: 0.0021 | M45: 0.0035 | N45: 0.0025 | O45: 0.0009 | P45: 0.00225 | Q45: 0.4779930609 | S45: =K51 -> Fe2O3 | T45: =P51 -> 0.05395 | X45: =IF(NOT(OR(AB41="",X41="")),AB41,"") -> H2O | Y45: =IF(NOT(OR(AD41="",X41="")),AD41,"") ->  | Z45: =IF(NOT(OR(AB41="",Z41="")),AB41,"") ->  | AA45: =IF(NOT(OR(AD41="",Z41="")),AD41,"") ->  | AB45: =IF(NOT(OR(X41="",AB41="")),X41,"") -> CaSO4.2H2O | AC45: =IF(NOT(OR(Z41="",AB41="")),Z41,"") ->  | AD45: =IF(NOT(OR(AD41="",X41="")),X41,"") ->  | AE45: =IF(NOT(OR(Z41="",AD41="")),Z41,"") -> 
E46: Formula | F46: =F45/MIN($F$45:$H$45) ->  | G46: =G45/MIN($F$45:$H$45) ->  | H46: =H45/MIN($F$45:$H$45) ->  | K46: SO3 | L46: 0.0014 | M46: 0.0021 | N46: 0.0008 | O46: 0.0005 | P46: 0.0012 | Q46: 0.589255651 | S46: =K49 -> CaO | T46: =P49 -> 0.013 | X46: =IF(OR(X41="",AB41=""),"",X42*X43/(AB42*AB43)) -> 4.783333333 | Y46: =IF(OR(X41="",AD41=""),"",X42*X43/(AD42*AD43)) ->  | Z46: =IF(OR(Z41="",AB41=""),"",Z42*Z43/(AB42*AB43)) ->  | AA46: =IF(OR(Z41="",AD41=""),"",Z42*Z43/(AD42*AD43)) ->  | AB46: =IF(OR(X41="",AB41=""),"",AB42*AB43/(X42*X43)) -> 0.2090592334 | AC46: =IF(OR(Z41="",AB41=""),"",AB42*AB43/(Z42*Z43)) ->  | AD46: =IF(OR(X41="",AD41=""),"",AD42*AD43/(X42*X43)) ->  | AE46: =IF(OR(Z41="",AD41=""),"",AD42*AD43/(Z42*Z43)) -> 
E47: Mol Weight | F47: =F46*F42+G46*G42+H46*H42 ->  | K47: Cl | L47: 0.0009 | M47: 0.0008 | N47: 0.0005 | O47: 0.0001 | P47: 0.000575 | Q47: 0.6250393812
E48: Biomass composition | F48: =DS1_MEB!Z19 ->  | G48: =DS1_MEB!AA19 ->  | H48: =DS1_MEB!AB19 ->  | K48: K2O | L48: 0.0404 | M48: 0.044 | N48: 0.038 | O48: 0.0163 | P48: 0.034675 | Q48: 0.3603662368 | X48: Reagents | AB48: Products
K49: CaO | L49: 0.0125 | M49: 0.0084 | N49: 0.0062 | O49: 0.0249 | P49: 0.013 | Q49: 0.6424497003 | X49: Reagent 1 | Z49: Reagent 2 | AB49: Product 1 | AD49: Product 2
K50: Ti | L50: 0.0062 | M50: 0.0049 | N50: 0.0057 | O50: 0.0052 | P50: 0.0055 | Q50: 0.1039177467 | X50: CH4 | Z50: O2 | AB50: H2O | AD50: CO2
K51: Fe2O3 | L51: 0.0504 | M51: 0.0467 | N51: 0.0521 | O51: 0.0666 | P51: 0.05395 | Q51: 0.1618063404 | W51: Stoichiometric coefficient | X51: 1 | Z51: 1 | AB51: 2 | AD51: 1
K52: Others | L52: 0.005 | M52: 0.005 | N52: 0.005 | O52: 0.005 | P52: 0.005 | Q52: 0 | W52: Molecular weight | X52: =IF(NOT(X50=""),LOOKUP(X50,$AK$4:$AK$33,$AL$4:$AL$33),"") -> 16 | Z52: =IF(NOT(Z50=""),LOOKUP(Z50,$AK$4:$AK$33,$AL$4:$AL$33),"") -> 32 | AB52: =IF(NOT(AB50=""),LOOKUP(AB50,$AK$4:$AK$33,$AL$4:$AL$33),"") -> 18 | AD52: =IF(NOT(AD50=""),LOOKUP(AD50,$AK$4:$AK$33,$AL$4:$AL$33),"") -> 44
K53: SUM | L53: =SUM(L41:L52) -> 1.0008 | M53: =SUM(M41:M52) -> 0.9999 | N53: =SUM(N41:N52) -> 0.9995 | O53: =SUM(O41:O52) -> 0.9997 | X53: =IF(NOT(X50=""),"kg reagent/kg product","") -> kg reagent/kg product | Z53: =IF(NOT(Z50=""),"kg reagent/kg product","") -> kg reagent/kg product | AB53: =IF(NOT(AB50=""),"kg product/kg reagent","") -> kg product/kg reagent | AD53: =IF(NOT(AD50=""),"kg product/kg reagent","") -> kg product/kg reagent
X54: =IF(NOT(OR(AB50="",X50="")),AB50,"") -> H2O | Y54: =IF(NOT(OR(AD50="",X50="")),AD50,"") -> CO2 | Z54: =IF(NOT(OR(AB50="",Z50="")),AB50,"") -> H2O | AA54: =IF(NOT(OR(AD50="",Z50="")),AD50,"") -> CO2 | AB54: =IF(NOT(OR(X50="",AB50="")),X50,"") -> CH4 | AC54: =IF(NOT(OR(Z50="",AB50="")),Z50,"") -> O2 | AD54: =IF(NOT(OR(AD50="",X50="")),X50,"") -> CH4 | AE54: =IF(NOT(OR(Z50="",AD50="")),Z50,"") -> O2
X55: =IF(OR(X50="",AB50=""),"",X51*X52/(AB51*AB52)) -> 0.4444444444 | Y55: =IF(OR(X50="",AD50=""),"",X51*X52/(AD51*AD52)) -> 0.3636363636 | Z55: =IF(OR(Z50="",AB50=""),"",Z51*Z52/(AB51*AB52)) -> 0.8888888889 | AA55: =IF(OR(Z50="",AD50=""),"",Z51*Z52/(AD51*AD52)) -> 0.7272727273 | AB55: =IF(OR(X50="",AB50=""),"",AB51*AB52/(X51*X52)) -> 2.25 | AC55: =IF(OR(Z50="",AB50=""),"",AB51*AB52/(Z51*Z52)) -> 1.125 | AD55: =IF(OR(X50="",AD50=""),"",AD51*AD52/(X51*X52)) -> 2.75 | AE55: =IF(OR(Z50="",AD50=""),"",AD51*AD52/(Z51*Z52)) -> 1.375
X57: Reagents | AB57: Products
X58: Reagent 1 | Z58: Reagent 2 | AB58: Product 1 | AD58: Product 2
X59: H | Z59: O2 | AB59: H2O
W60: Stoichiometric coefficient | X60: 2 | Z60: 0.5 | AB60: 2
W61: Molecular weight | X61: =IF(NOT(X59=""),LOOKUP(X59,$AK$4:$AK$33,$AL$4:$AL$33),"") -> 1 | Z61: =IF(NOT(Z59=""),LOOKUP(Z59,$AK$4:$AK$33,$AL$4:$AL$33),"") -> 32 | AB61: =IF(NOT(AB59=""),LOOKUP(AB59,$AK$4:$AK$33,$AL$4:$AL$33),"") -> 18 | AD61: =IF(NOT(AD59=""),LOOKUP(AD59,$AK$4:$AK$33,$AL$4:$AL$33),"") -> 
X62: =IF(NOT(X59=""),"kg reagent/kg product","") -> kg reagent/kg product | Z62: =IF(NOT(Z59=""),"kg reagent/kg product","") -> kg reagent/kg product | AB62: =IF(NOT(AB59=""),"kg product/kg reagent","") -> kg product/kg reagent | AD62: =IF(NOT(AD59=""),"kg product/kg reagent","") -> 
X63: =IF(NOT(OR(AB59="",X59="")),AB59,"") -> H2O | Y63: =IF(NOT(OR(AD59="",X59="")),AD59,"") ->  | Z63: =IF(NOT(OR(AB59="",Z59="")),AB59,"") -> H2O | AA63: =IF(NOT(OR(AD59="",Z59="")),AD59,"") ->  | AB63: =IF(NOT(OR(X59="",AB59="")),X59,"") -> H | AC63: =IF(NOT(OR(Z59="",AB59="")),Z59,"") -> O2 | AD63: =IF(NOT(OR(AD59="",X59="")),X59,"") ->  | AE63: =IF(NOT(OR(Z59="",AD59="")),Z59,"") -> 
X64: =IF(OR(X59="",AB59=""),"",X60*X61/(AB60*AB61)) -> 0.05555555556 | Y64: =IF(OR(X59="",AD59=""),"",X60*X61/(AD60*AD61)) ->  | Z64: =IF(OR(Z59="",AB59=""),"",Z60*Z61/(AB60*AB61)) -> 0.4444444444 | AA64: =IF(OR(Z59="",AD59=""),"",Z60*Z61/(AD60*AD61)) ->  | AB64: =IF(OR(X59="",AB59=""),"",AB60*AB61/(X60*X61)) -> 18 | AC64: =IF(OR(Z59="",AB59=""),"",AB60*AB61/(Z60*Z61)) -> 2.25 | AD64: =IF(OR(X59="",AD59=""),"",AD60*AD61/(X60*X61)) ->  | AE64: =IF(OR(Z59="",AD59=""),"",AD60*AD61/(Z60*Z61)) -> 
X66: Reagents | AB66: Products
X67: Biomass | Z67: O2 | AB67: CO2 | AD67: H2O
W68: Stoichiometric coefficient | X68: 1 | Z68: =(G46/2+F46-H46)/2 ->  | AB68: =F46/2 ->  | AD68: =G46/2 -> 
W69: Molecular weight | X69: =F47 ->  | Z69: =AI18 -> 32 | AB69: =AI16 -> 44 | AD69: =AI19 -> 18
X70: kg biomass/kg product | Z70: kg O2/kg product | AB70: kg CO2/kg reagent | AD70: kg H2O/kg reagent
X71: CO2 | Y71: H2O | Z71: CO2 | AA71: H2O | AB71: Biomass | AC71: O2 | AD71: Biomass | AE71: O2 | AF71: kg O2/kg biomass
X72: =X69*X68/(AB69*AB68) ->  | Y72: =X69*X68/(AD69*AD68) ->  | Z72: =Z69*Z68/(AB69*AB68) ->  | AA72: =Z69*Z68/(AD69*AD68) ->  | AB72: =AB69*AB68/(X69*X68) ->  | AC72: =AB69*AB68/(Z69*Z68) ->  | AD72: =AD69*AD68/(X69*X68) ->  | AE72: =AD69*AD68/(Z69*Z68) ->  | AF72: =Z69*Z68/(X69*X68) -> 
X74: Reagents | AB74: Products
X75: Coal | Z75: O2 | AB75: CO2 | AD75: H2O
W76: Stoichiometric coefficient | X76: 1 | Z76: =(G36/2+2*F36-H36)/2 -> 5.082550838 | AB76: =F36 -> 4.657729483 | AD76: =G36/2 -> 1.84964271
W77: Molecular weight | X77: =F37 -> 75.59203921 | Z77: =AI18 -> 32 | AB77: =AI16 -> 44 | AD77: =AI19 -> 18
X78: kg Coal/kg product | Z78: kg O2/kg product | AB78: kg CO2/kg reagent | AD78: kg H2O/kg reagent
X79: CO2 | Y79: H2O | Z79: CO2 | AA79: H2O | AB79: Coal | AC79: O2 | AD79: Coal | AE79: O2 | AF79: kg O2/kg biomass
X80: =X77*X76/(AB77*AB76) -> 0.3688494357 | Y80: =X77*X76/(AD77*AD76) -> 2.270469703 | Z80: =Z77*Z76/(AB77*AB76) -> 0.7936056877 | AA80: =Z77*Z76/(AD77*AD76) -> 4.885076392 | AB80: =AB77*AB76/(X77*X76) -> 2.711133333 | AC80: =AB77*AB76/(Z77*Z76) -> 1.260071614 | AD80: =AD77*AD76/(X77*X76) -> 0.4404375 | AE80: =AD77*AD76/(Z77*Z76) -> 0.2047050895 | AF80: =Z77*Z76/(X77*X76) -> 2.151570833

Sheet DS1_MEB (hidden)
C1: Indicate the clinker production | D1: 0.08250825083 | E1: kg/s
I2: Closure mass balance | L2: =1-ABS(N8/J11-1) ->  | AG2: Data type | AH2: Magnitude | AI2: Units | AJ2: Range/List | AK2: Effect
U3: Clinker flow | V3: =D1/LOOKUP(E1,AD6:AD8,AC3:AC5) -> 0.08250825083 | W3: kg/s | AB3: Factors | AC3: 1 | AG3: User Inputs | AH3: Installed energy | AI3: MW | AJ3: 0.01-5
C4: Feedstock type | D4: ='DS1'!B21 -> 0 0 | I4: MASS BALANCE | Q4: Energy balance | AC4: 28800 | AH4: Feedstock type | AI4: - | AJ4: Feedstock list
C5: Type | D5: ='DS1'!B22 ->  | I5: IN | M5: OUT | Q5: IN | U5: Target capacity | V5: ='DS1'!B19 -> 0 | W5: MW | X5: BETWEEN 0.01 AND 5 | AC5: 3.6 | AG5: Amendable parameters | AH5: Cement production | AI5: - | AJ5: Wet/ dry(1-stage)/ dry(multi-stage) | AK5: Determines the energy demand per kg of clinker
I6: =V9 ->  | J6: =J25*(1+J26) ->  | K6: kg/s (w.b.) | M6: Clinker | N6: =N11 ->  | O6: kg/s | Q6: =V9 ->  | R6: =J25*J27 ->  | S6: MW | U6: Type | V6: =Feedstocks_Pathways!G7 -> 0 | AD6: kg/s | AH6: Biomass use/coal substitution | AI6: % | AJ6: 0-100 | AK6: Determines the percentage of the energy installed used to produced energy
B7: Installed energy | C7: MIN | D7: 10 | E7: kW | I7: Biomass | J7: =J41 ->  | K7: kg/s (w.b.) | M7: Flue gases | N7: =SUM(N42:N45) ->  | O7: kg/s | Q7: Biomass | R7: =J41*J43 ->  | S7: MW | U7: Energy demand | V7: =LOOKUP(V6,DS1_Information!E3:E5,DS1_Information!F3:F5) ->  | W7: MJ/kg or GJ/t | AD7: t/a | AH7: Excess air | AI7: % | AJ7: 0-100 | AK7: Excess air for combustion
D8: 0.01 | E8: MW | I8: Air | J8: =SUM(J57:J58) ->  | K8: kg/s | M8: SUM | N8: =SUM(N6:N7) ->  | O8: kg/s | Q8: Total | R8: =SUM(R6:R7) ->  | S8: MW | U8: Biomass use/ Fossil fuel substitution | V8: ='DS1'!B23 ->  | AD8: t/h | AH8: Fossil fuel | AI8: - | AJ8: Coal/Methane (95%)/ Natural Gas | AK8: Determines properties of the fossil fuel which is going to be substituted
I9: Clay | J9: =J18 ->  | K9: kg/s | U9: Fuel | V9: ='DS1'!B20 ->  | AH9: Biomass/coal composition | AI9: % | AJ9: 0-100 | AK9: Composition of coal and biomass for mass balance
C10: MAX | D10: 5000 | E10: kW | I10: Limestone | J10: =J14 ->  | K10: kg/s | M10: Clinker | Q10: Consumed | U10: Hours per year | V10: 8000 | X10: kg biomass/ kg clinker | AH10: Silica content in biomass ash | AI10: % | AJ10: 0-100 | AK10: Silica added to clinker from biomass
D11: 5 | E11: MW | I11: SUM | J11: =SUM(J6:J10) ->  | K11: kg/s | M11: Total flow | N11: =V5/V7 ->  | O11: kg/s | Q11: Reaction | R11: =DS1_Information!G22*N11 ->  | S11: MW | U11: Hours per day | V11: 24 | X11: kg biomass/ MW | AG11: Methodology | AH11: 1. Calculate biomass and coal to satisfy energy demand and coal substitution coefficient
M12: CaO | N12: =$N$11*DS1_Information!L14 ->  | O12: kg/s | U12: Clinker production | AH12: 2. Calculate the clinker production based on installed energy
I13: Limestone | M13: SiO2 | N13: =$N$11*DS1_Information!L15 ->  | O13: kg/s | Q13: OUT | U13: MAX | V13: 5 | W13: MW | X13: =V13/V7 ->  | Y13: kg/s | Z13: =X13*3600/1000 ->  | AA13: t/h | AB13: =ROUND(Z13*8000,-3) ->  | AC13: t/a | AH13: 3. Components (Silica, lime and others) added to the clinker by the fuels
I14: Limestone | J14: =J15*DS1_Information!X10 ->  | K14: kg/s | M14: Al2O3 | N14: =$N$11*DS1_Information!L16 ->  | O14: kg/s | Q14: Total (Flue gases & clinker) | R14: =R8-R11 ->  | S14: MW | U14: MIN | V14: 10 | W14: kW | X14: =V14/1000/V7 ->  | Y14: kg/s | Z14: =X14*3600/1000 ->  | AA14: t/h | AB14: =ROUND(Z14*8000,-1) ->  | AC14: t/a | AH14: 4. Adjust silica (SiO2) from clinker with clay. Calculate the flow of alumina (Al2O3), iron oxide (Fe2O3) and lime (CaO) from clay
B15: Clinker production | C15: MIN | D15: =X14 ->  | E15: =AD6 -> kg/s | I15: Lime from limestone | J15: =N12-J22 ->  | K15: kg/s | M15: Fe2O3 | N15: =$N$11*DS1_Information!L17 ->  | O15: kg/s | AH15: 5. Adjust lime (CaO) from clinker with limestone (CaCO3)
D16: =Z14 ->  | E16: =AD8 -> t/h | M16: Others theory | N16: =N11-SUM(N12:N15) ->  | O16: kg/s | AH16: 6. Calculate the oxygen to burn the biomass and coal according to the reactions on sheet "Information" and composition
D17: =AB14 ->  | E17: =AD7 -> t/a | I17: Clay | M17: Exit | U17: Energy needed | V17: =N11*DS1_Information!F6 ->  | W17: MW required | Y17: Composition (d.b.) | AH17: 7. Correlate with nitrogen and excess air to find the total air input
I18: Flow | J18: =J19/DS1_Information!T43 ->  | K18: kg/s | M18: Total flow | N18: =SUM(N19:N22) ->  | O18: kg/s | Q18: check | R18: =J11-N8 ->  | S18: kg/s | V18: 500 | W18: kW | Z18: C | AA18: H | AB18: O | AG18: Inputs Results | AH18: Coal | AI18: kg/s (w.b.)
C19: MAX | D19: =X13 ->  | E19: =AD6 -> kg/s | I19: SiO2 | J19: =N13 ->  | K19: kg/s | M19: CaO | N19: =J35+J15+J22 ->  | O19: kg/s | R19: =R18/J11 ->  | U19: ='DS1'!B20 ->  | V19: =J25*J27 ->  | W19: MW | Y19: Biomass | Z19: =Feedstocks_Pathways!AE58/100 ->  | AA19: =Feedstocks_Pathways!AF58/100 ->  | AB19: =Feedstocks_Pathways!AH58/100 ->  | AH19: Biomass | AI19: kg/s (w.b.)
D20: =Z13 ->  | E20: =AD8 -> t/h | I20: Al2O3 | J20: =N14 ->  | K20: kg/s | M20: SiO2 | N20: =J32+J19+J41*(1-J42)*J44*J45 ->  | O20: kg/s | U20: Biomass | V20: =J41*J43 ->  | W20: MW | Y20: Coal | Z20: 0.7394 | AA20: 0.0489375 | AB20: 0.2116625 | AH20: Air | AI20: kg/s
D21: =AB13 ->  | E21: =AD7 -> t/a | I21: Fe2O3 | J21: =N15 ->  | K21: kg/s | M21: Al2O3 | N21: =J33+J20 ->  | O21: kg/s | AH21: Clay | AI21: kg/s
I22: CaO | J22: =J18*DS1_Information!T46 ->  | K22: kg/s | M22: Fe2O3 | N22: =J34+J21 ->  | O22: kg/s | AH22: Limestone | AI22: kg/s
M23: Others | N23: =J41*(1-J42)*J44*(1-J45) ->  | O23: kg/s | AG23: Outputs Results | AH23: Clinker | AI23: kg/s
I24: =Feedstocks_Pathways!G6 -> 0 | M24: Clinker composition | AH24: Flue gases | AI24: kg/s
I25: Flow | J25: =(100-V8)%*V5/J27 ->  | K25: kg/s | M25: CaO | N25: =N19/$N$18 ->  | AG25: Closure Results | AH25: Closure | AI25: % | AJ25: 0-100 | AK25: Accuracy of the calculations
I26: Moisture content | J26: =LOOKUP(I24,DS1_Information!K36:K38,DS1_Information!L36:L38) ->  | M26: SiO2 | N26: =N20/$N$18 -> 
I27: LHV | J27: =LOOKUP(I24,DS1_Information!K36:K38,DS1_Information!M36:M38) ->  | K27: MJ/kg (w.b.) | M27: Al2O3 | N27: =N21/$N$18 -> 
I28: Ash content | J28: =LOOKUP(I24,DS1_Information!K36:K38,DS1_Information!Q36:Q38) ->  | K28: d.b. | M28: Fe2O3 | N28: =N22/$N$18 -> 
I29: FC+VM | J29: =(1-J28)*J25*(1-J26) ->  | K29: kg/s | M29: Others | N29: =N23/N18 -> 
I30: Ash flow | J30: =IF(N11-J15-J18<0,0,J25*(1-J26)*J28) ->  | K30: kg/s
I31: Ash flow from fossil fuel | M31: Flue gas from fossil fuel
I32: SiO2 | J32: =J30*DS1_Information!K9 ->  | K32: kg/s | M32: H2O | N32: =J25*J26+J29*DS1_Information!AD80 ->  | O32: kg/s
I33: Al2O3 | J33: =DS1_Information!L10*J30 ->  | K33: kg/s | M33: CO2 | N33: =J29*DS1_Information!AB80 ->  | O33: kg/s
I34: Fe2O3 | J34: =DS1_Information!M10*J30 ->  | K34: kg/s | M34: Flue gas from limestone
I35: CaO | J35: =DS1_Information!N10*J30 ->  | K35: kg/s | M35: CO2 | N35: =J14*DS1_Information!AD10 ->  | O35: kg/s
M36: Flue gases from biomass
I37: Air for coal | M37: CO2 | N37: =J41*(J47)*(1-J42)*DS1_Information!AB72 ->  | O37: kg/s
I38: O2 IN comb | J38: =IF(J29=0,0,N33*DS1_Information!Z72) ->  | K38: kg/s | M38: H2O | N38: =J41*(J47)*(1-J42)*DS1_Information!AD72+J42*J41 ->  | O38: kg/s
I40: Biomass type | J40: =Feedstocks_Pathways!W56&" "&Feedstocks_Pathways!W57 -> 0 0 | K40: -
I41: Flow | J41: =V5*V8%/J43 ->  | K41: kg/s (w.b.) | M41: Flue gas total
I42: Moisture content | J42: =Feedstocks_Pathways!Y58/100 ->  | K42: wt.% | M42: O2 | N42: =J57-J38-J51 ->  | O42: kg/s
I43: LHV | J43: =Feedstocks_Pathways!AC58 ->  | K43: MJ/kg | L43: ASSUME IT IS ALL SILICA | M43: N2 | N43: =J58 ->  | O43: kg/s
I44: Ash content | J44: =Feedstocks_Pathways!Z58/100 ->  | K44: d.b. | M44: H2O | N44: =SUM(N38,N32) ->  | O44: kg/s
I45: %SiO2 in ash | J45: 0.6 | M45: CO2 | N45: =SUM(N33,N35,N37) ->  | O45: kg/s
I46: Fixed carbon | J46: =Feedstocks_Pathways!AB58/100 ->  | K46: d.b.
I47: Volatile matter | J47: =Feedstocks_Pathways!AA58/100 ->  | K47: d.b.
I49: Air for biomass
I51: O2 IN comb | J51: =N37*DS1_Information!Z80 ->  | K51: kg/s
I53: O2 needed | J53: =J38+J51 -> 
I54: Excess air | J54: ='DS1'!B24 -> 0.15
I55: O2 in air | J55: 0.21
I56: N2 in air | J56: 0.79
I57: O2 IN | J57: =J53*(1+J54) ->  | K57: kg/s
I58: N2 IN | J58: =J57/J55*J56 ->  | K58: kg/s

Sheet Methodology

Sheet DS1
A2: Data summary from model
A3: Mass Balance | B3: SI | D3: Annual | G3: DS1
A4: Biomass (d.b.) | B4: =I6 ->  | C4: kg/s | D4: =B4*$B$18*3600/1000 ->  | E4: annual tonnes
A5: Biomass (a.r.) | B5: =I7 ->  | C5: kg/s | E5: annual tonnes
A6: Fossil fuel | B6: =I8 ->  | C6: kg/s | E6: annual tonnes | H6: Biomass (d.b.) | I6: =I7*(1-DS1_MEB!J42) ->  | J6: kg/s
A7: Clay | B7: =I9 ->  | C7: kg/s | E7: annual tonnes | H7: Biomass (a.r.) | I7: =DS1_MEB!J41 ->  | J7: kg/s | L7: CALCINER | P7: Heat output | Q7: =DS1_MEB!R14 ->  | R7: MW
A8: Limestone | B8: =I10 ->  | C8: kg/s | E8: annual tonnes | H8: Fossil fuel | I8: =DS1_MEB!J25 ->  | J8: kg/s | L8: Process Type
A9: Combustion air | B9: =M11 ->  | C9: kg/s | E9: annual tonnes | H9: Clay | I9: =DS1_MEB!J18 ->  | J9: kg/s | L9: =B22 ->  | P9: Flue gases | Q9: =DS1_MEB!N7 ->  | R9: kg/s
A10: Flue gases | B10: =Q9 ->  | C10: kg/s | E10: annual tonnes | H10: Limestone | I10: =DS1_MEB!J14 ->  | J10: kg/s | P10: Clinker | Q10: =DS1_MEB!N6 ->  | R10: kg/s
A11: Clinker | B11: =Q10 ->  | C11: kg/s | E11: annual tonnes | L11: Combustion air | M11: =DS1_MEB!J8 ->  | N11: kg/s
A12: Energy balance | L12: Excess air | M12: =B24 -> 0.15
A13: Heat input | B13: =M5 -> 0 | C13: MW | D13: =B13*B18 -> 0 | E13: Annual MWh
A14: Heat output | B14: =Q7 ->  | C14: MW | D14: =B14*B18 ->  | E14: annual MWh
A16: User defined parameters | E16: Operating information | J16: Operating limits:
A17: Capacity factor / plant availability | B17: =Feedstocks_Pathways!C12 -> 0 | E17: Calciner operating temperature | F17: =DS1_Information!F11 -> 1450 | G17: °C | J17: Installed energy | K17: MIN | L17: 10 | M17: kW
A18: Operational hours | B18: =Feedstocks_Pathways!I24 -> 0 | C18: h | L18: 0.01 | M18: MW
A19: Target capacity | B19: =Feedstocks_Pathways!B24 -> 0 | C19: MW | K19: MAX | L19: 5000 | M19: kW
A20: Fossil fuel type | B20: =B50 ->  | L20: 5 | M20: MW
A21: Feedstock | B21: =DS1_MEB!J40 -> 0 0 | J21: Clinker production | K21: MIN | L21: 0.002562788314 | M21: kg/s
A22: Process type | B22: =B51 ->  | L22: 0.009226037929 | M22: t/h
A23: Fossil fuel substitution by biomass (% of mass w.b.) | B23: =B53 ->  | L23: 70 | M23: t/a
A24: Excess air | B24: 0.15 | K24: MAX | L24: 1.281394157 | M24: kg/s
L25: 4.613018965 | M25: t/h
L26: 37000 | M26: t/a
A49: Inputs DS1 | F49: Output
A50: =A20 -> Fossil fuel type | B50: =IF(Feedstocks_Pathways!E22=Feedstocks_Pathways!C54,Feedstocks_Pathways!G6,'DS1'!D50) ->  | D50: Coal | H50: Dry basis | I50: Wet basis | M50: Density fossil fuel | N50: =LOOKUP(B20,DS1_Information!K36:K38,DS1_Information!T36:T38) ->  | O50: kg/m3
A51: =A22 -> Process type | B51: =IF(Feedstocks_Pathways!E22=Feedstocks_Pathways!C54,Feedstocks_Pathways!G7,'DS1'!D51) ->  | D51: Dry (multi-stage) | F51: Biomass flow | G51: kg/s | H51: =B4 ->  | I51: =B5 -> 
D52: 0.1 | G52: annual tonnes | H52: =D4 ->  | I52: =D5 -> 
A53: =A23 -> Fossil fuel substitution by biomass (% of mass w.b.) | B53: =IF(Feedstocks_Pathways!E22="DS1",Feedstocks_Pathways!G9,0) ->  | F53: Feedstock 1 [annual tonnes] | H53: =IF(Feedstocks_Pathways!C10=0,'DS1'!H52,I53*(1-Feedstocks_Pathways!Y56/100)) ->  | I53: =I52*(1-Feedstocks_Pathways!C10) -> 
F54: Feedstock 2 [annual tonnes] | H54: =I54*(1-Feedstocks_Pathways!Y57/100) ->  | I54: =I52*(Feedstocks_Pathways!C10) ->  | N54: annual tonnes | O54: Annual Nm3 | Q54: =DS1_Information!K36 -> Coal
F55: =(M55&" ["&(IF(M55=Q54,N54,IF(M55=Q55,N54,O54)))&"]") ->  | I55: =IF(M55=Q54,N55,IF(M55=Q55,N55,O55)) ->  | M55: =B20 ->  | N55: =D6 ->  | O55: =D6*1000*N50 ->  | Q55: =DS1_Information!K37 -> Petcoke
F56: Cement [annual tonnes] | I56: =D11/DS1_Information!Q3 ->  | Q56: =DS1_Information!K38 -> Natural Gas
F57: - | I57: -
F58: - | I58: -

Sheet DS2_Information (hidden)
B2: Energy demand | C2: GJ/t MT (MJ/kg MT) | E2: Water heats | K2: Moisture content (application) | L2: Ash content | M2: Volatile matter | N2: Fixed carbon | O2: LHV | P2: HHV (energy potential) | Q2: % in briquettes
B3: Min | C3: 30.5 | E3: Vaporization heat | F3: 2256.4 | G3: kJ/kg | J3: Hardwood - bark | K3: 25 | L3: 10 | M3: 75 | N3: 15 | O3: 13 | P3: 17 | Q3: Eucalyptus and pine wood | AD3: Molecular weight | AG3: Molecular weight
B4: Max | C4: 34.7 | E4: Water | F4: 4.187 | G4: kJ/kgK | J4: Hardwood - residues | K4: 25 | L4: 1.2 | M4: 84 | N4: 14.8 | O4: 14 | P4: 19 | U4: Reagents | Y4: Products | AD4: Ca | AE4: 40.1 | AG4: Al | AH4: 27
E5: Steam | F5: 1.996 | G5: kJ/kgK | I5: For briquettes | J5: Sawdust | K5: 20 | L5: 0.6 | M5: 83.11 | N5: 16.82 | O5: 15 | P5: 19 | Q5: =DS2_MEB!C16 -> 0 | U5: Reagent 1 | W5: Reagent 2 | Y5: Product 1 | AA5: Product 2 | AD5: Si | AE5: 28.1 | AG5: C | AH5: 12
B6: Thermal | C6: 0.9 | D6: (not used) | E6: T exit steam | F6: 150 | G6: °C | J6: Macadamia shell | K6: 10 | L6: 0.41 | M6: 76.22 | N6: 23.78 | O6: 18.5 | P6: 21 | Q6: =DS2_MEB!C17 -> 0 | U6: H | W6: O2 | Y6: H2O | AD6: Al | AE6: 27 | AG6: Ca | AH6: 40.1
B7: Electricity | C7: =1-C6 -> 0.1 | D7: (not used) | E7: Vaporization T | F7: 100 | G7: °C | J7: Cashew | K7: 6.47 | L7: 1.05 | M7: 72 | N7: 20.48 | O7: 19 | P7: 20.5 | Q7: =DS2_MEB!C18 -> 0 | T7: Stoichiometric coefficient | U7: 2 | W7: 0.5 | Y7: 1 | AD7: Fe | AE7: 55.8 | AG7: CaCO3 | AH7: 100.1
J8: Rice husk | K8: 10 | L8: 18 | M8: 67 | N8: 15 | O8: 13 | P8: 15 | Q8: =DS2_MEB!C19 -> 0 | T8: Molecular weight | U8: =IF(NOT(U6=""),LOOKUP(U6,$AG$4:$AG$33,$AH$4:$AH$33),"") -> 1 | W8: =IF(NOT(W6=""),LOOKUP(W6,$AG$4:$AG$33,$AH$4:$AH$33),"") -> 32 | Y8: =IF(NOT(Y6=""),LOOKUP(Y6,$AG$4:$AG$33,$AH$4:$AH$33),"") -> 18 | AA8: =IF(NOT(AA6=""),LOOKUP(AA6,$AG$4:$AG$33,$AH$4:$AH$33),"") ->  | AD8: S | AE8: 32.1 | AG8: CaO | AH8: 56.1
B9: kg steam/kg made tea | C9: ONLY DRYING | E9: Heating distribution | G9: (not used) | J9: Briquettes | K9: =(K5*$Q$5+K6*$Q$6+K7*$Q$7+K8*$Q$8) -> 0 | L9: =L5*$Q$5+L6*$Q$6+L7*$Q$7+L8*$Q$8 -> 0 | M9: =M5*$Q$5+M6*$Q$6+M7*$Q$7+M8*$Q$8 -> 0 | N9: =N5*$Q$5+N6*$Q$6+N7*$Q$7+N8*$Q$8 -> 0 | O9: =O5*$Q$5+O6*$Q$6+O7*$Q$7+O8*$Q$8 -> 0 | P9: =P5*$Q$5+P6*$Q$6+P7*$Q$7+P8*$Q$8 -> 0 | U9: =IF(NOT(U6=""),"kg reagent/kg product","") -> kg reagent/kg product | W9: =IF(NOT(W6=""),"kg reagent/kg product","") -> kg reagent/kg product | Y9: =IF(NOT(Y6=""),"kg product/kg reagent","") -> kg product/kg reagent | AA9: =IF(NOT(AA6=""),"kg product/kg reagent","") ->  | AD9: O | AE9: 16 | AG9: CaSO4 | AH9: 136.2
B10: Min | C10: 3.5 | E10: =H31 -> 0.65 | F10: Drying | J10: Firewood | K10: =AVERAGE(K3:K4) -> 25 | L10: 3 | M10: 83 | N10: 16 | O10: 13 | P10: =AVERAGE(P3:P4) -> 18 | U10: =IF(NOT(OR(Y6="",U6="")),Y6,"") -> H2O | V10: =IF(NOT(OR(AA6="",U6="")),AA6,"") ->  | W10: =IF(NOT(OR(Y6="",W6="")),Y6,"") -> H2O | X10: =IF(NOT(OR(AA6="",W6="")),AA6,"") ->  | Y10: =IF(NOT(OR(U6="",Y6="")),U6,"") -> H | Z10: =IF(NOT(OR(W6="",Y6="")),W6,"") -> O2 | AA10: =IF(NOT(OR(AA6="",U6="")),U6,"") ->  | AB10: =IF(NOT(OR(W6="",AA6="")),W6,"") ->  | AD10: H | AE10: 1 | AG10: CaSO4.2H2O | AH10: 172.2
B11: Max | C11: 4 | E11: =1-E10 -> 0.35 | F11: Withering | U11: =IF(OR(U6="",Y6=""),"",U7*U8/(Y7*Y8)) -> 0.1111111111 | V11: =IF(OR(U6="",AA6=""),"",U7*U8/(AA7*AA8)) ->  | W11: =IF(OR(W6="",Y6=""),"",W7*W8/(Y7*Y8)) -> 0.8888888889 | X11: =IF(OR(W6="",AA6=""),"",W7*W8/(AA7*AA8)) ->  | Y11: =IF(OR(U6="",Y6=""),"",Y7*Y8/(U7*U8)) -> 9 | Z11: =IF(OR(W6="",Y6=""),"",Y7*Y8/(W7*W8)) -> 1.125 | AA11: =IF(OR(U6="",AA6=""),"",AA7*AA8/(U7*U8)) ->  | AB11: =IF(OR(W6="",AA6=""),"",AA7*AA8/(W7*W8)) ->  | AD11: C | AE11: 12 | AG11: CO2 | AH11: 44
I12: IN PERCENTAGES | AD12: CaSO4 | AE12: =AE4+AE8+AE9*4 -> 136.2 | AG12: Fe | AH12: 55.8
B13: 18.79 | C13: MJ/kgMT thermal energy | K13: =K2 -> Moisture content (application) | L13: Ash content | M13: Volatile matter | N13: Fixed carbon | O13: LHV | P13: HHV (energy potential) | Q13: % in briquettes | U13: Reagents | Y13: Products | AD13: CaO | AE13: =($AE$9+$AE$4) -> 56.1 | AG13: H | AH13: 1
B14: 1.98 | C14: MJ/kgMT electrical | J14: =J3 -> Hardwood - bark | K14: =K3/100 -> 0.25 | L14: =L3/100 -> 0.1 | M14: =M3/100 -> 0.75 | N14: =N3/100 -> 0.15 | O14: =O3 -> 13 | P14: =P3 -> 17 | Q14: =Q3 -> Eucalyptus and pine wood | U14: Reagent 1 | W14: Reagent 2 | Y14: Product 1 | AA14: Product 2 | AD14: SO3 | AE14: =($AE$9*3+$AE$8) -> 80.1 | AG14: H2O | AH14: 18
B15: Tea look-up | J15: Hardwood - residues | K15: =K4/100 -> 0.25 | L15: 0.012 | M15: 0.84 | N15: 0.148 | O15: =O4 -> 14 | P15: 19 | U15: C | W15: O2 | Y15: CO2 | AD15: CaCO3 | AE15: =($AE$9*3+$AE$11+$AE$4) -> 100.1 | AG15: O | AH15: 16
B16: Drying | C16: =C17*H31 -> 12.35 | D16: MJ/kgMT | E16: LTS value 15.8 | I16: =Q5 -> 0 | J16: Sawdust | K16: 0.2 | L16: 0.006 | M16: 0.8311 | N16: 0.1682 | O16: 15 | P16: 19 | T16: Stoichiometric coefficient | U16: 1 | W16: 1 | Y16: 1 | AD16: CO2 | AE16: =($AE$9*2+$AE$11) -> 44 | AG16: O2 | AH16: 32
B17: Drying + Withering | C17: 19 | D17: MJ/kgMT | E17: LTS value 22.7 | I17: =Q6 -> 0 | J17: Macadamia shell | K17: 0.1 | L17: 0.0041 | M17: 0.7622 | N17: 0.2378 | O17: 18.5 | P17: 21 | T17: Molecular weight | U17: =IF(NOT(U15=""),LOOKUP(U15,$AG$4:$AG$33,$AH$4:$AH$33),"") -> 12 | W17: =IF(NOT(W15=""),LOOKUP(W15,$AG$4:$AG$33,$AH$4:$AH$33),"") -> 32 | Y17: =IF(NOT(Y15=""),LOOKUP(Y15,$AG$4:$AG$33,$AH$4:$AH$33),"") -> 44 | AA17: =IF(NOT(AA15=""),LOOKUP(AA15,$AG$4:$AG$33,$AH$4:$AH$33),"") ->  | AD17: CaSO4.2H2O | AE17: =AE12+2*(AE19) -> 172.2 | AG17: S | AH17: 32.1
I18: =Q7 -> 0 | J18: Cashew | K18: 0.0647 | L18: 0.0105 | M18: 0.72 | N18: 0.2048 | O18: 19 | P18: 20.5 | U18: =IF(NOT(U15=""),"kg reagent/kg product","") -> kg reagent/kg product | W18: =IF(NOT(W15=""),"kg reagent/kg product","") -> kg reagent/kg product | Y18: =IF(NOT(Y15=""),"kg product/kg reagent","") -> kg product/kg reagent | AA18: =IF(NOT(AA15=""),"kg product/kg reagent","") ->  | AD18: O2 | AE18: =AE9*2 -> 32 | AG18: Si | AH18: 28.1
B19: Withering | C19: =C17*H32 -> 6.65 | D19: MJ/kgMT | E19: LTS value 6.8 | I19: =Q8 -> 0 | J19: Rice husk | K19: 0.1 | L19: 0.18 | M19: 0.67 | N19: 0.15 | O19: 13 | P19: 15 | U19: =IF(NOT(OR(Y15="",U15="")),Y15,"") -> CO2 | V19: =IF(NOT(OR(AA15="",U15="")),AA15,"") ->  | W19: =IF(NOT(OR(Y15="",W15="")),Y15,"") -> CO2 | X19: =IF(NOT(OR(AA15="",W15="")),AA15,"") ->  | Y19: =IF(NOT(OR(U15="",Y15="")),U15,"") -> C | Z19: =IF(NOT(OR(W15="",Y15="")),W15,"") -> O2 | AA19: =IF(NOT(OR(AA15="",U15="")),U15,"") ->  | AB19: =IF(NOT(OR(W15="",AA15="")),W15,"") ->  | AD19: H2O | AE19: =2*AE10+AE9 -> 18 | AG19: SO3 | AH19: 80.1
B20: Total Energy demand | C20: =C16+C19 -> 19 | D20: MJ/kgMT | E20: (not used) | J20: Briquettes | K20: 0 | L20: 0 | M20: 0 | N20: 0 | O20: 0 | P20: 0 | U20: =IF(OR(U15="",Y15=""),"",U16*U17/(Y16*Y17)) -> 0.2727272727 | V20: =IF(OR(U15="",AA15=""),"",U16*U17/(AA16*AA17)) ->  | W20: =IF(OR(W15="",Y15=""),"",W16*W17/(Y16*Y17)) -> 0.7272727273 | X20: =IF(OR(W15="",AA15=""),"",W16*W17/(AA16*AA17)) ->  | Y20: =IF(OR(U15="",Y15=""),"",Y16*Y17/(U16*U17)) -> 3.666666667 | Z20: =IF(OR(W15="",Y15=""),"",Y16*Y17/(W16*W17)) -> 1.375 | AA20: =IF(OR(U15="",AA15=""),"",AA16*AA17/(U16*U17)) ->  | AB20: =IF(OR(W15="",AA15=""),"",AA16*AA17/(W16*W17)) ->  | AD20: SO4
B21: Ultimate analysis (d.b.) biomass fuels | J21: Firewood | K21: =K10/100 -> 0.25 | L21: 0.03 | M21: 0.83 | N21: 0.16 | O21: =O10 -> 13 | P21: 18 | AD21: Biomass | AE21: =L31 -> 
C22: Min | D22: Max | E22: Average | U22: Reagents | Y22: Products
B23: C | C23: 43.2 | D23: 54.9 | E23: 0.5 | U23: Reagent 1 | W23: Reagent 2 | Y23: Product 1 | AA23: Product 2
B24: H | C24: 4.4 | D24: 7.2 | E24: 0.05 | K24: BIOMASS | U24: Biomass | W24: O2 | Y24: CO2 | AA24: H2O
B25: O | C25: 34.1 | D25: 48.2 | E25: =40%/2 -> 0.2 | L25: C | M25: H | N25: O | T25: Stoichiometric coefficient | U25: 1 | W25: =(M30/2+L30*2-N30)/2 ->  | Y25: =L30 ->  | AA25: =M30/2 -> 
K26: Molar weight | L26: =AE11 -> 12 | M26: =AE10 -> 1 | N26: =AE9 -> 16 | T26: Molecular weight | U26: =AE21 ->  | W26: =IF(NOT(W24=""),LOOKUP(W24,$AG$4:$AG$33,$AH$4:$AH$33),"") -> 32 | Y26: =IF(NOT(Y24=""),LOOKUP(Y24,$AG$4:$AG$33,$AH$4:$AH$33),"") -> 44 | AA26: =IF(NOT(AA24=""),LOOKUP(AA24,$AG$4:$AG$33,$AH$4:$AH$33),"") -> 18
B27: O2 | C27: 0.21 | K27: Composition | L27: =L32 ->  | M27: =M32 ->  | N27: =N32 ->  | U27: =IF(NOT(U24=""),"kg reagent/kg product","") -> kg reagent/kg product | W27: =IF(NOT(W24=""),"kg reagent/kg product","") -> kg reagent/kg product | Y27: =IF(NOT(Y24=""),"kg product/kg reagent","") -> kg product/kg reagent | AA27: =IF(NOT(AA24=""),"kg product/kg reagent","") -> kg product/kg reagent
B28: N2 | C28: =1-C27 -> 0.79 | K28: Mol tranf | L28: =L27/L26 ->  | M28: =M27/M26 ->  | N28: =N27/N26 ->  | U28: =IF(NOT(OR(Y24="",U24="")),Y24,"") -> CO2 | V28: =IF(NOT(OR(AA24="",U24="")),AA24,"") -> H2O | W28: =IF(NOT(OR(Y24="",W24="")),Y24,"") -> CO2 | X28: =IF(NOT(OR(AA24="",W24="")),AA24,"") -> H2O | Y28: Biomass | Z28: =IF(NOT(OR(W24="",Y24="")),W24,"") -> O2 | AA28: Biomass | AB28: =IF(NOT(OR(W24="",AA24="")),W24,"") -> O2
K29: Mol fraction | L29: =L28/SUM($L$28:$N$28) ->  | M29: =M28/SUM($L$28:$N$28) ->  | N29: =N28/SUM($L$28:$N$28) ->  | U29: =IF(OR(U24="",Y24=""),"",U25*U26/(Y25*Y26)) ->  | V29: =IF(OR(U24="",AA24=""),"",U25*U26/(AA25*AA26)) ->  | W29: =IF(OR(W24="",Y24=""),"",W25*W26/(Y25*Y26)) ->  | X29: =IF(OR(W24="",AA24=""),"",W25*W26/(AA25*AA26)) ->  | Y29: =IF(OR(U24="",Y24=""),"",Y25*Y26/(U25*U26)) ->  | Z29: =IF(OR(W24="",Y24=""),"",Y25*Y26/(W25*W26)) ->  | AA29: =IF(OR(U24="",AA24=""),"",AA25*AA26/(U25*U26)) ->  | AB29: =IF(OR(W24="",AA24=""),"",AA25*AA26/(W25*W26)) -> 
D30: Pressure (bar) | E30: Temperature (degree) | F30: Enthalpy (kJ/kg) | H30: energy demand in tea processing | K30: Formula | L30: =L29/MIN($L$29:$N$29) ->  | M30: =M29/MIN($L$29:$N$29) ->  | N30: =N29/MIN($L$29:$N$29) -> 
B31: Steam | C31: Drying | D31: 10 | E31: 150 | F31: 2780 | G31: SUPERSTEAM | H31: 0.65 | K31: Mol Weight | L31: =L30*L26+M30*M26+N30*N26 -> 
C32: Withering | D32: 4 | E32: 90 | F32: 2107.71 | H32: 0.35 | K32: Biomass composition | L32: =DS2_MEB!C22 ->  | M32: =DS2_MEB!C23 ->  | N32: =DS2_MEB!C24 -> 
B35: Water (20 degrees) | C35: 83.92 | D35: kJ/kg | E35: Enthalpy
B37: Energy required | C37: =DS2_MEB!H22 -> 0
B38: Required for: | C38: ='DS2'!B23 -> 
C40: steam, kg/s
B41: Drying | C41: =C37*1000/F31 -> 0
B42: Drying + Withering | C42: =(H31*C37*1000)/F31+(H32*C37*1000)/F32 -> 0
B44: Withering | C44: =C37*1000/F32 -> 0

Sheet DS2_MEB (hidden)
J1: =1-ABS(L4/H4-1) -> 
G2: Mass balance | AG2: Data type | AH2: Magnitude | AI2: Units | AJ2: Range/List | AK2: Effect
B3: WATER/STEAM produced in heat exchanger | G3: IN | K3: OUT | AG3: User Inputs | AH3: Installed energy | AI3: MW | AJ3: 0.01-5
B4: Water | C4: =IF(C11=DS2_Information!B16,DS2_Information!C41,IF(DS2_MEB!C11=DS2_Information!B17,DS2_Information!C42,IF(DS2_MEB!C11=DS2_Information!B19,DS2_Information!C44,DS2_Information!C43))) -> 0 | D4: kg/s | G4: Total | H4: =SUM(H5,H6) ->  | I4: kg/s | K4: Total | L4: =SUM(L5:L6) ->  | M4: kg/s | AH4: Biomass substitution | AI4: % | AJ4: 0-100 | AK4: Amount of firewood substituted by mixture of other biomasses
C5: =C4*3.6 -> 0 | D5: t/h | G5: Fuel total | H5: =H7+H8 ->  | I5: kg/s (w.b.) | K5: Flue gases | L5: =SUM(L8:L12) ->  | M5: kg/s | AG5: Amendable parameters | AH5: Energy objective | AI5: - | AJ5: Drying/ Thermal/ Total/ Withering | AK5: Determines the energy demand per kg of tea
B6: T in | C6: 20 | D6: °C | G6: Air | H6: =H18/DS2_Information!C27 ->  | I6: kg/s | K6: Ash content | L6: =H5*(1-H11)*(H12+H14) ->  | M6: kg/s | AI6: °C | AJ6: 0-100 / 100-500 | AK6: Temperature at which water enters the system and steam exits
G7: Firewood | H7: =C14/DS2_Information!O21*(100-H9)% -> 0 | I7: kg/s | AH7: Yield steam production | AI7: % | AJ7: 0-100 | AK7: Efficiency on heat transfer to produce steam
B8: With enthalpies | D8: kg/s | E8: =3000/3600*1999.43/1000 -> 1.666191667 | G8: Biomass | H8: =C30/C25 ->  | I8: kg/s | K8: H2O moist | L8: =H5*H11 ->  | M8: kg/s | AH8: Biomass composition | AI8: % | AJ8: 0-100 | AK8: Percentage of oxygen, hydrogen and carbon in biomass
B9: Boiler efficiency | C9: 0.8 | G9: Substitution of Firewood by mass | H9: =Feedstocks_Pathways!G9 -> 0 | K9: H2O react | L9: =H5*(1-H11)*H13*DS2_Information!AA29 ->  | M9: kg/s | AH9: Excess air | AI9: % | AJ9: 0-100 | AK9: Excess air for combustion
G10: Biomass properties | K10: CO2 react | L10: =H5*(1-H11)*H13*DS2_Information!Y29 ->  | M10: kg/s | AH10: Biomass mixture | AI10: % | AJ10: 0-100 | AK10: Determines properties of substitute biomass mixture, sawdust is calculated through difference
B11: To provide | C11: =Feedstocks_Pathways!G6 -> 0 | G11: =DS2_Information!K13 -> Moisture content (application) | H11: =Feedstocks_Pathways!Y58/100 ->  | I11: w.b. | K11: N2 | L11: =H19 ->  | M11: kg/s | AG11: Methodology | AH11: 1. With the biomass substitution and mixture, the LHV is defined
B12: Coefficient | C12: =LOOKUP(C11,DS2_Information!B16:B19,DS2_Information!C16:C19) ->  | D12: MJ/kg | G12: =DS2_Information!L13 -> Ash content | H12: =Feedstocks_Pathways!Z61/100 ->  | I12: d.b. | K12: O2 | L12: =H18-H16 ->  | M12: kg/s | AH12: 2. Based on installed energy, the biomass demand, and steam production are calculated
B13: Tea Production | C13: =C15/C12 ->  | D13: kg/s | G13: =DS2_Information!M13 -> Volatile matter | H13: =Feedstocks_Pathways!AA61/100 ->  | I13: d.b. | AH13: 3. Calculate the flows of the other components based on reaction on "Information"
B14: Energy input | C14: =C15/C9 -> 0 | D14: MW | G14: =DS2_Information!N13 -> Fixed carbon | H14: =Feedstocks_Pathways!AB61/100 ->  | I14: d.b. | AH14: 4. Correlate with nitrogen and excess air to find the total air input
B15: Energy installed | C15: ='DS2'!B21 -> 0 | D15: MW | G15: =DS2_Information!O13 -> LHV | H15: =C25 ->  | I15: MJ/kg | AG15: Inputs Results | AH15: Biomass | AI15: kg/s (w.b.)
G16: O2 comb | H16: =DS2_MEB!L10*DS2_Information!W29 ->  | I16: kg/s | AH16: Air | AI16: kg/s
G17: Excess air | H17: ='DS2'!B19 -> 0.15 | AH17: Firewood | AI17: kg/s
G18: O2 IN | H18: =H16*(1+H17) ->  | I18: kg/s | AH18: Briquettes | AI18: kg/s
G19: N2 IN | H19: =H6*DS2_Information!C28 ->  | I19: kg/s | AG19: Outputs Results | AH19: Ash content | AI19: kg/s
AH20: Flue gases | AI20: kg/s
B21: Average biomass composition (d.b.) | G21: Energy balance | AH21: Steam production | AI21: kg/s
B22: C | C22: =Feedstocks_Pathways!AE61/100 ->  | G22: Input (biomass + firewood) | H22: =C14 -> 0 | I22: MW | AG22: Closure Results | AH22: Closure | AI22: % | AJ22: 0-100 | AK22: Accuracy of the calculations
B23: H | C23: =Feedstocks_Pathways!AF61/100 ->  | G23: Output (steam) | H23: =C15 -> 0 | I23: MW
B24: O | C24: =Feedstocks_Pathways!AH61/100 ->  | G24: Losses | H24: =H22-H23 -> 0 | I24: MW
B25: LHV | C25: =Feedstocks_Pathways!AC61 ->  | D25: MJ/kg
B26: HHV | C26: =Feedstocks_Pathways!AD61 ->  | D26: MJ/kg
B29: Energy from firewood | C29: =H7*DS2_Information!O21 -> 0 | D29: MJ
B30: Energy from biomass | C30: =C14-C29 -> 0 | D30: MJ

Sheet DS2
A2: Data summary from model | G2: DS2
A3: Mass Balance | B3: SI | D3: Annual
A4: Fuel total (d.b.) | B4: =I4 ->  | C4: kg/s | D4: =B4*3600*$B$18/1000 ->  | E4: annual tonnes | H4: Fuel total (d.b.) | I4: =(DS2_MEB!H8*(1-DS2_MEB!H11))+(DS2_MEB!H7*(1-DS2_Information!K10/100)) ->  | J4: kg/s | R4: Water | S4: =S10 -> 0 | T4: kg/s
A5: Fuel total (a.r.) | B5: =I5 ->  | C5: kg/s | E5: annual tonnes | H5: Fuel total (a.r.) | I5: =DS2_MEB!H5 ->  | J5: kg/s | L5: =B23 -> 
A6: Fuelwood | B6: =I6 -> 0 | C6: kg/s | D6: 0 | E6: annual tonnes | H6: Fuelwood | I6: =DS2_MEB!H7 -> 0 | J6: kg/s | L6: BOILER | O6: Exhaust gases | P6: =B8 ->  | Q6: kg/s | R6: STEAM PRODUCTION
A7: Biomass | B7: =I7 ->  | C7: kg/s | E7: annual tonnes | H7: Biomass | I7: =DS2_MEB!H8 ->  | J7: kg/s | V7: Exhaust gases | W7: =P6 ->  | X7: kg/s
A8: Combustion air | B8: =K10 ->  | C8: kg/s | E8: annual tonnes | H8: Fuelwood substitution | I8: =B20 ->  | O8: Solid residue | P8: =B10 ->  | Q8: kg/s | V8: Solid residue | W8: =P8 ->  | X8: kg/s
A9: Steam production | B9: =DS2_MEB!C4 -> 0 | C9: kg/s | D9: 0 | E9: annual tonnes
A10: Flue gases | B10: =DS2_MEB!L5 ->  | C10: kg/s | E10: annual tonnes | J10: Combustion air | K10: =DS2_MEB!H6 ->  | L10: kg/s | R10: Steam | S10: =B9 -> 0 | T10: kg/s
A11: Solid residue | B11: =DS2_MEB!L6 ->  | C11: kg/s | E11: annual tonnes | J11: Excess air | K11: =B19 -> 0.15
A12: =DS2_MEB!B13 -> Tea Production | B12: =DS2_MEB!C13 ->  | C12: =DS2_MEB!D13 -> kg/s | E12: annual tonnes
A13: Energy balance
A14: Heat input | B14: 0 | C14: MW | D14: =B14*B18 -> 0 | E14: annual MWh
A15: Heat output | B15: =B21 -> 0 | C15: MW | D15: =B15*B18 -> 0 | E15: annual MWh
A17: Amendable parameters
A18: Annual operation | B18: =Feedstocks_Pathways!I24 -> 0 | C18: h
A19: Excess air | B19: 0.15
A20: Fuelwood substitution | B20: =B53 ->  | C20: %
A21: Energy installed | B21: =Feedstocks_Pathways!B24 -> 0 | C21: MW
A22: Biomass | B22: =Feedstocks_Pathways!W56&" "&Feedstocks_Pathways!W57 -> 0 0
A23: Process purpose | B23: =B50 -> 
A24: =Feedstocks_Pathways!B10 -> Percentage of second feedstock | B24: =Feedstocks_Pathways!C10 -> 0
A49: Inputs DS2 | F49: Output
A50: =A23 -> Process purpose | B50: =IF(Feedstocks_Pathways!E22=Feedstocks_Pathways!D54,Feedstocks_Pathways!G6,D50) ->  | D50: Drying | H50: Dry basis | I50: Wet basis
F51: Fuel total flow | G51: kg/s | H51: =B4 ->  | I51: =B5 -> 
G52: annual tonnes | H52: =D4 ->  | I52: =D5 -> 
A53: Fuelwood substitution (% of mass w.b.) | B53: =IF(Feedstocks_Pathways!E22="DS2",Feedstocks_Pathways!G9,0) ->  | F53: MWh energy/ t biomass | H53: =D15/D4 ->  | I53: =D15/D5 -> 
F54: Feedstock 1 [annual tonnes] | H54: =IF(Feedstocks_Pathways!C11=0,'DS1'!H53,I54*(1-Feedstocks_Pathways!Y56/100)) ->  | I54: =D7*(1-Feedstocks_Pathways!C10) -> 
F55: Feedstock 2 [annual tonnes] | H55: =I55*(1-Feedstocks_Pathways!Y57/100) ->  | I55: =D7*(Feedstocks_Pathways!C10) -> 
F56: Fuelwood [annual tonnes] | H56: =I56*(1-DS2_Information!K10/100) -> 0 | I56: =D6 -> 0
F57: Steam flow [tonnes per hour] | I57: =S10*3600/1000 -> 0
F58: Tea production [annual tonnes] | I58: =D12 -> 

Sheet DS3_Information (hidden)
B2: Scale | C2: Technology | D2: Electrical efficiency (%) | E2: CHP efficiency (%) | G2: Table 6.6 Van Loo, S. and J. Koppejan (2007). The handbook of biomass combustion and co-firing, London ; Sterling, VA : Earthscan, 2007. | O2: Reagents | S2: Products | X2: Molecular weight | AA2: Molecular weight
D3: (MJe /MJbiomass ) | E3: (MJ[e+th) /MJbiomass ) | H3: Today | K3: Future | O3: Reagent 1 | Q3: Reagent 2 | S3: Product 1 | U3: Product 2 | X3: Ca | Y3: 40.1 | AA3: Al | AB3: 27
B4: Micro | C4: Steam turbine | D4: 6-8% | E4: >60% | H4: Heating Plant | I4: CHP <1MWe | J4: Power Plant >10MWe | K4: CHP <1MWe | L4: PowerPlant >10MWe | O4: H | Q4: O2 | S4: H2O | X4: Si | Y4: 28.1 | AA4: C | AB4: 12
B5: (< 50 kWe) | C5: Internal combustion engine | D5: 13-25% | E5: 60-74% | G5: Technology | H5: Wood boiler | I5: Steam engine, steam turbine, ORC | J5: Steam turbine | K5: Gasifier and IC engine, Stirling | L5: IGCC | N5: Stoichometric coefficient | O5: 2 | Q5: 0.5 | S5: 1 | X5: Al | Y5: 27 | AA5: Ca | AB5: 40.1
C6: Organic Rankine Cycle | D6: 7.5-13.5% | E6: 60-80% | G6: Nh | H6: 0.85 | I6: 0.68 | J6: 0 | K6: 0.6 | L6: 0 | N6: Molecular weight | O6: =IF(NOT(O4=""),LOOKUP(O4,AA3:AA32,AB3:AB32),"") -> 1 | Q6: =IF(NOT(Q4=""),LOOKUP(Q4,AA3:AA32,AB3:AB32),"") -> 32 | S6: =IF(NOT(S4=""),LOOKUP(S4,AA3:AA32,AB3:AB32),"") -> 18 | U6: =IF(NOT(U4=""),LOOKUP(U4,AA3:AA32,AB3:AB32),"") ->  | X6: Fe | Y6: 55.8 | AA6: CaCO3 | AB6: 100.1
C7: Stirling engine | D7: 9.2-33% | E7: 65-92% | G7: Ne | H7: 0 | I7: 0.12 | J7: 0.25 | K7: 0.2 | L7: 0.42 | O7: =IF(NOT(O4=""),"kg reagent/kg product","") -> kg reagent/kg product | Q7: =IF(NOT(Q4=""),"kg reagent/kg product","") -> kg reagent/kg product | S7: =IF(NOT(S4=""),"kg product/kg reagent","") -> kg product/kg reagent | U7: =IF(NOT(U4=""),"kg product/kg reagent","") ->  | X7: S | Y7: 32.1 | AA7: CaO | AB7: 56.1
C8: Micro turbine[1] | D8: 12.3-26% | E8: 62-73% | G8: Nt | H8: 0.85 | I8: 0.8 | J8: 0.25 | K8: 0.8 | L8: 0.42 | O8: =IF(NOT(OR(S4="",O4="")),S4,"") -> H2O | P8: =IF(NOT(OR(U4="",O4="")),U4,"") ->  | Q8: =IF(NOT(OR(S4="",Q4="")),S4,"") -> H2O | R8: =IF(NOT(OR(U4="",Q4="")),U4,"") ->  | S8: =IF(NOT(OR(O4="",S4="")),O4,"") -> H | T8: =IF(NOT(OR(Q4="",S4="")),Q4,"") -> O2 | U8: =IF(NOT(OR(U4="",O4="")),O4,"") ->  | V8: =IF(NOT(OR(Q4="",U4="")),Q4,"") ->  | X8: O | Y8: 16 | AA8: CaSO4 | AB8: 136.2
B9: Small | C9: Steam turbine | D9: 6-8% (500 kWe) | E9: 70-80% (500 kWe) | J9: 30 bar 325 degrees | O9: =IF(OR(O4="",S4=""),"",O5*O6/(S5*S6)) -> 0.1111111111 | P9: =IF(OR(O4="",U4=""),"",O5*O6/(U5*U6)) ->  | Q9: =IF(OR(Q4="",S4=""),"",Q5*Q6/(S5*S6)) -> 0.8888888889 | R9: =IF(OR(Q4="",U4=""),"",Q5*Q6/(U5*U6)) ->  | S9: =IF(OR(O4="",S4=""),"",S5*S6/(O5*O6)) -> 9 | T9: =IF(OR(Q4="",S4=""),"",S5*S6/(Q5*Q6)) -> 1.125 | U9: =IF(OR(O4="",U4=""),"",U5*U6/(O5*O6)) ->  | V9: =IF(OR(Q4="",U4=""),"",U5*U6/(Q5*Q6)) ->  | X9: H | Y9: 1 | AA9: CaSO4.2H2O | AB9: 172.2
B10: (<1 MWe) | C10: Internal combustion engine | D10: 12.5-28% | E10: 75-95% | G10: Summary 6.10 Van Loo, S. and J. Koppejan (2007). The handbook of biomass combustion and co-firing, London ; Sterling, VA : Earthscan, 2007. | X10: C | Y10: 12 | AA10: CO2 | AB10: 44
C11: Organic Rankine Cycle | D11: 7.5-23% | E11: 56-90% | G11: Steam engines | H11: 25kWe-1.5MWe | O11: Reagents | S11: Products | X11: CaSO4 | Y11: =Y3+Y7+Y8*4 -> 136.2 | AA11: Fe | AB11: 55.8
C12: Stirling engine | D12: 12-35% | E12: 85-90% | G12: Steam turbines | H12: 0.5MWe-500MWe | O12: Reagent 1 | Q12: Reagent 2 | S12: Product 1 | U12: Product 2 | X12: CaO | Y12: =($Y$8+$Y$3) -> 56.1 | AA12: H | AB12: 1
C13: Micro turbine | D13: 25-33% | E13: 62-89% | G13: Biomass fired plant | H13: 50 Mwe | O13: C | Q13: O2 | S13: CO2 | X13: SO3 | Y13: =($Y$8*3+$Y$7) -> 80.1 | AA13: H2O | AB13: 18
G14: Smaller plants than 1MWe | H14: Ne= 10-12% | I14: Nh= up to 70% | N14: Stoichometric coefficient | O14: 1 | Q14: 1 | S14: 1 | X14: CaCO3 | Y14: =($Y$8*3+$Y$10+$Y$3) -> 100.1 | AA14: O | AB14: 16
B15: Water heats | G15: Steam plants single stage expansion) | H15: 4-7% efficiency | N15: Molecular weight | O15: =IF(NOT(O13=""),LOOKUP(O13,AA3:AA32,AB3:AB32),"") -> 12 | Q15: =IF(NOT(Q13=""),LOOKUP(Q13,AA3:AA32,AB3:AB32),"") -> 32 | S15: =IF(NOT(S13=""),LOOKUP(S13,AA3:AA32,AB3:AB32),"") -> 44 | U15: =IF(NOT(U13=""),LOOKUP(U13,AA3:AA32,AB3:AB32),"") ->  | X15: CO2 | Y15: =($Y$8*2+$Y$10) -> 44 | AA15: O2 | AB15: 32
B16: Vaporization heat | C16: 2256.4 | D16: kJ/kg | G16: Steam plant multistage expansion | H16: 8-14% efficiency | O16: =IF(NOT(O13=""),"kg reagent/kg product","") -> kg reagent/kg product | Q16: =IF(NOT(Q13=""),"kg reagent/kg product","") -> kg reagent/kg product | S16: =IF(NOT(S13=""),"kg product/kg reagent","") -> kg product/kg reagent | U16: =IF(NOT(U13=""),"kg product/kg reagent","") ->  | X16: CaSO4.2H2O | Y16: =Y11+2*(Y18) -> 172.2 | AA16: S | AB16: 32.1
B17: Water | C17: =DS3_MEB!C9 -> 4.187 | D17: kJ/kgK | G17: 5-10 Mwe | H17: 25% efficiency | O17: =IF(NOT(OR(S13="",O13="")),S13,"") -> CO2 | P17: =IF(NOT(OR(U13="",O13="")),U13,"") ->  | Q17: =IF(NOT(OR(S13="",Q13="")),S13,"") -> CO2 | R17: =IF(NOT(OR(U13="",Q13="")),U13,"") ->  | S17: =IF(NOT(OR(O13="",S13="")),O13,"") -> C | T17: =IF(NOT(OR(Q13="",S13="")),Q13,"") -> O2 | U17: =IF(NOT(OR(U13="",O13="")),O13,"") ->  | V17: =IF(NOT(OR(Q13="",U13="")),Q13,"") ->  | X17: O2 | Y17: =Y8*2 -> 32 | AA17: Si | AB17: 28.1
B18: Steam | C18: 1.996 | D18: kJ/kgK | G18: 50 Mwe | H18: 30% electric efficiency in co-generation | I18: >40% as condensing | O18: =IF(OR(O13="",S13=""),"",O14*O15/(S14*S15)) -> 0.2727272727 | P18: =IF(OR(O13="",U13=""),"",O14*O15/(U14*U15)) ->  | Q18: =IF(OR(Q13="",S13=""),"",Q14*Q15/(S14*S15)) -> 0.7272727273 | R18: =IF(OR(Q13="",U13=""),"",Q14*Q15/(U14*U15)) ->  | S18: =IF(OR(O13="",S13=""),"",S14*S15/(O14*O15)) -> 3.666666667 | T18: =IF(OR(Q13="",S13=""),"",S14*S15/(Q14*Q15)) -> 1.375 | U18: =IF(OR(O13="",U13=""),"",U14*U15/(O14*O15)) ->  | V18: =IF(OR(Q13="",U13=""),"",U14*U15/(Q14*Q15)) ->  | X18: H2O | Y18: =2*Y9+Y8 -> 18 | AA18: SO3 | AB18: 80.1
B19: T exit steam | C19: 330 | D19: °C | G19: 0.4-1.5MWe | H19: Alternative: Organic Rankine cycle (ORC) | X19: SO4
B20: Vaporization T | C20: =DS3_MEB!C8 -> 100 | D20: °C | G20: <100kWe | H20: >12% electrical efficiency | O20: Reagents | S20: Products | X20: Biomass | Y20: =J36 -> 
O21: Reagent 1 | Q21: Reagent 2 | S21: Product 1 | U21: Product 2
B22: Ultimate analysis (d.b.) biomass fuels | O22: Biomass | Q22: O2 | S22: CO2 | U22: H2O
C23: Min | D23: Max | E23: Average | N23: Stoichometric coefficient | O23: 1 | Q23: =(K35/2+2*J35-L35)/2 ->  | S23: =J35 ->  | U23: =K35/2 -> 
B24: C | C24: 43.2 | D24: 54.9 | E24: 0.5 | N24: Molecular weight | O24: =Y20 ->  | Q24: =Y17 -> 32 | S24: =Y15 -> 44 | U24: =Y18 -> 18
B25: H | C25: 4.4 | D25: 7.2 | E25: 0.05 | O25: =IF(NOT(O22=""),"kg reagent/kg product","") -> kg reagent/kg product | Q25: =IF(NOT(Q22=""),"kg reagent/kg product","") -> kg reagent/kg product | S25: =IF(NOT(S22=""),"kg product/kg reagent","") -> kg product/kg reagent | U25: =IF(NOT(U22=""),"kg product/kg reagent","") -> kg product/kg reagent
B26: O | C26: 34.1 | D26: 48.2 | E26: 0.4 | O26: =IF(NOT(OR(S22="",O22="")),S22,"") -> CO2 | P26: =IF(NOT(OR(U22="",O22="")),U22,"") -> H2O | Q26: =IF(NOT(OR(S22="",Q22="")),S22,"") -> CO2 | R26: =IF(NOT(OR(U22="",Q22="")),U22,"") -> H2O | S26: =IF(NOT(OR(O22="",S22="")),O22,"") -> Biomass | T26: =IF(NOT(OR(Q22="",S22="")),Q22,"") -> O2 | U26: =IF(NOT(OR(U22="",O22="")),O22,"") -> Biomass | V26: =IF(NOT(OR(Q22="",U22="")),Q22,"") -> O2
O27: =IF(OR(O22="",S22=""),"",O23*O24/(S23*S24)) ->  | P27: =IF(OR(O22="",U22=""),"",O23*O24/(U23*U24)) ->  | Q27: =IF(OR(Q22="",S22=""),"",Q23*Q24/(S23*S24)) ->  | R27: =IF(OR(Q22="",U22=""),"",Q23*Q24/(U23*U24)) ->  | S27: =IF(OR(O22="",S22=""),"",S23*S24/(O23*O24)) ->  | T27: =IF(OR(Q22="",S22=""),"",S23*S24/(Q23*Q24)) ->  | U27: =IF(OR(O22="",U22=""),"",U23*U24/(O23*O24)) ->  | V27: =IF(OR(Q22="",U22=""),"",U23*U24/(Q23*Q24)) -> 
B28: O2 | C28: 0.21 | F28: Hardwood - bark
B29: N2 | C29: 0.79 | E29: Moisture content (application) | F29: 0.25 | G29: w.b. | I29: BIOMASS
E30: Ash content | F30: 0.1 | G30: d.b. | J30: C | K30: H | L30: O | M30: Other | O30: Efficiency look-up
E31: Volatile matter | F31: 0.75 | G31: d.b. | I31: Molar weight | J31: =Y10 -> 12 | K31: =Y9 -> 1 | L31: =Y8 -> 16 | O31: CHP
E32: Fixed carbon | F32: 0.15 | G32: d.b. | I32: Composition | J32: =J37 ->  | K32: =K37 ->  | L32: =L37 ->  | P32: Ne | Q32: Nh
E33: LHV | F33: 13 | G33: kJ/kg | I33: Mol tranf | J33: =J32/J31 ->  | K33: =K32/K31 ->  | L33: =L32/L31 ->  | O33: CHP | P33: 0.15 | Q33: 0.65 | R33: =SUM(P33:Q33) -> 0.8
E34: C | F34: 0.5 | I34: Mol fraction | J34: =J33/SUM($J$33:$L$33) ->  | K34: =K33/SUM($J$33:$L$33) ->  | L34: =L33/SUM($J$33:$L$33) ->  | O34: Electricity only | P34: 0.3 | Q34: 0
E35: H | F35: 0.05 | I35: Formula | J35: =J34/MIN($J$34:$L$34) ->  | K35: =K34/MIN($J$34:$L$34) ->  | L35: =L34/MIN($J$34:$L$34) ->  | O35: Heat only | P35: 0 | Q35: 0.85
E36: O | F36: =0.4 -> 0.4 | I36: Mol Weight | J36: =J35*J31+K35*K31+L35*L31 -> 
B37: Enthalpies | C37: kJ/kg | D37: MJ/kg | I37: Biomass composition | J37: =DS3_MEB!C22 ->  | K37: =DS3_MEB!C23 ->  | L37: =DS3_MEB!C24 ->  | M37: =1-(SUM(J37:L37)) -> 
B38: Water (20 °C) | C38: 83.915 | D38: =C38/1000 -> 0.083915
B39: Steam (300 °C, 30 bar) | C39: 2994.3 | D39: 2.9943 | I39: Mass flow | J39: =J37*'DS3'!$I$6 ->  | K39: =K37*'DS3'!$I$6 ->  | L39: =L37*'DS3'!$I$6 ->  | M39: =M37*'DS3'!$I$6 ->  | N39: =SUM(J39:M39) -> 
B40: Steam (350 °C, 30 bar) | C40: 3116.1 | D40: 3.1161 | I40: Mol flow | J40: =J39/J31 ->  | K40: =K39/K31 ->  | M40: n/a
B41: Steam (350 °C, 30 bar) | C41: 2794.2 | D41: 2.7942
B42: Steam (350 °C, 30 bar) | C42: 3116.1 | D42: 3.1161 | I42: co2 | J42: =J40*S24 -> 
B43: Steam (310 °C, 22 bar) | C43: 3530 | D43: 3.53 | E43: number from steam table
B47: Reference for steam property requirements:
B48: https://www.energy.gov/sites/prod/files/2016/09/f33/CHP-Steam%20Turbine.pdf
B50: Based on 3MWe turbine | D50: Enthalpy, kJ/kg
B51: Steam inlet pressure, bar | C51: 41.4 | D51: 2958.6 | E51: Supersteam - required for the CHP and Electricity case
B52: Steam inlet temperature, C | C52: 302
B53: Steam outlet pressure, bar | C53: 10 | D53: 1978 | E53: For the heat only and CHP case
B54: Steam outlet temperature, C | C54: 190

Sheet DS3_MEB (hidden)
I1: =1-ABS(K4/G4-1) -> 
F2: Mass balance | N2: Energy balance | AG2: Data type | AH2: Magnitude | AI2: Units | AJ2: Range/List | AK2: Effect
B3: Steam/water | F3: IN | J3: OUT | N3: IN | AG3: User Inputs | AH3: =Feedstocks_Pathways!B11 ->  | AI3: MW | AJ3: 0.01-5
B4: Flow steam | C4: =C5/1000*60*60 ->  | D4: t/h | F4: Total | G4: =SUM(G5:G6) ->  | H4: kg/s | J4: Total | K4: =SUM(K5:K6) ->  | L4: kg/s | N4: Biomass | O4: =G12*G5 ->  | P4: MW | AG4: Amendable parameters | AH4: Energy objective | AI4: - | AJ4: CHP/Electricity/Heat | AK4: Determines the yields of the energy input used for each application, used in energy balance
C5: =IF(C12="chp",C27,IF(C12="heat only",C28,C29)) ->  | D5: kg/s | F5: Biomass total | G5: =C10/G12 ->  | H5: kg/s (w.b.) | J5: Flue gases | K5: =SUM(K8:K12) ->  | L5: kg/s | AH5: Biomass composition | AI5: % | AJ5: 0-100 | AK5: Composition of C,H and O within the biomass
B6: T out working fluid | C6: =DS3_Information!C19 -> 330 | D6: °C | F6: Air | G6: =SUM(G15:G16) ->  | H6: kg/s | J6: Ash content | K6: =G5*(1-G8)*G9 ->  | L6: kg/s | N6: OUT | AH6: Yield working fluid production | AI6: % | AJ6: 0-100 | AK6: Efficiency on heat transfer to produce steam
B7: T in working fluid | C7: 20 | D7: °C | F7: Biomass properties | N7: Flue gases and ash content | O7: 0 | P7: MW | AH7: T evap | AI7: °C | AK7: Temperature at which the working fluid within the system evaporates
B8: T evap. | C8: 100 | D8: °C | F8: Moisture content | G8: =Feedstocks_Pathways!Y58/100 ->  | H8: w.b. | J8: H2O moist | K8: =G5*DS3_Information!F29 ->  | L8: kg/s | N8: Losses Steam | O8: =C10-O9 ->  | P8: MW | AH8: Cp liquid | AI8: kJ/kgK | AK8: Specific heat capacity of the working fluid to carry the energy
B9: Cp liquid | C9: 4.187 | D9: kJ/kgK | F9: Ash content | G9: =Feedstocks_Pathways!Z58/100 ->  | H9: d.b. | J9: H2O react | K9: =G5*(1-G8)*(G10)*DS3_Information!U27 ->  | L9: kg/s | N9: Steam | O9: =O4*C11 ->  | P9: MW | AH9: T in / T out | AI9: °C | AJ9: 0-100 / 100-500 | AK9: Temperature at which water enters the system and steam exits
B10: Energy input | C10: =IF(C12="CHP",C18/SUM(C13),IF(C12="heat only",C18/C14,C18/C13)) ->  | D10: Mwe,th | F10: Volatile matter | G10: =Feedstocks_Pathways!AA58/100 ->  | H10: d.b. | J10: CO2 react | K10: =G5*(1-G8)*(G10)*DS3_Information!S27 ->  | L10: kg/s | AH10: Excess air | AI10: % | AJ10: 0-100 | AK10: Excess air for combustion
B11: Steam production efficiency | C11: =C14 ->  | F11: Fixed carbon | G11: =Feedstocks_Pathways!AB58/100 ->  | H11: d.b. | J11: N2 | K11: =G16 ->  | L11: kg/s | N11: Electricity | O11: =C15 ->  | P11: MW | AG11: Methodology | AH11: 1. Based on target product capacity, the biomass demand, and steam production are calculated. Energy balance is calculated based on process type
B12: Production | C12: ='DS3'!B21 ->  | F12: LHV | G12: =Feedstocks_Pathways!AC58 ->  | H12: MJ/kg | J12: O2 | K12: =G15-G13 ->  | L12: kg/s | N12: Heat | O12: =C16 ->  | P12: MW | AH12: 2. Calculate the oxygen and the flue gases based on the reaction on sheet "Information"
B13: ηe | C13: =LOOKUP(C12,DS3_Information!O33:O35,DS3_Information!P33:P35) ->  | F13: O2 comb | G13: =K10*DS3_Information!Q27 ->  | H13: kg/s | N13: Loss | O13: =C17 ->  | P13: MW | AH13: 5. Correlate with nitrogen and excess air to find the total air input
B14: ηh | C14: =LOOKUP(C12,DS3_Information!O33:O35,DS3_Information!Q33:Q35) ->  | F14: Excess air | G14: ='DS3'!B18 -> 0.15 | AG14: Inputs Results | AH14: Biomass | AI14: kg/s (w.b.)
B15: Electricity production | C15: =C13*C$10 ->  | D15: Mwe | E15: =SUM(C15:C16) ->  | F15: O2 IN | G15: =G13*(1+G14) ->  | H15: kg/s | AH15: Air | AI15: kg/s
B16: Heat production | C16: =C14*C$10 ->  | D16: MWth | F16: N2 IN | G16: =G15/DS3_Information!C28*DS3_Information!C29 ->  | H16: kg/s | AG16: Outputs Results | AH16: Ash content | AI16: kg/s
B17: Loss | C17: =C10-C15-C16 ->  | D17: MW | AH17: Flue gases | AI17: kg/s
B18: =Feedstocks_Pathways!B11 ->  | C18: ='DS3'!B19/1 -> 0 | D18: Mwe | G18: Temperatures | I18: Efficiency | K18: Energy (MWh) | M18: Exergy (MWh) | AH18: Steam production | AI18: kg/s
F19: CHP | G19: Tamb | H19: =H22+273.15 -> 293.15 | I19: Electricity | J19: 1 | K19: 19.1 | L19: =K19/K21 -> 0.2112831858 | M19: =J19*K19 -> 19.1 | N19: =M19/M21 -> 0.3426258355 | AG19: Closure Results | AH19: Closure | AI19: % | AJ19: 0-100 | AK19: Accuracy of the calculations
G20: Tsteam | H20: =H23+273.15 -> 603.15 | I20: Heat | J20: =(H20-H19)/H20 -> 0.5139683329 | K20: =71.3 -> 71.3 | L20: =K20/K21 -> 0.7887168142 | M20: =J20*K20 -> 36.64594214 | N20: =M20/M21 -> 0.6573741645
B21: Biomass composition (d.b.) | K21: =SUM(K19:K20) -> 90.4 | M21: =SUM(M19:M20) -> 55.74594214 | AG21: Biomass case
B22: C | C22: =Feedstocks_Pathways!AE58/100 ->  | G22: Tamb | H22: =C7 -> 20
B23: H | C23: =Feedstocks_Pathways!AF58/100 ->  | G23: Tsteam | H23: =C6 -> 330
B24: O | C24: =Feedstocks_Pathways!AH58/100 -> 
C26: Useful steam leftover
B27: For CHP | C27: =IF(C12="CHP",C10*1000*C11/DS3_Information!D53,0) ->  | D27: kg/s
B28: For heat only | C28: =IF(C12="chp",0,C16*1000/DS3_Information!D53) ->  | D28: kg/s
B29: For electricity only | C29: =IF(C12="Electricity only",C10/DS3_Information!D51*1000,0) ->  | D29: kg/s

Sheet DS3
A2: Data summary from model | G2: DS3
A3: Mass Balance | B3: SI | D3: Annual
A4: Biomass (d.b.) | B4: =I6 ->  | C4: kg/s | D4: =B4*3600*$B$17/1000 ->  | E4: annual tonnes | R4: Water | S4: =S10 ->  | T4: kg/s
A5: Biomass (a.r.) | B5: =I7 ->  | C5: kg/s | E5: annual tonnes | V5: Exhaust gases | W5: =P6 ->  | X5: kg/s
A6: Combustion air | B6: =K10 ->  | C6: kg/s | E6: annual tonnes | H6: Biomass (d.b.) | I6: =I7*(1-DS3_MEB!G8) ->  | J6: kg/s | L6: BOILER | O6: Exhaust gases | P6: =B6 ->  | Q6: kg/s | R6: =B21 ->  | V6: Solid residue | W6: =P8 ->  | X6: kg/s
A7: Steam production | B7: =S10 ->  | C7: kg/s | E7: annual tonnes | H7: Biomass (a.r.) | I7: =DS3_MEB!G5 ->  | J7: kg/s
A8: Flue gases | B8: =P6 ->  | C8: kg/s | E8: annual tonnes | O8: Solid residue | P8: =B9 ->  | Q8: kg/s | V8: Electricity | W8: =DS3_MEB!C15 ->  | X8: MW
A9: Solid residue | B9: =DS3_MEB!K6 ->  | C9: kg/s | E9: annual tonnes | V9: Heat | W9: =DS3_MEB!C16 ->  | X9: MW
A10: Energy | J10: Combustion air | K10: =DS3_MEB!G6 ->  | L10: kg/s | R10: Steam | S10: =DS3_MEB!C5 ->  | T10: kg/s | V10: Losses | W10: =DS3_MEB!C17 ->  | X10: MW
A11: Electricity | B11: =W8 ->  | C11: MW | D11: =B11*$B$17 ->  | E11: annual MWh | J11: Excess air | K11: =B18 -> 0.15 | R11: 10bar, 190°C
A12: Heat | B12: =W9 ->  | C12: MW | D12: =B12*$B$17 ->  | E12: annual MWh
A13: Loss | B13: =W10 ->  | C13: MW | D13: =B13*$B$17 ->  | E13: annual MWh
A14: Input | B14: =O10 -> 0 | C14: MW | D14: =B14*$B$17 -> 0 | E14: annual MWh
A16: Amendable parameters
A17: Annual operation | B17: =Feedstocks_Pathways!I24 -> 0 | C17: h
A18: Excess air | B18: 0.15
A19: =Feedstocks_Pathways!B11 ->  | B19: =Feedstocks_Pathways!B24 -> 0 | C19: MW
A20: Biomass | B20: =Feedstocks_Pathways!W56&" "&Feedstocks_Pathways!W57 -> 0 0
A21: Process purpose | B21: =B50 -> 
F48: Carnot index heat | G48: =DS3_MEB!J20 -> 0.5139683329
A49: Inputs DS3 | F49: Output
A50: Process purpose | B50: =IF(Feedstocks_Pathways!E22=Feedstocks_Pathways!E54,Feedstocks_Pathways!G6,D50) ->  | H50: Dry basis | I50: Wet basis
F51: Biomass flow | G51: kg/s | H51: =B4 ->  | I51: =B5 -> 
G52: annual tonnes | H52: =D4 ->  | I52: =D5 -> 
F53: MWh electricity/ t biomass | H53: =D11/D4 ->  | I53: =D11/D5 -> 
F54: MWh heat/ t biomass | H54: =D12/D4 ->  | I54: =D12/D5 -> 
F55: Feedstock 1 [annual tonnes] | H55: =IF(Feedstocks_Pathways!C12=0,'DS1'!H54,I55*(1-Feedstocks_Pathways!Y56/100)) ->  | I55: =D5*(1-Feedstocks_Pathways!$C$10) -> 
F56: Feedstock 2 [annual tonnes] | H56: =I56*(1-Feedstocks_Pathways!Y57/100) ->  | I56: =D5*(Feedstocks_Pathways!$C$10) -> 
F57: Steam flow [tonnes per hour] | I57: =S10*3600/1000 -> 
F67: MWh exergy/t biomass | H67: =(D12*G48+D11)/D4 ->  | I67: =(D12*G48+D11)/D5 -> 

Sheet DS4_MEB_v0 (hidden)
L1: =1-ABS(N4/J4-1) ->  | T1: =1-ABS(V4/R4-1) -> 
E2: Flow steam | F2: =F15*J13*J5/(((F5-F4)*F7+(F3-F5)*DS4_Information!H34+DS4_Information!H32)/1000) ->  | G2: kg/s | I2: CHP | Q2: Anaerobic Digestion | Y2: Data type | Z2: Magnitude | AA2: Units | AB2: Range/List | AC2: Effect
B3: Process type | C3: =DS4_v1!B39 -> CHP + AD | E3: T out working fluid | F3: 330 | G3: °C | I3: INPUT | M3: OUTPUTS | Q3: INPUT | U3: OUTPUTS | Y3: User Inputs | Z3: Installed energy | AA3: MW | AB3: 0.01-5
B4: Energy input | C4: =DS4_v1!B37/SUM(C23:C24) ->  | D4: MW | E4: T in working fluid | F4: =DS4_v1!B42 ->  | G4: °C | I4: Total | J4: =SUM(J5:J6) ->  | K4: kg/s | M4: Total | N4: =SUM(N5:N6) ->  | O4: kg/s | Q4: TOTAL | R4: =R5+R9 ->  | S4: kg/s | U4: TOTAL | V4: =SUM(V5:V9) ->  | W4: kg/s | Z4: Process type | AA4: - | AB4: CHP/ AD/ CHP+AD
B5: Energy input | C5: =DS4_v1!B37 -> 0 | D5: MW | E5: T evap. | F5: =DS4_Information!H36 -> 0 | G5: °C | I5: Biomass | J5: =IF(C3=DS4_Information!M26,C4/(J13+C19*(1-C20)*DS4_Information!H3*DS4_Information!H29*DS4_Information!D3/1000),IF(C3=DS4_Information!M25,C4/J13,IF(C3=DS4_Information!M24,0))) -> FALSE | K5: kg/s | M5: Flue gases | N5: =SUM(N9:N13) ->  | O5: kg/s | Q5: Biomass (d.b.) | R5: =(C4-J5*J13)/(DS4_Information!D3*DS4_Information!J20*DS4_Information!AG5*C31/1000) ->  | S5: kg/s | U5: Methane | V5: =R5*DS4_Information!J20*C31*C32 ->  | W5: kg/s | Y5: Amendable parameters | Z5: Energy objective | AA5: - | AB5: CHP/Electricity/Heat | AC5: Determines the yields of the energy input used for each application, used in energy balance
B6: POME | E6: T digester | F6: =DS4_v1!V17 ->  | G6: °C | I6: Air | J6: =SUM(J16:J17) ->  | K6: kg/s | M6: Ash content | N6: =J5*(1-J9)*(J10+J12) ->  | O6: kg/s | Q6: Biomass (w.b.) | R6: =R5/(1-C20) ->  | S6: kg/s | Z6: Biomass/ digestate composition | AA6: % | AB6: 0-100 | AC6: Composition of C,H and O within the biomass
B7: C | C7: 0.5 | E7: Cp liquid | F7: 4.187 | G7: kJ/kgK | Q7: Water | R7: =IF(C3=DS4_Information!M26,J5*C19*DS4_Information!H3*(C20),IF(C3=DS4_Information!M24,R5*C20/(1-C20), IF(C3=DS4_Information!M25,0))) -> FALSE | S7: kg/s | U7: Carbon dioxide | V7: =R5*DS4_Information!L20*C31*C32 ->  | W7: kg/s | Z7: Yield working fluid production | AA7: % | AB7: 0-100 | AC7: Efficiency on heat transfer to produce steam
B8: H | C8: 0.05 | E8: Yield working fluid production | F8: 1 | I8: Biomass properties | Q8: Water Reaction | R8: =V5*DS4_Information!G20 ->  | S8: kg/s | U8: Amonnia | V8: =R5*DS4_Information!N20*C31*C32 ->  | W8: kg/s | Z8: T evap | AA8: °C | AC8: Temperature at which the working fluid within the system evaporates
B9: O | C9: 0.4 | E9: Production | F9: CHP | I9: Moisture content | J9: =DS4_Information!AE4 ->  | K9: w.b. | M9: H2O moist | N9: =J9*J5 ->  | O9: kg/s | Q9: Water fluent | R9: =R7-R8 ->  | S9: kg/s | U9: Water fluent | V9: =R9+R5*(1-C32*C31) ->  | W9: kg/s | Z9: POME Yield | AA9: % | AB9: 0-100
B10: N | C10: 0.05 | E10: ηe | F10: =LOOKUP(F9,DS4_Information!C32:C34,DS4_Information!D32:D34) ->  | I10: Ash content | J10: =DS4_Information!AF4 ->  | K10: d.b. | M10: H2O react | N10: =J5*(1-J9)*(J11)*DS4_Information!J29 ->  | O10: kg/s | Q10: Extra water | R10: =(R5-R7*C29)/C29 ->  | S10: kg/s | U10: TOTAL | V10: =SUM(V11,V13,V14,V15) ->  | W10: kg/s | Z10: POME H2O Content | AA10: % | AB10: 0-100
B11: Others | C11: =1-C10-C9-C8-C7 -> 0 | E11: ηh | F11: =LOOKUP(F9,DS4_Information!C32:C34,DS4_Information!E32:E34) ->  | I11: Volatile matter | J11: =DS4_Information!AG4 ->  | K11: d.b. | M11: CO2 react | N11: =J5*(1-J9)*(J11)*DS4_Information!H29 ->  | O11: kg/s | Q11: TOTAL | R11: =SUM(R12,R18,R16,R15) ->  | S11: kg/s | U11: H2O | V11: =R12*DS4_Information!H43 ->  | W11: kg/s | Z11: Cp liquid | AA11: kJ/kgK | AC11: Specific heat capacity of the working fluid to carry the energy
E12: Electricity production | F12: =J5*J13*F10 ->  | G12: MW | I12: Fixed carbon | J12: =DS4_Information!AH4 ->  | K12: d.b. | M12: N2 | N12: =J17 ->  | O12: kg/s | Q12: Methane | R12: =V5 ->  | S12: kg/s | U12: CO2 reaction | V12: =R12*DS4_Information!J43 ->  | W12: kg/s | Z12: T in / T out water | AA12: °C | AB12: 0-100 / 100-500 | AC12: Temperature at which water enters the system and steam exits
B13: Fruit bunches | E13: Heat production | F13: =J5*J13*F11 ->  | G13: MW | I13: LHV | J13: =DS4_Information!AI4 ->  | K13: MJ/kg | M13: O2 | N13: =J16-J14 ->  | O13: kg/s | Q13: O2 needed | R13: =V11*DS4_Information!F43 ->  | S13: kg/s | U13: CO2 total | V13: =V12+R18 ->  | W13: kg/s | Z13: Excess air | AA13: % | AB13: 0-100 | AC13: Excess air for combustion
B14: C | C14: 0.5 | E14: Loss | F14: =J5*J13-F13-F12 ->  | G14: MW | I14: O2 comb | J14: =N11*DS4_Information!F29 ->  | K14: kg/s | Q14: Excess air | R14: =DS4_v1!AC22 -> 0.15 | U14: N2 | V14: =R16 ->  | W14: kg/s | Y14: Methodology | Z14: 1. Based on installed energy and process type, the biomass for CHP and/or the methane needed is calculated (methane satisfies the Energy installed in AD)
B15: H | C15: 0.05 | E15: Transfer efficiency | F15: 1 | I15: Excess air | J15: =DS4_v1!B40 -> 0.15 | M15: Steam | N15: =DS4_MEB_v0!V24*1000/(DS4_Information!L35-DS4_Information!L32) ->  | O15: kg/s | Q15: O2 IN | R15: =R13*(1+R14) ->  | S15: kg/s | U15: Excess O2 | V15: =R15-R13 ->  | W15: kg/s | Z15: 2. Calculate the other components according to the reactions in sheet "Information"
B16: O | C16: 0.4 | I16: O2 IN | J16: =J14*(1+J15) ->  | K16: kg/s | Q16: N2 IN | R16: =R15/0.21*0.79 ->  | S16: kg/s | U16: Amonnia | V16: =V8 ->  | W16: kg/s | Z16: 5. Calculate the other parameters such as nitrogen or excess water used
B17: Others | C17: =1-C16-C15-C14 -> 0.05 | I17: N2 IN | J17: =J16/DS4_Information!L3*DS4_Information!L4 ->  | K17: kg/s | Q17: AIR IN | R17: =R16+R15 ->  | S17: kg/s | Y17: Inputs Results | Z17: Biomass | AA17: kg/s (w.b.)
Q18: Carbon dioxide | R18: =V7 ->  | S18: kg/s | Z18: Air | AA18: kg/s
B19: Yield POME | C19: 0.85 | D19: Vol./weight | Y19: Outputs Results | Z19: Flue gases from CHP | AA19: kg/s
B20: POME H2O Content | C20: 0.925 | T20: =1-ABS(SUM(V24,V31)/SUM(R25,R26)-1) ->  | Z20: Solid residues from combustion | AA20: kg/s
Q21: ENERGY BALANCE | Z21: Gases from AD | AA21: kg/s
B22: CHP | C22: =DS4_v1!B43 ->  | F22: AD | G22: =DS4_v1!B43 ->  | Q22: INPUT | U22: Output | Z22: Steam production | AA22: kg/s
B23: ηe | C23: =LOOKUP(C22,DS4_Information!C32:C34,DS4_Information!D32:D34) ->  | F23: ηe | G23: =LOOKUP(G22,DS4_Information!O32:O34,DS4_Information!P32:P34) ->  | Q23: Biomass | R23: =J5 -> FALSE | S23: kg/s | U23: CHP | Y23: Closure Results | Z23: Closure | AA23: % | AB23: 0-100 | AC23: Accuracy of the calculations
B24: ηh | C24: =LOOKUP(C22,DS4_Information!C32:C34,DS4_Information!E32:E34) ->  | F24: ηh | G24: =LOOKUP(G22,DS4_Information!O32:O34,DS4_Information!Q32:Q34) ->  | Q24: LHV biomass | R24: =J13 ->  | S24: kJ/kg | U24: Steam | V24: =J13*J5 ->  | W24: MW
B25: Electricity production | C25: =$R$25*C23 ->  | D25: MW | F25: Electricity production | G25: =G23*V31 ->  | H25: MW | Q25: Energy input | R25: =R24*R23 ->  | S25: MW | U25: Heat | V25: =V24*F11 ->  | W25: MW
B26: Heat production | C26: =$R$25*C24 ->  | D26: MW | F26: Heat production | G26: =G24*V31 ->  | H26: MW | Q26: AD input (only biomass) | R26: =R5*DS4_Information!AI5 ->  | S26: MW | U26: Electricity | V26: =F10*J5*J13 ->  | W26: MW
B27: Loss | C27: =R25-C26-C25 ->  | D27: MW | F27: Loss | G27: =V31-G26-G25 ->  | H27: MW | U27: Losses | V27: =V24-V25-V26 ->  | W27: MW
B28: %CHP | F28: %AD | U28: AD
B29: Solids content | C29: =DS4_v1!P17 -> 0.2 | U29: Methane | V29: =DS4_Information!D3 -> 50000 | W29: kJ/kg
U30: Methane Flow | V30: =V5 ->  | W30: kg/s
B31: =DS4_Information!#REF! ->  | C31: =DS4_Information!C46 -> 0 | U31: Energy output with Methane | V31: =V30*V29/1000 ->  | W31: MW
B32: VM AD | C32: =DS4_Information!AG5 -> 0.935 | U32: Electricity | V32: =G25 ->  | W32: MW
U33: Heat | V33: =G26 ->  | W33: MW
U34: Losses | V34: =G27 ->  | W34: MW
U35: Energy input | V35: =(F6-F4)*(R5*DS4_Information!AM5+R9*DS4_Information!H33)/1000 ->  | W35: MW
J37: Temperatures | L37: Carnot factor | N37: Energy (MWh) | P37: Exergy (MWh)
I38: CHP | J38: Tamb | K38: =K41+273.15 ->  | L38: Electricity | M38: 1 | N38: 19.1 | O38: =N38/N40 -> 0.2112831858 | P38: =M38*N38 -> 19.1 | Q38: =P38/P40 -> 
J39: Tsteam | K39: =K42+273.15 -> 603.15 | L39: Heat | M39: =(K39-K38)/K39 ->  | N39: =71.3 -> 71.3 | O39: =N39/N40 -> 0.7887168142 | P39: =M39*N39 ->  | Q39: =P39/P40 -> 
N40: =SUM(N38:N39) -> 90.4 | P40: =SUM(P38:P39) -> 
J41: Tamb | K41: =F4 -> 
J42: Tsteam | K42: =F3 -> 330

Sheet DS4_v1 (hidden)
A2: Data from model
A3: Mass Balance | B3: SI | D3: Annual
A4: CHP | R4: Water | S4: =S10 ->  | T4: kg/s
A5: Biomass (d.b.) | B5: =I6 ->  | C5: kg/s | D5: =B5*$B$36*3600/1000 ->  | E5: annual tonnes | V5: Exhaust gases | W5: =DS4_MEB_v0!N5 ->  | X5: kg/s
A6: Biomass (a.r.) | B6: =I7 -> FALSE | C6: kg/s | D6: 0 | E6: annual tonnes | H6: Biomass (d.b.) | I6: =DS4_MEB_v0!J5*(1-DS4_MEB_v0!J9) ->  | J6: kg/s | L6: BOILER | O6: Exhaust gases | P6: =DS4_MEB_v0!N5 ->  | Q6: kg/s | R6: =B41 ->  | V6: Solid residue | W6: =DS4_MEB_v0!N6 ->  | X6: kg/s
A7: Combustion air | B7: =K10 ->  | C7: kg/s | E7: annual tonnes | H7: Biomass (a.r.) | I7: =DS4_MEB_v0!J5 -> FALSE | J7: kg/s
A8: Steam production | B8: =S10 ->  | C8: kg/s | E8: annual tonnes | O8: Solid residue | P8: =DS4_MEB_v0!N6 ->  | Q8: kg/s | V8: Electricity | W8: =DS4_MEB_v0!V25 ->  | X8: MW
A9: Flue gases | B9: =W5 ->  | C9: kg/s | E9: annual tonnes | V9: Heat | W9: =DS4_MEB_v0!V26 ->  | X9: MW
A10: Solid residue | B10: =W6 ->  | C10: kg/s | E10: annual tonnes | J10: Combustion air | K10: =DS4_MEB_v0!J6 ->  | L10: kg/s | N10: Heat input | O10: 0 | P10: MW | R10: Steam | S10: =DS4_MEB_v0!N15 ->  | T10: kg/s | V10: Losses | W10: =DS4_MEB_v0!V27 ->  | X10: MW
A11: Energy | J11: Excess air | K11: =B40 -> 0.15
A12: Electricity | B12: =W8 ->  | C12: MW | D12: =B12*$B$36 ->  | E12: annual MWh | AS12: Output
A13: Heat | B13: =W9 ->  | C13: MW | D13: =B13*$B$36 ->  | E13: annual MWh | AU13: Dry basis | AV13: Wet basis
A14: Loss | B14: =W10 ->  | C14: MW | D14: =B14*$B$36 ->  | E14: annual MWh | AS14: Biomass flow | AT14: kg/s
A15: Input | B15: =O10 -> 0 | C15: MW | D15: =B15*$B$36 -> 0 | E15: annual MWh | L15: BLENDING | R15: PREHEATING | X15: DIGESTER | AT15: Annual tonnes
H16: Biomass (d.b.) | I16: =DS4_MEB_v0!R5 ->  | J16: kg/s | AB16: Water | AC16: =DS4_MEB_v0!R9+DS4_MEB_v0!R10 ->  | AD16: kg/s | AH16: mass flow (kg/s) | AI16: Vol. flow (m3/s) | AJ16: Pm | AK16: Nm3/s | AL16: Nm3/h | AO16: kg/s | AP16: Pm | AQ16: Nm3/s | AS16: MWh electricity/ t biomass
A17: AD | H17: Biomass (a.r.) | I17: =DS4_MEB_v0!R6 ->  | J17: kg/s | O17: Solids content | P17: 0.2 | U17: T digestor | V17: =B45 ->  | W17: ° C | AG17: CH4 | AH17: =AA18 ->  | AI17: =AH17*1000/AJ17*$AH$23*($AI$23+$AG$23)/$AJ$23 ->  | AJ17: 16 | AK17: =AI17*($AK$23+$AG$23)/($AI$23+$AG$23) ->  | AL17: =AK17*$AG$25 ->  | AN17: =R21 -> CO2 | AO17: =S21 ->  | AP17: 44 | AQ17: =AO17*1000/AP17*$AH$23*($AK$23+$AG$23)/$AJ$23 ->  | AS17: MWh heat/ t biomass
A18: Biomass (d.b.) | B18: =I16 ->  | C18: kg/s | D18: =B18*$B$36*3600/1000 ->  | E18: annual tonnes | H18: Ambient T | I18: =B42 ->  | J18: ° C | Z18: Methane | AA18: =DS4_MEB_v0!V5 ->  | AB18: kg/s | AC18: Total | AG18: CO2 | AH18: =AA19 ->  | AI18: =AH18*1000/AJ18*$AH$23*($AI$23+$AG$23)/$AJ$23 ->  | AJ18: 44 | AK18: =AI18*($AK$23+$AG$23)/($AI$23+$AG$23) ->  | AL18: =AK18*$AG$25 ->  | AN18: =R22 -> H2O | AP18: 18 | AS18: MW energy/t biomass
A19: Biomass (a.r.) | B19: =I17 ->  | C19: kg/s | E19: annual tonnes | L19: Extra water | M19: =DS4_MEB_v0!R10 ->  | N19: kg/s | R19: Heat input | S19: =DS4_MEB_v0!V35 ->  | T19: MW | Z19: Carbon dioxide | AA19: =DS4_MEB_v0!V7 ->  | AB19: kg/s | AG19: NH3 | AH19: =AA20 ->  | AI19: =AH19*1000/AJ19*$AH$23*($AI$23+$AG$23)/$AJ$23 ->  | AJ19: 17 | AK19: =AI19*($AK$23+$AG$23)/($AI$23+$AG$23) ->  | AL19: =AK19*$AG$25 ->  | AN19: N2 | AP19: 28
A20: Extra water | B20: =M19 ->  | C20: kg/s | E20: annual tonnes | Z20: Amonnia | AA20: =DS4_MEB_v0!V8 ->  | AB20: kg/s | AG20: Total | AH20: =SUM(AH17:AH19) ->  | AI20: =AH20*1000/AJ20*$AH$23*($AI$23+$AG$23)/$AJ$23 ->  | AJ20: =AJ17*AH17/SUM($AH$17:$AH$19)+AJ18*AH18/SUM($AH$17:$AH$19)+AJ19*AH19/SUM($AH$17:$AH$19) ->  | AK20: =AI20*($AK$23+$AG$23)/($AI$23+$AG$23) ->  | AL20: =AK20*$AG$25 ->  | AN20: O2 | AP20: 32
A21: Air for combustion | B21: =AC21 ->  | C21: kg/s | E21: annual tonnes | R21: CO2 | S21: =DS4_MEB_v0!V13 ->  | T21: kg/s | X21: =B43 ->  | AB21: Air | AC21: =DS4_MEB_v0!R17 ->  | AD21: kg/s | AN21: NH3 | AP21: 17
A22: Biogas production | B22: =AH20 ->  | C22: kg/s | E22: annual tonnes | R22: H2O | S22: =DS4_MEB_v0!V11 ->  | T22: kg/s | AB22: Excess air | AC22: =B47 -> 0.15 | AG22: C->K | AH22: R | AI22: T dig (C) | AJ22: Pressure | AK22: T standard (Degrees) | AN22: Total | AO22: =SUM(AO17:AO21) ->  | AP22: =AO17/AO22*AP17+AO18/AO22*AP18+AO19/AO22*AP19+AO20/AO22*AP20+AO21/AO22*AP21 -> 
A23: Exhaust gases | B23: =SUM(S21:S25) ->  | C23: kg/s | E23: annual tonnes | R23: N2 | S23: =DS4_MEB_v0!V14 ->  | T23: kg/s | AG23: 273 | AH23: 8.314 | AI23: =B45 ->  | AJ23: =100000 -> 100000 | AK23: 0
A24: Output digestate post-digester | B24: =AC16 ->  | C24: kg/s | E24: annual tonnes | R24: O2 | S24: =DS4_MEB_v0!V15 ->  | T24: kg/s | AG24: s->h
A25: Biogas | B25: =AK20 ->  | C25: Nm3/s | E25: Annual Nm3 | R25: NH3 | S25: =DS4_MEB_v0!V16 ->  | T25: kg/s | V25: Heat input | W25: 0 | X25: MW | Z25: Electricity | AA25: =DS4_MEB_v0!V32 ->  | AB25: MW | AG25: 3600
A26: Exhaust gases | B26: =AQ22 ->  | C26: Nm3/s | E26: Annual Nm3 | R26: Comb. Temperature (estimation) | S26: =B46 ->  | T26: Degrees | Z26: Heat | AA26: =DS4_MEB_v0!V33 ->  | AB26: MW
A27: Energy | Z27: Losses | AA27: =DS4_MEB_v0!V34 ->  | AB27: MW
A28: Preheating | B28: =S19 ->  | C28: MW | D28: =B28*$B$36 ->  | E28: Annual MWh
A29: CHP Input | B29: =W25 -> 0 | C29: MW | D29: 0 | E29: Annual MWh
A30: Heat produced | B30: =AA26 ->  | C30: MW | E30: Annual MWh
A31: Electricity | B31: =AA25 ->  | C31: MW | E31: Annual MWh
A32: Losses | B32: =AA27 ->  | C32: MW | E32: Annual MWh
A33: Total Energy IN | B33: =B29+B28+B15 ->  | C33: MW | E33: Annual MWh
A35: Amendable parameters
A36: Annual operational hours | B36: =Feedstocks_Pathways!I24 -> 0 | C36: h.
A37: Energy installed | B37: =Feedstocks_Pathways!B24 -> 0 | C37: MW
A38: Biomass type
A39: Overall process | B39: CHP + AD
A40: Excess air CHP | B40: 0.15
A41: Process CHP | B41: =B43 -> 
A42: Ambient Temperature | B42: =B53 ->  | C42: ° C
A43: Energy process | B43: =B51 -> 
A44: Solids content | B44: =B52 -> 
A45: T digestate | B45: =B54 ->  | C45: ° C
A46: Comb. Temperature | B46: =B55 ->  | C46: ° C
A47: Excess air AD | B47: 0.15
F48: Carnot index heat | G48: =DS4_MEB_v0!M39 -> 
A49: Inputs DS4 | F49: Output
A50: =A39 -> Overall process | B50: =IF(Feedstocks_Pathways!E22=Feedstocks_Pathways!F54,Feedstocks_Pathways!G6,DS4_v1!D50) ->  | D50: CHP + AD | H50: Dry basis | I50: Wet basis
A51: =A43 -> Energy process | B51: =IF(Feedstocks_Pathways!E22=Feedstocks_Pathways!F54,Feedstocks_Pathways!G7,DS4_v1!D51) ->  | D51: CHP | F51: Biomass flow | G51: kg/s | H51: =B5 ->  | I51: =B6 -> FALSE
A52: =A44 -> Solids content | B52: =IF(Feedstocks_Pathways!$E$22=Feedstocks_Pathways!$F$54,Feedstocks_Pathways!G8,DS4_v1!D52) ->  | D52: 0.2 | G52: Annual tonnes | H52: =D5 ->  | I52: =D6 -> 0
A53: =A42 -> Ambient Temperature | B53: =IF(Feedstocks_Pathways!$E$22=Feedstocks_Pathways!$F$54,Feedstocks_Pathways!G9,DS4_v1!D53) ->  | C53: =C42 -> ° C | D53: 20 | F53: MWh heat/ t biomass | H53: =D30/D5 ->  | I53: =D30/D6 -> 
A54: =A45 -> T digestate | B54: =IF(Feedstocks_Pathways!$E$22=Feedstocks_Pathways!$F$54,Feedstocks_Pathways!G10,DS4_v1!D54) ->  | C54: =C45 -> ° C | D54: 35 | F54: MWh electricity/ t biomass | H54: =D31/D5 ->  | I54: =D31/D6 -> 
A55: =A46 -> Comb. Temperature | B55: =IF(Feedstocks_Pathways!$E$22=Feedstocks_Pathways!$F$54,Feedstocks_Pathways!G11,DS4_v1!D55) ->  | C55: =C46 -> ° C | D55: 1000 | F55: MWh exergy/t biomass | H55: =(D30+D31*G48)/D5 ->  | I55: =(D30+D31*G48)/D6 -> 
F56: Biogas production [annual tonnes] | I56: =D22 -> 
F57: Biogas/biomass [wet basis] | I57: =I56/I52 -> 

Sheet DS4_Information_v0 (hidden)
C2: LHV | K2: Heat reaction | N2: Slightly exothermic
C3: Methane | D3: 50050 | E3: kJ/kg | G3: Density POME | H3: 1 | I3: kg/m3 | K3: oxygen | L3: 0.21
C4: Hydrogen | D4: 120000 | E4: kJ/kg | G4: Yield POME from Fruit benches | H4: 0.85 | K4: nitrogen | L4: 0.79
C6: Manure | D6: Weight fraction | E6: Molar weight | F6: mol | G6: mol (%) | H6: mol (Formula) | I6: Mol. Weight | L6: Moisture content (application) | M6: Ash content | N6: Volatile matter | O6: Fixed carbon | P6: LHV (MJ/kg) | Q6: C | R6: H | S6: O | T6: Cp (kJ/kgK)
C7: C | D7: =DS4_MEB!C18 ->  | E7: 12 | F7: =D7/E7 ->  | G7: =F7/SUM($F$7:$F$10) ->  | H7: =G7/MIN($G$7:$G$10) ->  | I7: =H7*E7+H8*E8+H9*E9+H10*E10+H11*E11 ->  | K7: Veg | L7: =Feedstocks_Pathways!X58/100 ->  | M7: =Feedstocks_Pathways!Z58/100 ->  | N7: =Feedstocks_Pathways!AA58/100 ->  | O7: =Feedstocks_Pathways!AB58/100 ->  | P7: 4 | Q7: =Feedstocks_Pathways!AE58/100 ->  | R7: =Feedstocks_Pathways!AF58/100 ->  | S7: =Feedstocks_Pathways!AG58/100 ->  | T7: =Feedstocks_Pathways!AJ58 -> 
C8: H | D8: =DS4_MEB!C19 ->  | E8: 1 | F8: =D8/E8 ->  | G8: =F8/SUM($F$7:$F$10) ->  | H8: =G8/MIN($G$7:$G$10) ->  | N8: =N7*0.3 -> 
C9: O | D9: =DS4_MEB!C20 ->  | E9: 16 | F9: =D9/E9 ->  | G9: =F9/SUM($F$7:$F$10) ->  | H9: =G9/MIN($G$7:$G$10) -> 
C10: N | D10: =DS4_MEB!C21 ->  | E10: 14 | F10: =D10/E10 ->  | G10: =F10/SUM($F$7:$F$10) ->  | H10: =G10/MIN($G$7:$G$10) -> 
D13: Biomass (Manure) | G13: H2O | J13: CH4 | L13: CO2 | N13: NH3
C14: Stoic. Coeff. | D14: 1 | G14: =(4*H7-H8-2*H9+3*H10)/4 ->  | J14: =(4*H7+H8-2*H9-3*H10)/8 ->  | L14: =(4*H7-H8+2*H9+3*H10)/8 ->  | N14: =H10 ->  | R14: C | S14: O2 | T14: CO2
C15: Weight | D15: =I7 ->  | G15: =2*E8+E9 -> 18 | J15: =E7+4*E8 -> 16 | L15: =E7+2*E9 -> 44 | N15: =E10+3*E8 -> 17 | R15: 12 | S15: 32 | T15: 44
D16: kg biomass/kg product | G16: kg H2O/kg product | J16: kg CH4/kg reagent | L16: kg CO2/kg reagent | N16: kg NH3/kg reagent
D17: CH4 | E17: CO2 | F17: NH3 | G17: CH4 | H17: CO2 | I17: NH3 | J17: Biomass | K17: H2O | L17: Biomass | M17: H2O | N17: Biomass | O17: H2O
D18: =D15*D14/(J15*J14) ->  | E18: =D15*D14/(L15*L14) ->  | F18: =D15*D14/(N15*N14) ->  | G18: =G15*G14/(J15*J14) ->  | H18: =G15*G14/(L15*L14) ->  | I18: =G15*G14/(N15*N14) ->  | J18: =J15*J14/(D14*D15) ->  | K18: =J15*J14/(G14*G15) ->  | L18: =L15*L14/(D14*D15) ->  | M18: =L15*L14/(G14*G15) ->  | N18: =N15*N14/(D14*D15) ->  | O18: =N15*N14/(G14*G15) -> 
D21: Water heats | H21: CHP | I21: CHP | J21: Electricity only | K21: Heat only | M21: Extra water
D22: Vaporization heat | E22: 2256.4 | F22: kJ/kg | H22: Ne | I22: 0.375 | J22: 0.3 | K22: 0 | M22: Solids content
D23: Water | E23: 4.187 | F23: kJ/kgK | H23: Nh | I23: 0.455 | J23: 0 | K23: 0.85
D24: Steam | E24: 1.996 | F24: kJ/kgK | H24: Nt | I24: =SUM(I22:I23) -> 0.83 | J24: =SUM(J22:J23) -> 0.3 | K24: =SUM(K22:K23) -> 0.85
D25: T exit steam | E25: 330 | F25: °C | M25: Conversion efficiency (kg biogas/ biomass d.b.) | N25: Range
D26: Vaporization T | E26: 100 | F26: °C | N26: 0.6 | O26: 0.7
M27: Number to use | N27: =AVERAGE(N26:O26) -> 0.65
D28: CH4 | F28: O2 | H28: H2O | J28: CO2
C29: Stoic. Coefficient | D29: 1 | F29: 2 | H29: 2 | J29: 1
C30: Weight | D30: =E7+4*E8 -> 16 | F30: =E9*2 -> 32 | H30: =2*E8+E9 -> 18 | J30: =E7+2*E9 -> 44
D31: kgCH4/kg product | F31: kg O2/ kg product | H31: kg H2O/kg reagent | J31: kg CO2/ kg reagent
D32: H2O | E32: CO2 | F32: H2O | G32: CO2 | H32: CH4 | I32: O2 | J32: CH4 | K32: O2
D33: =D30*D29/(H30*H29) -> 0.4444444444 | E33: =D30*D29/(J30*J29) -> 0.3636363636 | F33: =F30*F29/(H30*H29) -> 1.777777778 | G33: =F30*F29/(J30*J29) -> 1.454545455 | H33: =H30*H29/(D30*D29) -> 2.25 | I33: =H30*H29/(F30*F29) -> 0.5625 | J33: =J30*J29/(D30*D29) -> 2.75 | K33: =J30*J29/(F30*F29) -> 0.6875
M44: Biomass conversion efficiency | N44: 0.6

Sheet DS4_Information (hidden)
C2: LHV
C3: Methane | D3: 50000 | E3: kJ/kg | G3: Density POME | H3: 1 | I3: kg/m3 | K3: oxygen | L3: 0.21 | AE3: Moisture content (application) | AF3: Ash content | AG3: Volatile matter | AH3: Fixed carbon | AI3: LHV (MJ/kg) | AJ3: C | AK3: H | AL3: O | AM3: Cp (kJ/kgK)
C4: Hydrogen | D4: 120000 | E4: kJ/kg | G4: Yield POME from Fruit benches | H4: 0.85 | K4: nitrogen | L4: 0.79 | AD4: Fruit bunches | AE4: =Feedstocks_Pathways!Y58/100 ->  | AF4: =Feedstocks_Pathways!Z58/100 ->  | AG4: =Feedstocks_Pathways!AA58/100 ->  | AH4: =Feedstocks_Pathways!AB58/100 ->  | AI4: =Feedstocks_Pathways!AC58 ->  | AJ4: =Feedstocks_Pathways!AE56/100 ->  | AK4: =Feedstocks_Pathways!AF56/100 ->  | AL4: =Feedstocks_Pathways!AH56/100 ->  | AM4: =Feedstocks_Pathways!AJ58 -> 
AD5: POME | AE5: 0.7 | AF5: 0.057 | AG5: 0.935 | AH5: 0.9 | AI5: 8 | AJ5: 0.5 | AK5: 0.05 | AL5: =0.4 -> 0.4 | AM5: 3
C6: POME | D6: Weight fraction | E6: Molar weight | F6: mol | G6: mol (%) | H6: Average Mol. Weight biomass | L6: Moisture content (application) | M6: Ash content | N6: Volatile matter | O6: Fixed carbon | P6: LHV (MJ/kg) | Q6: C | R6: H | S6: O | T6: Cp (kJ/kgK) | U6: Solids
C7: C | D7: =DS4_MEB!C18 ->  | E7: 12 | F7: =D7/E7 ->  | G7: =F7/$F$12 ->  | H7: =(G7*E7)+(G8*E8)+(G9*E9)+(G10*E10)+(E11*G11) ->  | K7: Feedstock | L7: =Feedstocks_Pathways!X58/100 ->  | M7: =Feedstocks_Pathways!Z58/100 ->  | N7: =Feedstocks_Pathways!AA58/100 ->  | O7: =Feedstocks_Pathways!AB58/100 ->  | P7: =Feedstocks_Pathways!AC58 ->  | Q7: =Feedstocks_Pathways!AE58/100 ->  | R7: =Feedstocks_Pathways!AF58/100 ->  | S7: =Feedstocks_Pathways!AG58/100 ->  | T7: =Feedstocks_Pathways!AJ58 ->  | U7: =Feedstocks_Pathways!AK58 -> 
C8: H | D8: =DS4_MEB!C19 ->  | E8: 1 | F8: =D8/E8 ->  | G8: =F8/$F$12 -> 
C9: O | D9: =DS4_MEB!C20 ->  | E9: 16 | F9: =D9/E9 ->  | G9: =F9/$F$12 -> 
C10: N | D10: =DS4_MEB!C21 ->  | E10: 14 | F10: =D10/E10 ->  | G10: =F10/$F$12 -> 
C11: other | D11: =DS4_MEB!C22 ->  | E11: 32 | F11: =D11/E11 ->  | G11: =F11/$F$12 -> 
F12: =SUM(F7:F11) ->  | G12: =SUM(G7:G11) -> 
D13: Buswell theoretical biogas composition
D14: Input | J14: Output
D15: Biomass (Manure) | G15: H2O | J15: CH4 | L15: CO2 | N15: NH3 | P15: H2S
C16: Coefficients | G16: =(4*G7-G8-(2*G9)+(3*G10)+(2*G11))/4 ->  | J16: =((4*G7)+G8-(2*G9)-(3*G10)-(2*G11))/8 ->  | L16: =((4*G7)-G8+(2*G9)+(3*G10)+(2*G11))/8 ->  | N16: =G10 ->  | P16: =G11 -> 
C17: Mol.weight | D17: =H7 ->  | G17: =2*E8+E9 -> 18 | J17: =E7+4*E8 -> 16 | L17: =E7+2*E9 -> 44 | N17: =E10+3*E8 -> 17
D20: Biogas composition | E20: mol% | F20: mol wt. | G20: wt. | H20: wt %
D21: CH4 | E21: =J16/(SUM(J16:O16)) ->  | F21: 16 | G21: =F21*E21 ->  | H21: =G21/$G$24 -> 
D22: CO2 | E22: =L16/(SUM(J16:O16)) ->  | F22: 44 | G22: =F22*E22 ->  | H22: =G22/$G$24 -> 
D23: NH3 | E23: =N16/(SUM(J16:O16)) ->  | F23: 17 | G23: =F23*E23 ->  | H23: =G23/$G$24 -> 
G24: =SUM(G21:G23) ->  | H24: =G24/$G$24 -> 
AE25: Meeting 16th November
D26: =J16/(SUM(J16:M16)) ->  | E26: % of carbon is degraded to methane | AH26: enthalpy
D27: =1-D26 ->  | E27: % of carbon degraded to CO2
AL28: 700 | AM28: kW electric
D29: Biomass conversion efficiency | E29: 0.6 | F29: Standard for all AD routes | AG29: Steam (100 degrees) | AH29: 2676 | AL29: ??? | AM29: kw heat
D30: VM | E30: =DS4_MEB!C23 ->  | O30: CHP | AG30: Water (100 degrees) | AH30: 419.17 | AI30: kJ/kg
P31: Ne | Q31: Nh | AG31: 70 bar | AH31: 2771.24 | AI31: kJ/kg | AO31: MW
E32: kg/s | F32: Mols | O32: CHP | P32: 0.15 | Q32: 0.65 | AG32: 90 bar | AH32: 2741.19 | AI32: kJ/kg
D33: Target methane production | E33: =DS4_MEB!K19 ->  | F33: =E33/J17 ->  | O33: Electricity only | P33: 0.3 | Q33: 0 | AG33: 12.5 bar | AH33: 2787.76 | AI33: kJ/kg | AK33: Diesel | AL33: 42.6 | AM33: MJ/kg | AN33: =AL35*AL34*AL33 -> 1.515521666
D34: CO2 | E34: =E33/H21*H22 ->  | F34: =E34/L17 ->  | O34: Heat only | P34: 0 | Q34: 0.85 | AG34: water (20 degrees) | AH34: 108.203 | AI34: kJ/kg | AL34: 0.846 | AM34: kg/L
D35: NH3 | E35: =E33/H21*H23 ->  | F35: =E35/N17 ->  | AE35: kg steam/s | AF35: t steam/h | AH35: kJ/kg | AI35: kW | AL35: =AF38/(AL37*3600) -> 0.04205156734 | AM35: L/s
AE36: =AF36/3.6 -> 0.5094444444 | AF36: 1.834 | AG36: energy 70bar | AH36: =AH31-AH30 -> 2352.07 | AI36: =AH36*AE36 -> 1198.248994 | AJ36: 700 | AK36: kWheat
D37: Carbon required | E37: =F37*12 ->  | F37: =F33/E29/D26/E30 ->  | AE37: =AF37/3.6 -> 1.388888889 | AF37: 5 | AG37: Energy 12.5 bar | AH37: =AH33-AH30 -> 2368.59 | AI37: =AH37*AE37 -> 3289.708333 | AL37: 5168 | AM37: Operational hours
AE38: Diesel consumption on low pressure boiler | AF38: 782361 | AG38: L | AI38: =((AI36+AI37)/1000-AN33)*AL39 -> 1.988829491
D39: Therefore total mass biomass required | E39: =E37/D7 ->  | F39: kg/s | G39: =E39*60*60 ->  | H39: kg/h | P39: hfg | AL39: 0.6690908458 | AM39: Around 90% for 0 value
O40: Enthalpies | P40: kJ/kg | Q40: MJ/kg | AE40: 97569 | AF40: m3 Matthew data POME input | AL40: =AE46-AE44 -> 
D41: Water required for reaction | E41: =E39-E33-E34-E35 ->  | F41: kg/s | O41: Water (10 °C) | P41: 1017 | Q41: =P41/1000 -> 1.017 | AE41: =Feedstocks_Pathways!M8/700*1000000 ->  | AF41: annual m3 (wb)
N42: High-pressure | O42: Steam (291 °C, 75 bar) | P42: 1466.53 | Q42: =P42/1000 -> 1.46653
N43: Low-pressure | O43: Steam (195 °C, 12 bar) | P43: 1970 | Q43: =P43/1000 -> 1.97
N44: CHP | O44: Steam (330 C, 30 bar) | P44: 1786.07 | Q44: =P44/1000 -> 1.78607 | AE44: 3023924 | AF44: Nm3 annual
AE45: 4000000 | AF45: biogas production capacity
AE46: ='DS4'!#REF! ->  | AF46: biogas production capacity
N47: Boiler data | O47: 700kW | P47: 1717 kg/h | AE47: 0.3099 | AF47: m3 gas/ m3 feedstock
N48: Boiler enthalpy | O48: =700/(1717/60/60) -> 1467.676179 | P48: kJ/kg
D49: Water heats
D50: Vaporization heat | E50: 2256.4 | F50: kJ/kg
D51: Water | E51: 4.187 | F51: kJ/kgK | N51: Reference for steam property requirements:
D52: Steam | E52: 1.996 | F52: kJ/kgK | N52: https://www.energy.gov/sites/prod/files/2016/09/f33/CHP-Steam%20Turbine.pdf
D53: T exit steam | E53: 330 | F53: °C
D54: Vaporization T | E54: 100 | F54: °C | N54: Based on 3MWe turbine | P54: Enthalpy, kJ/kg
N55: Steam inlet pressure, bar | O55: 41.4 | P55: 2958.6 | Q55: Supersteam - required for the CHP and Electricity case
E56: CH4 | G56: O2 | I56: H2O | K56: CO2 | N56: Steam inlet temperature, C | O56: 302
D57: Stoic. Coefficient | E57: 1 | G57: 2 | I57: 2 | K57: 1 | N57: Steam outlet pressure, bar | O57: 10 | P57: 1978 | Q57: For the heat only and CHP case
D58: Weight | E58: 16 | G58: 32 | I58: 18 | K58: 44 | N58: Steam outlet temperature, C | O58: 190
D59: kg/s | E59: =E33 ->  | G59: =G60*G58 ->  | I59: =I58*I60 ->  | K59: =K60*K58 -> 
D60: mols | E60: =E59/E58 ->  | G60: =G57*E60 ->  | I60: =I57*E60 ->  | K60: =E60 -> 
A66: Report
A68: Steam pressure | B68: 25 | C68: bar | E68: Vyneke | F68: 30 | G68: t/h | I68: Dresser-Rand Turbine | J68: 2.5 | K68: MW
E69: Vickers | F69: 30 | G69: t/h | I69: Turbokraft | J69: 1.5 | K69: MW
A71: Feed | B71: Palm kernel shells | C71: 0.3 | D71: 120 | E71: t/h | G71: Palm Oil Mill Effluent (POME) | H71: Water | I71: 0.95
B72: Fruit fibre | C72: 0.7 | H72: Others (Residual oil, soil particles, suspended solids) | I72: 0.05
B73: Empty fruit bunches (EFB) | H73: pH | I73: 5 | J73: Max
I74: 4 | J74: Min
H75: BOD (biological oxygen demand) | I75: 25000 | J75: mg/l
H76: COD (chemical oxygen demand) | I76: 50000 | J76: mg/l
A78: Lagoon/balloon (each, total of 2) (Feed to the one with lower amount of gas) | B78: Capacity each | C78: 10000 | D78: m3 | F78: Process | G78: POME retention | H78: 90 | I78: days
B79: T in min | C79: 30 | D79: °C | H79: 120 | I79: days
B80: T in max | C80: 35 | D80: °C | G80: Mesophilic temperatures
B81: Portion of the digestate mixed with effluent | C81: 0.05 | G81: No external heating
B82: Open pond excess effluent storage | C82: 12000 | D82: m3 | G82: Agitators used
G83: Inject air to prevent H2S formation
A84: Coefficients | G84: CH4 content in biogas | H84: 0.54
A85: Fresh Fruit Bunches (FFB) | B85: 1 | C85: t | D85: Initial: Fresh Fruit | H85: 0.56
A86: POME Production | B86: 0.85 | C86: m3 | G86: COD Removal efficiency | H86: 0.9
A87: Water content | B87: Max | C87: 0.95
B88: Min | C88: 0.9
A89: Recirculating | B89: 0.5
A90: Initial POME | B90: 0.65 | C90: m3 | D90: Initial POME
A91: CH4 | B91: 15 | C91: m3 | F91: Objective | G91: 0.85 | H91: Energy from company from biomass
A92: Treated Effluent | B92: 0.5 | C92: m3
A93: Biological sludge | B93: 0.5 | C93: m3
A94: N2 content in biological sludge | B94: 1 | C94: kg
A95: Steam energy content | B95: 60 | C95: kWh
A96: Feed rate per day per reactor | B96: Peak | C96: 300 | D96: m3
C97: 400 | D97: m3
B98: Lean | C98: 55 | D98: m3
C99: 200 | D99: m3
A100: 2019 | B100: POME | C100: 195137 | D100: m3
B101: Biogas | C101: 3023924 | D101: Nm3
B102: Diesel substituted | C102: 910012 | D102: L

Sheet DS4_MEB (hidden)
I1: =1-ABS(K4/G4-1) -> 
B2: =Feedstocks_Pathways!B11 ->  | C2: ='DS4'!B25 -> 0 | D2: MW | F2: Anaerobic Digestion | N2: Data type | O2: Magnitude | P2: Units | Q2: Range/List | R2: Effect
B3: Energy input | C3: =IF(C31="Heat only",C2/C33,C2/C32) ->  | D3: Mwe,th | F3: INPUT | J3: OUTPUTS | N3: User Inputs | O3: =Feedstocks_Pathways!B11 ->  | P3: MW | Q3: 0.01-5
F4: TOTAL | G4: =G5+G7+G10 ->  | H4: kg/s | J4: TOTAL | K4: =SUM(K5:K12) ->  | L4: kg/s | N4: Amendable parameters | O4: Manure composition | P4: % | Q4: 0-100 | R4: Composition of C,H, N and O within the manure
B5: Steam/water | F5: Biomass (d.b.) | G5: =DS4_Information!E39 ->  | H5: kg/s | J5: Methane | K5: =K19 ->  | L5: kg/s | O5: Manure H2O Content | P5: % | Q5: 0-100
B6: Flow steam | C6: =C7*3.6 ->  | D6: t/h | F6: Biomass (w.b.) | G6: =G5/(1-C25) ->  | H6: kg/s | J6: Carbon dioxide | K6: =K5/DS4_Information!H21*DS4_Information!H22 ->  | L6: kg/s | N6: Methodology | O6: 1. Based on target product capacity, the biomass demand, and steam production are calculated. Energy balance is calculated based on process type
C7: =C3*C14/(DS4_Information!Q42) ->  | D7: kg/s | F7: Moisture content | G7: =G6-G5 ->  | H7: kg/s | J7: Ammonia | K7: =K5/DS4_Information!H21*DS4_Information!H23 ->  | L7: kg/s | O7: 2. Calculate the other components according to the reactions in sheet "Information"
B8: Flow steam low pressure | C8: =C9*3.6 ->  | D8: t/h | F8: Water Reaction | G8: =DS4_Information!E41 ->  | H8: kg/s | J8: Other | K8: =G4-SUM(K5:K7,K9) ->  | L8: kg/s | O8: 3. Calculate the other parameters such as excess water used and energy balance
C9: =C3*C14/(DS4_Information!Q43) ->  | D9: kg/s | F9: Water fluent | G9: =G7-G8 ->  | H9: kg/s | J9: Waste | K9: =G9+G10+G5*(1-C23*C39) ->  | L9: kg/s | N9: Inputs Results | O9: Biomass | P9: kg/s (w.b.)
B10: CHP steam flow | C10: =C11*3.6 ->  | D10: t/h | F10: Extra water | G10: =IF(C26=DS4_Information!M49,C27,(G5-G7*C28)/C28) ->  | H10: kg/s | I10: Mass | N10: Outputs Results | O10: Gases from AD | P10: kg/s
C11: =C3*C14/(DS4_Information!Q44) ->  | D11: kg/s | F11: Solids content | G11: =C28 ->  | I11: Vol. | N11: Closure Results | O11: Closure | P11: % | Q11: 0-100 | R11: Accuracy of the calculations
F12: Total water | G12: =G10+G7 ->  | H12: kg/s
B14: Yield working fluid production | C14: 1
F15: ENERGY BALANCE | N15: Energy methane input
F16: INPUT | J16: Output
B17: Feedstock | F17: Biomass | G17: =G5 ->  | H17: kg/s | J17: AD
B18: C | C18: =Feedstocks_Pathways!AE58/100 ->  | F18: LHV biomass | G18: =DS4_Information!P7 ->  | H18: kJ/kg | J18: Methane | K18: =DS4_Information!D3 -> 50000 | L18: kJ/kg | O18: Temperatures | Q18: Carnot factor | S18: Energy (MWh) | U18: Exergy (MWh)
B19: H | C19: =Feedstocks_Pathways!AF58/100 ->  | F19: AD input | G19: =G17*G18 ->  | H19: MW | J19: Methane Flow | K19: =K20*1000/K18 ->  | L19: kg/s | N19: CHP | O19: Tamb | P19: =P22+273.15 ->  | Q19: Electricity | R19: 1 | S19: 19.1 | T19: =S19/S21 -> 0.2112831858 | U19: =R19*S19 -> 19.1 | V19: =U19/U21 -> 
B20: O | C20: =Feedstocks_Pathways!AH58/100 ->  | F20: Energy input | G20: =(C36-C35)*(G5*DS4_Information!T7+DS4_MEB!G12*DS4_Information!E51)/1000 ->  | H20: MW | J20: Energy output with Methane | K20: =C3 ->  | L20: MW | O20: Tsteam | P20: =P23+273.15 -> 603.15 | Q20: Heat | R20: =(P20-P19)/P20 ->  | S20: =71.3 -> 71.3 | T20: =S20/S21 -> 0.7887168142 | U20: =R20*S20 ->  | V20: =U20/U21 -> 
B21: N | C21: =Feedstocks_Pathways!AG58/100 ->  | S21: =SUM(S19:S20) -> 90.4 | U21: =SUM(U19:U20) -> 
B22: Others | C22: =1-C21-C20-C19-C18 ->  | D22: ° C | O22: Tamb | P22: =C35 -> 
B23: VM | C23: =Feedstocks_Pathways!AA58/100 ->  | D23: ° C | O23: Tsteam | P23: =C37 -> 330
D24: ° C | F24: ENERGY/ELECTRICITY PRODUCTION
B25: Veg moisture content | C25: =Feedstocks_Pathways!X58/100 ->  | I25: =1-ABS(K28/G28-1) -> 
B26: Define | C26: Solids content | F26: MASS
C27: 0 | F27: INPUT | J27: OUTPUT
B28: =IF(C26=DS4_Information_v0!M22,"Solids content","") -> Solids content | C28: =Feedstocks_Pathways!AK58/100 ->  | F28: TOTAL | G28: =SUM(G29,G35,G33,G32) ->  | H28: kg/s | J28: TOTAL | K28: =SUM(K29,K31,K32,K33) ->  | L28: kg/s
F29: Methane | G29: =K19 ->  | H29: kg/s | J29: H2O | K29: =DS4_Information!I59 ->  | L29: kg/s
B30: Pressure | C30: =IF(C31="heat only",Feedstocks_Pathways!G7,0) ->  | F30: O2 needed | G30: =DS4_Information!G59 ->  | H30: kg/s | J30: CO2 reaction | K30: =DS4_Information!K59 ->  | L30: kg/s
B31: Production | C31: ='DS4'!B27 ->  | F31: Excess air | G31: ='DS4'!AC12 -> 0.15 | J31: CO2 total | K31: =K30+G35 ->  | L31: kg/s
B32: Ne | C32: =LOOKUP(C31,DS4_Information!O32:O34,DS4_Information!P32:P34) ->  | F32: O2 IN | G32: =G30*(1+G31) ->  | H32: kg/s | J32: N2 | K32: =G33 ->  | L32: kg/s
B33: Nh | C33: =LOOKUP(C31,DS4_Information!O32:O34,DS4_Information!Q32:Q34) ->  | F33: N2 IN | G33: =G32/DS4_Information!L3*DS4_Information!L4 ->  | H33: kg/s | J33: Excess O2 | K33: =G32-G30 ->  | L33: kg/s
F34: AIR IN | G34: =G33+G32 ->  | H34: kg/s
B35: Ambient T | C35: ='DS4'!I8 ->  | F35: Carbon dioxide | G35: =K6 ->  | H35: kg/s
B36: T digestor | C36: ='DS4'!V7 -> 35
B37: T working fluid | C37: 330 | F37: ENERGY
F38: INPUT | J38: OUTPUT
B39: =DS4_Information!D29 -> Biomass conversion efficiency | C39: =DS4_Information!E29 -> 0.6 | F39: Methane | G39: =G29*DS4_Information!D3/1000 ->  | H39: MW | J39: Electricity | K39: =C3*C32 ->  | L39: MW
J40: Heat | K40: =C3*C33 ->  | L40: MW
C41: Useful steam leftover | J41: Losses | K41: =C3-K39-K40 ->  | L41: MW
B42: For CHP: | C42: =IF(C31="chp",C3*1000*C33/DS4_Information!P57,0) ->  | D42: kg/s | K42: =SUM(K39:K41) -> 
B43: For heat only:
B44: High pressure | C44: =IF(C30="high-pressure steam",C3*1000*C33/DS4_Information!P42,0) ->  | D44: kg/s
B45: Low pressure | C45: =IF(C30="low-pressure steam", C3*1000*C33/DS4_Information!P43,0) ->  | D45: kg/s

Sheet DS4
A2: Data summary from model | I2: Energy installed | J2: =B25 -> 0 | K2: MW | AJ2: Biogas 20C | AM2: Biogas Nm3 (0C)
A3: Mass balance | B3: SI | D3: Annual | G3: DS4 | H3: Nm3/kg biomass ar | I3: Feedstock type | J3: =B26 -> 0 0 | Y3: Biogas produced | AH3: mass flow (kg/s) | AI3: % | AJ3: density 20C | AK3: Vol. flow (m3/s) | AL3: % | AM3: density | AN3: Nm3/s | AR3: kg/s | AS3: density | AT3: Nm3/s
A4: Biomass (d.b.) | B4: =I6 ->  | C4: kg/s | D4: =B4*$AG$12*$B$23/1000 ->  | E4: annual tonnes | I4: Process | J4: =B27 ->  | AG4: CH4 | AH4: =AA8 ->  | AI4: =AH4/SUM($AH$4:$AH$6) ->  | AJ4: 0.668 | AK4: =AH4/AJ4 ->  | AL4: =AK4/SUM($AK$4:$AK$6) ->  | AM4: 0.716 | AN4: =AH4/AM4 ->  | AO4: =AN4/SUM($AN$4:$AN$6) ->  | AQ4: =R11 -> CO2 | AS4: =AM5 -> 1.98 | AT4: =AR4/AS4 -> 
A5: Biomass (a.r.) | B5: =I7 ->  | C5: kg/s | E5: annual tonnes | L5: BLENDING | R5: PREHEATING | X5: DIGESTER | AG5: CO2 | AH5: =AA9 ->  | AI5: =AH5/SUM($AH$4:$AH$6) ->  | AJ5: 1.842 | AK5: =AH5/AJ5 ->  | AL5: =AK5/SUM($AK$4:$AK$6) ->  | AM5: 1.98 | AN5: =AH5/AM5 ->  | AO5: =AN5/SUM($AN$4:$AN$6) ->  | AQ5: H2O | AS5: 0.804 | AT5: =AR5/AS5 -> 
A6: Extra water | B6: =J29 ->  | C6: kg/s | E6: annual tonnes | H6: Biomass (d.b.) | I6: =DS4_MEB!G5 ->  | J6: kg/s | AB6: Waste | AC6: =DS4_MEB!K9+DS4_MEB!K8 ->  | AD6: kg/s | AG6: NH3 | AH6: =AA10 ->  | AJ6: 0.717 | AM6: 0.769 | AN6: =AH6/AM6 ->  | AO6: =AN6/SUM($AN$4:$AN$6) ->  | AQ6: N2 | AS6: 1.2506 | AT6: =AR6/AS6 -> 
A7: Air for combustion | B7: =J30 ->  | C7: kg/s | E7: annual tonnes | H7: Biomass (a.r.) | I7: =DS4_MEB!G6 ->  | J7: kg/s | O7: Solids content | P7: =B28 ->  | Q7: % | U7: T digestor | V7: =B29 -> 35 | W7: ° C | AG7: Total | AH7: =SUM(AH4:AH6) ->  | AK7: =SUM(AK4:AK6) ->  | AN7: =SUM(AN4:AN6) ->  | AQ7: O2 | AS7: 1.429 | AT7: =AR7/AS7 -> 
A8: Biogas production | B8: =AD8 ->  | C8: kg/s | E8: annual tonnes | H8: Ambient T | I8: =B24 ->  | J8: ° C | Z8: Methane | AA8: =DS4_MEB!K5 ->  | AB8: kg/s | AC8: Total | AD8: =SUM(AA8:AA10) ->  | AQ8: NH3 | AS8: =AM6 -> 0.769 | AT8: =AR8/AS8 -> 
A9: Steam production | B9: =Y18 ->  | C9: kg/s | E9: annual tonnes | F9: =D9/D5 ->  | L9: Extra water | M9: =DS4_MEB!G10 ->  | N9: kg/s | R9: Heat input | S9: =DS4_MEB!G20 ->  | T9: MW | Z9: Carbon dioxide | AA9: =DS4_MEB!K6 ->  | AB9: kg/s | AD9: 50-60% | AG9: C->K | AH9: R | AK9: T dig (C) | AM9: Pressure | AN9: T standard (Degrees) | AQ9: Total | AR9: =SUM(AR4:AR8) ->  | AT9: =SUM(AT4:AT8) -> 
A10: Exhaust gases | B10: =M29 ->  | C10: kg/s | E10: annual tonnes | Z10: Amonnia | AA10: =DS4_MEB!K7 ->  | AB10: kg/s | AG10: 273 | AH10: 8.314 | AK10: 20 | AM10: =100000 -> 100000 | AN10: 0
A11: Output waste post-digester | B11: =AC6 ->  | C11: kg/s | E11: annual tonnes | R11: CO2 | S11: =DS4_MEB!K31 ->  | T11: kg/s | X11: Energy Production | AB11: Air | AC11: =DS4_MEB!G34 ->  | AD11: kg/s | AG11: s->h
A12: Biogas | B12: =AN7 ->  | C12: Nm3/s | D12: =B12*$AG$12*$B$23 ->  | E12: annual Nm3 | R12: H2O | S12: =DS4_MEB!K29 ->  | T12: kg/s | AB12: Excess air | AC12: =B31 -> 0.15 | AG12: 3600
A13: Exhaust gases | B13: =AT9 ->  | C13: Nm3/s | D13: =B13*$AG$12*$B$23 ->  | E13: annual Nm3 | R13: N2 | S13: =DS4_MEB!K32 ->  | T13: kg/s | X13: =J4 -> 
A14: Energy balance | R14: O2 | S14: =DS4_MEB!K33 ->  | T14: kg/s | X14: ='DS4'!D26 -> 
A15: Preheating | B15: =S9 ->  | C15: MW | D15: =B15*$B$23 ->  | E15: annual MWh | R15: NH3 | S15: =DS4_MEB!K7 ->  | T15: kg/s | AH15: =AP7*24 -> 0
A16: Energy production input | B16: =U18 -> 0 | C16: MW | D16: 0 | E16: annual MWh
A17: Heat produced | B17: =AC18 ->  | C17: MW | E17: annual MWh
A18: Electricity | B18: =AC19 ->  | C18: MW | E18: annual MWh | I18: MASS BALANCE | P18: Efficiency | X18: =X14 ->  | Y18: =SUM(DS4_MEB!C42:C45) ->  | Z18: kg/s | AB18: Heat | AC18: =DS4_MEB!K40 ->  | AD18: MW
A19: Losses | B19: =AC20 ->  | C19: MW | E19: annual MWh | AB19: Electricity | AC19: =DS4_MEB!K39 ->  | AD19: MW
A20: Total Energy IN | B20: =B15+B16 ->  | C20: MW | E20: annual MWh | AB20: Losses | AC20: =DS4_MEB!K41 ->  | AD20: MW
A22: Amendable Parameters
A23: Operational hours per year | B23: =Feedstocks_Pathways!I24 -> 0 | C23: h
A24: Ambient temperature | B24: =B52 ->  | C24: ° C
A25: =Feedstocks_Pathways!B11 ->  | B25: =Feedstocks_Pathways!B24 -> 0 | C25: MW
A26: Feedstock | B26: =Feedstocks_Pathways!W56&" "&Feedstocks_Pathways!W57 -> 0 0 | D26: =IF(B27="heat only",Feedstocks_Pathways!G7,"-") ->  | I26: IN | L26: OUT | P26: Biomass input x HV | V26: =D12*AO4*35.8/1000*0.3/3.6 -> 
A27: Energy production process | B27: =B50 ->  | I27: TOTAL | J27: =SUM(J28:J30) ->  | K27: kg/s | L27: TOTAL | M27: =SUM(M28:M30) ->  | N27: kg/s | P27: Energy output/Biomass input | V27: =D8*AI4*50/3.6*0.3 ->  | W27: =V27-V26 -> 
A28: Solids content | B28: =B55 ->  | I28: Biomass (a.r.) | J28: =I7 ->  | K28: kg/s | L28: Waste | M28: =AC6 ->  | N28: kg/s | W28: =AD8/I6 -> 
A29: T digester | B29: 35 | C29: ° C | I29: Extra water | J29: =M9 ->  | K29: kg/s | L29: Flue gases | M29: =SUM(S11:S15) ->  | N29: kg/s
A30: Comb. Temperature | B30: 350 | C30: ° C | I30: Air | J30: =AC11 ->  | K30: kg/s
A31: Excess air | B31: 0.15 | K31: Units! | L31: kg/s
F48: Carnot index heat | G48: =DS4_MEB!R20 -> 
A49: Inputs DS4 | F49: Output
A50: =A27 -> Energy production process | B50: =IF(Feedstocks_Pathways!E22=Feedstocks_Pathways!F54,Feedstocks_Pathways!G6,D50) ->  | D50: CHP | H50: Dry basis | I50: Wet basis
A51: =IF(B27="heat only", "Process type", " ") ->  | D51: Low-pressure steam | F51: Biomass flow | G51: kg/s | H51: =B4 ->  | I51: =B5 -> 
A52: =A24 -> Ambient temperature | B52: =IF(Feedstocks_Pathways!$E$22=Feedstocks_Pathways!$F$54,Feedstocks_Pathways!G8,'DS4'!D52) ->  | C52: ° C | D52: 20 | G52: annual tonnes | H52: =D4 ->  | I52: =D5 -> 
C53: =C29 -> ° C | D53: 35 | F53: MWh electricity/ t biomass | H53: =D18/D4 ->  | I53: =D18/D5 -> 
A54: Comb. Temperature | B54: 350 | C54: ° C | D54: 350 | F54: MWh heat/ t biomass | H54: =D17/D4 ->  | I54: =D17/D5 -> 
A55: =A28 -> Solids content | B55: =IF(Feedstocks_Pathways!$E$22=Feedstocks_Pathways!$F$54,Feedstocks_Pathways!AK58,"-") ->  | F55: Steam flow [tonnes per hour] | I55: =Y18/1000*3600 -> 
F56: Biogas production [annual Nm3] | I56: =D12 -> 
F57: Biogas/biomass [Nm3/ t w.b.] | I57: =I56/I52 -> 
F58: Methane content biogas (%) | I58: =AO4*100 -> 
F64: MWh exergy/t biomass | H64: =(D18*G48+D17)/D4 ->  | I64: =(D18*G48+D17)/D5 -> 

Sheet DS5_Information (hidden)
C2: LHV
C3: Methane | D3: 50000 | E3: kJ/kg | G3: Density POME | H3: 1 | I3: kg/m3 | K3: oxygen | L3: 0.21
C4: Hydrogen | D4: 120000 | E4: kJ/kg | G4: Yield POME from Fruit benches | H4: 0.85 | K4: nitrogen | L4: 0.79
C6: Manure | D6: Weight fraction | E6: Molar weight | F6: mol | G6: mol (%) | H6: Average Mol. Weight biomass | L6: Moisture content (application) | M6: Ash content | N6: Volatile matter | O6: Fixed carbon | P6: LHV (MJ/kg) | Q6: C | R6: H | S6: O | T6: Cp (kJ/kgK) | U6: Solids
C7: C | D7: =DS5_MEB!C6 ->  | E7: 12 | F7: =D7/E7 ->  | G7: =F7/$F$12 ->  | H7: =(G7*E7)+(G8*E8)+(G9*E9)+(G10*E10)+(E11*G11) ->  | K7: Feedstock | L7: =Feedstocks_Pathways!X58/100 ->  | M7: =Feedstocks_Pathways!Z58/100 ->  | N7: =Feedstocks_Pathways!AA58/100 ->  | O7: =Feedstocks_Pathways!AB58/100 ->  | P7: =Feedstocks_Pathways!AC58 ->  | Q7: =Feedstocks_Pathways!AE58/100 ->  | R7: =Feedstocks_Pathways!AF58/100 ->  | S7: =Feedstocks_Pathways!AG58/100 ->  | T7: =Feedstocks_Pathways!AJ58 ->  | U7: =Feedstocks_Pathways!AK58 -> 
C8: H | D8: =DS5_MEB!C7 ->  | E8: 1 | F8: =D8/E8 ->  | G8: =F8/$F$12 -> 
C9: O | D9: =DS5_MEB!C8 ->  | E9: 16 | F9: =D9/E9 ->  | G9: =F9/$F$12 -> 
C10: N | D10: =DS5_MEB!C9 ->  | E10: 14 | F10: =D10/E10 ->  | G10: =F10/$F$12 -> 
C11: others | D11: =DS5_MEB!C10 ->  | E11: 32 | F11: =D11/E11 ->  | G11: =F11/$F$12 -> 
D12: =SUM(D7:D11) ->  | F12: =SUM(F7:F11) -> 
D13: Buswell theoretical biogas composition
D14: Input | J14: Output
D15: Biomass (Manure) | G15: H2O | J15: CH4 | L15: CO2 | N15: NH3 | P15: H2S
C16: Coefficients | G16: =(4*G7-G8-(2*G9)+(3*G10)+(2*G11))/4 ->  | J16: =((4*G7)+G8-(2*G9)-(3*G10)-(2*G11))/8 ->  | L16: =((4*G7)-G8+(2*G9)+(3*G10)+(2*G11))/8 ->  | N16: =G10 ->  | P16: =G11 -> 
C17: Mol.weight | D17: =H7 ->  | G17: =2*E8+E9 -> 18 | J17: =E7+4*E8 -> 16 | L17: =E7+2*E9 -> 44 | N17: =E10+3*E8 -> 17
D20: Biogas composition | E20: mol% | F20: mol wt | G20: wt | H20: wt %
D21: CH4 | E21: =J16/(SUM(J16:O16)) ->  | F21: 16 | G21: =F21*E21 ->  | H21: =G21/$G$24 -> 
D22: CO2 | E22: =L16/(SUM(J16:O16)) ->  | F22: 44 | G22: =F22*E22 ->  | H22: =G22/$G$24 -> 
D23: NH3 | E23: =N16/(SUM(J16:O16)) ->  | F23: 17 | G23: =F23*E23 ->  | H23: =G23/$G$24 -> 
G24: =SUM(G21:G23) ->  | H24: =G24/$G$24 -> 
D26: =J16/(SUM(J16:M16)) ->  | E26: % of carbon is degraded to methane | J26: =J16/(SUM(J16:P16)) ->  | K26: Methane content biogas
D27: =1-D26 ->  | E27: % of carbon degraded to CO2
D29: Biomass conversion efficiency | E29: 0.6
D30: VM | E30: =DS5_MEB!C11 -> 
E32: kg/s | F32: Mols | V32: Report | Y32: Recent response
D33: Target methane production | E33: =DS5_MEB!K19 ->  | F33: =E33/J17 ->  | V33: 4000 | W33: t fruit | Y33: 4000 | Z33: t fruit
D34: CO2 | E34: =E33/H21*H22 ->  | F34: =E34/L17 ->  | V34: 3600 | W34: t residues | Y34: 3600 | Z34: t residues
D35: NH3 | E35: =E33/H21*H23 ->  | F35: =E35/N17 ->  | V35: =V34*0.095 -> 342 | W35: t Volatile solids | Y35: =Y34*0.095 -> 342 | Z35: t Volatile solids
V36: 0.35 | W36: Nm3/kg VS | Y36: =Y37/Y35/1000 -> 0.8832 | Z36: Nm3/kg VS
D37: Carbon required | E37: =F37*12 ->  | F37: =F33/E29/D26/E30 ->  | V37: =V35*V36*1000 -> 119700 | W37: Nm3 CH4 | Y37: =Y38*0.64 -> 302054.4 | Z37: Nm3 CH4
V38: =V37/0.64 -> 187031.25 | W38: Nm3 biogas (64% CH4) | Y38: 471960 | Z38: Nm3 biogas per year
D39: Therefore total mass biomass required | E39: =E37/D7 ->  | F39: kg/s | G39: =E39*60*60 ->  | H39: kg/h | V39: =V38/V34 -> 51.953125 | W39: Nm3 biogas/t residues | Y39: =Y38/V34 -> 131.1 | Z39: Nm3/t residue
Y40: =Y38/Y33 -> 117.99 | Z40: or Nm3/ t of fruit
D41: Water required for reaction | E41: =E39-E33-E34-E35 ->  | F41: kg/s | V41: =V37*0.0139 -> 1663.83 | W41: MWh input | Y41: =Y37*0.0139 -> 4198.55616 | Z41: MWh input
V42: =V41*0.35 -> 582.3405 | W42: MWh output | Y42: =Y41*0.35 -> 1469.494656 | Z42: MWh output
H44: CHP | I44: CHP | J44: Electricity only | K44: Heat only | M44: Extra water
H45: Ne | I45: 0.15 | J45: 0.3 | K45: 0 | M45: Solids content
H46: Nh | I46: 0.65 | J46: 0 | K46: 0.85
H47: Nt | I47: =SUM(I45:I46) -> 0.8 | J47: =SUM(J45:J46) -> 0.3 | K47: =SUM(K45:K46) -> 0.85
D50: Reference for steam property requirements:
D51: https://www.energy.gov/sites/prod/files/2016/09/f33/CHP-Steam%20Turbine.pdf
D53: Based on 3MWe turbine | F53: Enthalpy, kJ/kg
D54: Steam inlet pressure, bar | E54: 41.4 | F54: 2958.6 | G54: Supersteam - required for the CHP and Electricity case
D55: Steam inlet temperature, C | E55: 302
D56: Steam outlet pressure, bar | E56: 10 | F56: 1978 | G56: For the heat only and CHP case
D57: Steam outlet temperature, C | E57: 190
D60: Combustion
E61: CH4 | G61: O2 | I61: H2O | K61: CO2
D62: Stoic. Coefficient | E62: 1 | G62: 2 | I62: 2 | K62: 1
D63: Weight | E63: 16 | G63: 32 | I63: 18 | K63: 44
D64: kg/s | E64: =E33 ->  | G64: =G65*G63 ->  | I64: =I63*I65 ->  | K64: =K65*K63 -> 
D65: mols | E65: =E64/E63 ->  | G65: =G62*E65 ->  | I65: =I62*E65 ->  | K65: =E65 -> 

Sheet DS5_MEB (hidden)
I1: =1-ABS(K4/G4-1) -> 
B2: =Feedstocks_Pathways!B11 ->  | C2: ='DS5'!B25 -> 0 | D2: Mwe | F2: Anaerobic Digestion | N2: Data type | O2: Magnitude | P2: Units | Q2: Range/List | R2: Effect
B3: Energy input | C3: =IF(C19="Heat only",C2/C21,C2/C20) ->  | D3: Mwe,th | F3: INPUT | J3: OUTPUTS | N3: User Inputs | O3: =Feedstocks_Pathways!B11 ->  | P3: MW | Q3: 0.01-5
F4: TOTAL | G4: =G5+G7+G10 ->  | H4: kg/s | J4: TOTAL | K4: =SUM(K5:K9) ->  | L4: kg/s | N4: Amendable parameters | O4: Manure composition | P4: % | Q4: 0-100 | R4: Composition of C,H, N and O within the manure
B5: Manure | F5: Biomass (d.b.) | G5: =DS5_Information!E39 ->  | H5: kg/s | J5: Methane | K5: =K19 ->  | L5: kg/s | O5: Manure H2O Content | P5: % | Q5: 0-100
B6: C | C6: =Feedstocks_Pathways!AE58/100 ->  | F6: Biomass (w.b.) | G6: =G5/(1-C13) ->  | H6: kg/s | J6: Carbon dioxide | K6: =K5/DS5_Information!H21*DS5_Information!H22 ->  | L6: kg/s | N6: Methodology | O6: 1. Based on target product capacity, the biomass demand, and steam production are calculated. Energy balance is calculated based on process type
B7: H | C7: =Feedstocks_Pathways!AF58/100 ->  | F7: Moisture content | G7: =G6-G5 ->  | H7: kg/s | J7: Ammonia | K7: =K5/DS5_Information!H21*DS5_Information!H23 ->  | L7: kg/s | O7: 2. Calculate the other components according to the reactions in sheet "Information"
B8: O | C8: =Feedstocks_Pathways!AH58/100 ->  | F8: Water Reaction | G8: =DS5_Information!E41 ->  | H8: kg/s | J8: Other | K8: =G4-SUM(K5:K7,K9) ->  | L8: kg/s | O8: 3. Calculate the other parameters such as excess water used and energy balance
B9: N | C9: =Feedstocks_Pathways!AG58/100 ->  | F9: Water fluent | G9: =G7-G8 ->  | H9: kg/s | J9: Wastewater | K9: =G9+G10+G5*(1-C11*C27) ->  | L9: kg/s | N9: Inputs Results | O9: Biomass | P9: kg/s (w.b.)
B10: Others | C10: =1-C9-C8-C7-C6 ->  | F10: Extra water | G10: =IF(C14=DS5_Information!M44,C15,(G5-G7*C16)/C16) ->  | H10: kg/s | I10: Mass | N10: Outputs Results | O10: Gases from AD | P10: kg/s
B11: VM | C11: =Feedstocks_Pathways!AA58/100 ->  | F11: Solids content | G11: =C16 ->  | I11: Vol. | N11: Closure Results | O11: Closure | P11: % | Q11: 0-100 | R11: Accuracy of the calculations
F12: Total water | G12: =G10+G7 ->  | H12: kg/s
B13: Manure H2O Content | C13: =Feedstocks_Pathways!X58/100 -> 
B14: Define | C14: Solids content
B15: =IF(C14=DS5_Information!M44,"Flow extra water","") ->  | C15: 0 | D15: =IF(C14=DS5_Information!M21,"kg/s","") ->  | F15: ENERGY BALANCE | N15: Energy methane input
B16: =IF(C14=DS5_Information!M45,"Solids content","") -> Solids content | C16: =Feedstocks_Pathways!AK58/100 ->  | F16: INPUT | J16: Output
F17: Biomass | G17: =G6 ->  | H17: kg/s | J17: AD
F18: LHV biomass | G18: =DS5_Information!P7 ->  | H18: kJ/kg | J18: Methane | K18: =DS5_Information!D3 -> 50000 | L18: kJ/kg | O18: Temperatures | Q18: Carnot factor | S18: Energy (MWh) | U18: Exergy (MWh)
B19: Production | C19: ='DS5'!B27 ->  | F19: AD input | G19: =G18*G17 ->  | H19: MW | J19: Methane Flow | K19: =K20*1000/K18 ->  | L19: kg/s | N19: CHP | O19: Tamb | P19: =P22+273.15 ->  | Q19: Electricity | R19: 1 | S19: 19.1 | T19: =S19/S21 -> 0.2112831858 | U19: =R19*S19 -> 19.1 | V19: =U19/U21 -> 
B20: Ne | C20: =LOOKUP(C19,DS5_Information!I44:K44,DS5_Information!I45:K45) ->  | F20: Energy input | G20: =(C24-C23)*(G5*DS5_Information!T7+DS5_MEB!G12*DS5_Information!E23)/1000 ->  | H20: MW | J20: Energy output with Methane | K20: =C3 ->  | L20: MW | O20: Tsteam | P20: =P23+273.15 -> 603.15 | Q20: Heat | R20: =(P20-P19)/P20 ->  | S20: =71.3 -> 71.3 | T20: =S20/S21 -> 0.7887168142 | U20: =R20*S20 ->  | V20: =U20/U21 -> 
B21: Nh | C21: =LOOKUP(C19,DS5_Information!I44:K44,DS5_Information!I46:K46) ->  | S21: =SUM(S19:S20) -> 90.4 | U21: =SUM(U19:U20) -> 
O22: Tamb | P22: =C23 -> 
B23: Ambient T | C23: ='DS5'!I8 ->  | D23: ° C | O23: Tsteam | P23: =C25 -> 330
B24: T digestor | C24: ='DS5'!V7 -> 35 | D24: ° C | F24: ENERGY/ELECTRICITY PRODUCTION
B25: T working fluid | C25: 330 | D25: ° C | I25: =1-ABS(K28/G28-1) -> 
F26: MASS
B27: =DS5_Information!D29 -> Biomass conversion efficiency | C27: =DS5_Information!E29 -> 0.6 | F27: INPUT | J27: OUTPUT
F28: TOTAL | G28: =SUM(G29,G35,G33,G32) ->  | H28: kg/s | J28: TOTAL | K28: =SUM(K29,K31,K32,K33) ->  | L28: kg/s | O28: =50000/3600000 -> 0.01388888889
B29: Chosen output | C29: =Feedstocks_Pathways!G6 -> 0 | F29: Methane | G29: =K19 ->  | H29: kg/s | J29: H2O | K29: =DS5_Information!I64 ->  | L29: kg/s
F30: O2 needed | G30: =DS5_Information!G64 ->  | H30: kg/s | J30: CO2 reaction | K30: =DS5_Information!K64 ->  | L30: kg/s
C31: Steam output | F31: Excess air | G31: ='DS5'!AC12 -> 0.15 | J31: CO2 total | K31: =K30+G35 ->  | L31: kg/s
B32: For CHP | C32: =IF(C29="chp",K40/DS5_Information!F54*1000,0) -> 0 | D32: kg/s | F32: O2 IN | G32: =G30*(1+G31) ->  | H32: kg/s | J32: N2 | K32: =G33 ->  | L32: kg/s
B33: For heat only | C33: =IF(C29="heat only",K40/DS5_Information!F56*1000,0) -> 0 | D33: kg/s | F33: N2 IN | G33: =G32/DS5_Information!L3*DS5_Information!L4 ->  | H33: kg/s | J33: Excess O2 | K33: =G32-G30 ->  | L33: kg/s
B34: For electricity only | C34: =IF(C29="electricity only",0,0) -> 0 | D34: kg/s | E34: =IF(C29="electricity only",K39/DS5_Information!F54*1000,0) -> 0 | F34: AIR IN | G34: =G33+G32 ->  | H34: kg/s
F35: Carbon dioxide | G35: =K6 ->  | H35: kg/s
B36: Flow steam | C36: =C37/1000*60*60 -> 0 | D36: t/h
C37: =IF(C29="chp",C32,IF(C29="heat only",C33,C34)) -> 0 | D37: kg/s | F37: ENERGY
F38: INPUT | J38: OUTPUT
F39: Methane | G39: =G29*DS5_Information!D3/1000 ->  | H39: MW | J39: Electricity | K39: =C3*C20 ->  | L39: MW
J40: Heat | K40: =C3*C21 ->  | L40: MW
J41: Losses | K41: =C3-K39-K40 ->  | L41: MW
K42: =SUM(K39:K41) -> 

Sheet DS5
A2: Data summary from model | I2: Energy installed | J2: =B25 -> 0 | K2: MW | AJ2: Biogas 20C | AM2: Biogas Nm3 (0C)
A3: Mass balance | B3: SI | D3: Annual | G3: DS5 | H3: Nm3/kg biomass ar | I3: Feedstock type | J3: =B26 -> 0 0 | Y3: Biogas produced | AH3: mass flow (kg/s) | AI3: % | AJ3: density 20C | AK3: Vol. flow (m3/s) | AL3: % | AM3: density | AN3: Nm3/s | AR3: kg/s | AS3: density | AT3: Nm3/s
A4: Biomass (d.b.) | B4: =I6 ->  | C4: kg/s | D4: =B4*$AG$12*$B$23/1000 ->  | E4: annual tonnes | I4: Process | J4: =B27 ->  | AG4: CH4 | AH4: =AA8 ->  | AI4: =AH4/SUM($AH$4:$AH$6) ->  | AJ4: 0.668 | AK4: =AH4/AJ4 ->  | AL4: =AK4/SUM($AK$4:$AK$6) ->  | AM4: 0.716 | AN4: =AH4/AM4 ->  | AO4: =AN4/SUM($AN$4:$AN$6) ->  | AQ4: =R11 -> CO2 | AS4: =AM5 -> 1.98 | AT4: =AR4/AS4 -> 
A5: Biomass (a.r.) | B5: =I7 ->  | C5: kg/s | E5: annual tonnes | L5: BLENDING | R5: PREHEATING | X5: DIGESTER | AG5: CO2 | AH5: =AA9 ->  | AI5: =AH5/SUM($AH$4:$AH$6) ->  | AJ5: 1.842 | AK5: =AH5/AJ5 ->  | AL5: =AK5/SUM($AK$4:$AK$6) ->  | AM5: 1.98 | AN5: =AH5/AM5 ->  | AO5: =AN5/SUM($AN$4:$AN$6) ->  | AQ5: H2O | AS5: 0.804 | AT5: =AR5/AS5 -> 
A6: Extra water | B6: =J22 ->  | C6: kg/s | E6: annual tonnes | H6: Biomass (d.b.) | I6: =DS5_MEB!G5 ->  | J6: kg/s | AB6: Waste | AC6: =DS5_MEB!K8 ->  | AD6: kg/s | AG6: NH3 | AH6: =AA10 ->  | AJ6: 0.717 | AM6: 0.769 | AN6: =AH6/AM6 ->  | AQ6: N2 | AS6: 1.2506 | AT6: =AR6/AS6 -> 
A7: Air for combustion | B7: =J23 ->  | C7: kg/s | E7: annual tonnes | H7: Biomass (a.r.) | I7: =DS5_MEB!G6 ->  | J7: kg/s | O7: Solids content | P7: =B28 ->  | Q7: % | U7: T digestor | V7: =B29 -> 35 | W7: ° C | AG7: Total | AH7: =SUM(AH4:AH6) ->  | AK7: =SUM(AK4:AK6) ->  | AN7: =SUM(AN4:AN6) ->  | AQ7: O2 | AS7: 1.429 | AT7: =AR7/AS7 -> 
A8: Biogas production | B8: =AD8 ->  | C8: kg/s | E8: annual tonnes | H8: Ambient T | I8: =B24 ->  | J8: ° C | Z8: Methane | AA8: =DS5_MEB!K5 ->  | AB8: kg/s | AC8: Total | AD8: =SUM(AA8:AA10) ->  | AQ8: NH3 | AS8: =AM6 -> 0.769 | AT8: =AR8/AS8 -> 
A9: Steam production | B9: =W15 -> 0 | C9: kg/s | D9: 0 | E9: annual tonnes | L9: Extra water | M9: =DS5_MEB!G10 ->  | N9: kg/s | R9: Heat input | S9: =DS5_MEB!G20 ->  | T9: MW | Z9: Carbon dioxide | AA9: =DS5_MEB!K6 ->  | AB9: kg/s | AD9: 50-60% | AG9: C->K | AH9: R | AK9: T dig (C) | AM9: Pressure | AN9: T standard (Degrees) | AQ9: Total | AR9: =SUM(AR4:AR8) ->  | AT9: =SUM(AT4:AT8) -> 
A10: Exhaust gases | B10: =M22 ->  | C10: kg/s | E10: annual tonnes | Z10: Ammonia | AA10: =DS5_MEB!K7 ->  | AB10: kg/s | AG10: 273 | AH10: 8.314 | AK10: 20 | AM10: =100000 -> 100000 | AN10: 0
A11: Output waste post-digester | B11: =AC6 ->  | C11: kg/s | E11: annual tonnes | R11: CO2 | S11: =DS5_MEB!K31 ->  | T11: kg/s | X11: Energy Production | AB11: Air | AC11: =DS5_MEB!G34 ->  | AD11: kg/s | AG11: s->h
A12: Biogas | B12: =AN7 ->  | C12: Nm3/s | D12: =B12*$AG$12*$B$23 ->  | E12: annual Nm3 | R12: H2O | S12: =DS5_MEB!K29 ->  | T12: kg/s | AB12: Excess air | AC12: =B31 -> 0.15 | AG12: 3600
A13: Exhaust gases | B13: =AT9 ->  | C13: Nm3/s | D13: =B13*$AG$12*$B$23 ->  | E13: annual Nm3 | R13: N2 | S13: =DS5_MEB!K32 ->  | T13: kg/s | X13: =J4 -> 
A14: Energy balance | R14: O2 | S14: =DS5_MEB!K33 ->  | T14: kg/s
A15: Preheating | B15: =S9 ->  | C15: MW | D15: =B15*$B$23 ->  | E15: annual MWh | R15: NH3 | S15: =DS5_MEB!K7 ->  | T15: kg/s | V15: Steam | W15: =SUM(DS5_MEB!C32:C34) -> 0 | X15: kg/s | Z15: Heat | AA15: =DS5_MEB!K40 ->  | AB15: MW | AH15: =AP7*24 -> 0
A16: Energy production input | B16: =W15 -> 0 | C16: MW | D16: 0 | E16: annual MWh | Z16: Electricity | AA16: =DS5_MEB!K39 ->  | AB16: MW
A17: Heat produced | B17: =AA15 ->  | C17: MW | E17: annual MWh | Z17: Losses | AA17: =DS5_MEB!K41 ->  | AB17: MW
A18: Electricity | B18: =AA16 ->  | C18: MW | E18: annual MWh | I18: MASS BALANCE | P18: Efficiency
A19: Losses | B19: =AA17 ->  | C19: MW | E19: annual MWh | I19: IN | L19: OUT | P19: Biomass input x HV
A20: Total Energy IN | B20: =B15+B16 ->  | C20: MW | E20: annual MWh | I20: TOTAL | J20: =SUM(J21:J23) ->  | K20: kg/s | L20: TOTAL | M20: =SUM(M21:M22) ->  | N20: kg/s | P20: Energy output/Biomass input
I21: Biomass (a.r.) | J21: =I7 ->  | K21: kg/s | L21: Water | M21: =AC6 ->  | N21: kg/s | AH21: CH4 | AI21: 0.64 | AJ21: =AI21*AJ23 -> 64 | AL21: 0.94 | AT21: =AJ21 -> 64 | AV21: =D12 ->  | AW21: =AV21*AT23/100 -> 
A22: Amendable Parameters | I22: Extra water | J22: =M9 ->  | K22: kg/s | L22: Flue gases | M22: =SUM(S11:S15) ->  | N22: kg/s | AH22: CO3 | AI22: 0.36 | AJ22: =AI22*AJ23 -> 36 | AL22: 0.06 | AT22: =AT23-AT21 -> 4.085106383 | AV22: 614790 | AW22: =AV22*AT23/100 -> 418580.4255
A23: Operational hours per year | B23: =Feedstocks_Pathways!I24 -> 0 | C23: h | I23: Air | J23: =AC11 ->  | K23: kg/s | AJ23: 100 | AT23: =AT21/AL21 -> 68.08510638
A24: Ambient temperature | B24: =IF(Feedstocks_Pathways!E22="DS5",Feedstocks_Pathways!G8,0) ->  | C24: ° C | K24: Units! | L24: kg/s
A25: Energy installed | B25: =Feedstocks_Pathways!B24 -> 0 | C25: MW
A26: Feedstock | B26: =Feedstocks_Pathways!W56&" "&Feedstocks_Pathways!W57 -> 0 0 | V26: =D12*AO4*35.8/1000*0.3/3.6 -> 
A27: Energy production process | B27: =B50 ->  | V27: =D8*AI4*50/3.6*0.3 ->  | W27: =V27-V26 -> 
A28: Solids content | B28: =B69 -> 
A29: T digester | B29: 35 | C29: ° C
A30: Comb. Temperature | B30: 1000 | C30: ° C
A31: Excess air | B31: 0.15
F48: Carnot index heat | G48: =DS5_MEB!R20 -> 
A49: Inputs DS5 | F49: Output
A50: =A27 -> Energy production process | B50: =IF(Feedstocks_Pathways!E22=Feedstocks_Pathways!G54,Feedstocks_Pathways!G6,D50) ->  | D50: CHP | H50: Dry basis | I50: Wet basis
F51: Biomass flow | G51: kg/s | H51: =B4 ->  | I51: =B5 -> 
A52: =A24 -> Ambient temperature | B52: =B24 ->  | C52: =C24 -> ° C | D52: =B24 ->  | G52: annual tonnes | H52: =D4 ->  | I52: =D5 -> 
F53: MWh electricity/ t biomass | H53: =D18/D4 ->  | I53: =D18/D5 -> 
F54: MWh heat/ t biomass | H54: =D17/D4 ->  | I54: =D17/D5 -> 
F55: Steam flow [tonnes per hour] | I55: =B9*3600/1000 -> 0
F56: Biogas production [annual Nm3] | I56: =D12 -> 
F57: Biogas/biomass [Nm3/ t w.b.] | I57: =I56/I52 -> 
F58: Methane content biogas (%) | I58: =AO4*100 -> 
A69: =A28 -> Solids content | B69: =IF(Feedstocks_Pathways!$E$22=Feedstocks_Pathways!$G$54,Feedstocks_Pathways!AK58,'DS5'!D69) ->  | D69: - | F69: MWh exergy/t biomass | H69: =(D18*G48+D17)/D4 ->  | I69: =(D18*G48+D17)/D5 -> 
A70: =A29 -> T digester | B70: 35 | C70: =C29 -> ° C | D70: 35
A71: =A30 -> Comb. Temperature | B71: 1000 | C71: =C30 -> ° C | D71: 1000

Sheet DS6_Information (hidden)
C2: LHV
C3: Methane | D3: 50000 | E3: kJ/kg | G3: Density POME | H3: 1 | I3: kg/m3 | K3: oxygen | L3: 0.21
C4: Hydrogen | D4: 120000 | E4: kJ/kg | G4: Yield POME from Fruit benches | H4: 0.85 | K4: nitrogen | L4: 0.79
C6: Manure | D6: Weight fraction | E6: Molar weight | F6: mol | G6: mol (%) | H6: Average Mol. Weight biomass | L6: Moisture content (application) | M6: Ash content | N6: Volatile matter | O6: Fixed carbon | P6: LHV (MJ/kg) | Q6: C | R6: H | S6: O | T6: Cp (kJ/kgK) | U6: Solids
C7: C | D7: =DS6_MEB!C6 ->  | E7: 12 | F7: =D7/E7 ->  | G7: =F7/$F$12 ->  | H7: =(G7*E7)+(G8*E8)+(G9*E9)+(G10*E10)+(E11*G11) ->  | K7: Feedstock | L7: =Feedstocks_Pathways!X58/100 ->  | M7: =Feedstocks_Pathways!Z58/100 ->  | N7: =Feedstocks_Pathways!AA58/100 ->  | O7: =Feedstocks_Pathways!AB58/100 ->  | P7: =Feedstocks_Pathways!AC58 ->  | Q7: =Feedstocks_Pathways!AE58/100 ->  | R7: =Feedstocks_Pathways!AF58/100 ->  | S7: =Feedstocks_Pathways!AG58/100 ->  | T7: =Feedstocks_Pathways!AJ58 ->  | U7: =Feedstocks_Pathways!AK58 -> 
C8: H | D8: =DS6_MEB!C7 ->  | E8: 1 | F8: =D8/E8 ->  | G8: =F8/$F$12 -> 
C9: O | D9: =DS6_MEB!C8 ->  | E9: 16 | F9: =D9/E9 ->  | G9: =F9/$F$12 -> 
C10: N | D10: =DS6_MEB!C9 ->  | E10: 14 | F10: =D10/E10 ->  | G10: =F10/$F$12 -> 
C11: others | D11: =DS6_MEB!C10 ->  | E11: 32 | F11: =D11/E11 ->  | G11: =F11/$F$12 -> 
F12: =SUM(F7:F11) -> 
D13: Buswell theoretical biogas composition
D14: Input | J14: Output
D15: Biomass (Manure) | G15: H2O | J15: CH4 | L15: CO2 | N15: NH3 | P15: H2S
C16: Coefficients | G16: =(4*G7-G8-(2*G9)+(3*G10)+(2*G11))/4 ->  | J16: =((4*G7)+G8-(2*G9)-(3*G10)-(2*G11))/8 ->  | L16: =((4*G7)-G8+(2*G9)+(3*G10)+(2*G11))/8 ->  | N16: =G10 ->  | P16: =G11 -> 
C17: Mol.weight | D17: =H7 ->  | G17: =2*E8+E9 -> 18 | J17: =E7+4*E8 -> 16 | L17: =E7+2*E9 -> 44 | N17: =E10+3*E8 -> 17
D20: Biogas composition | E20: mol% | F20: mol wt | G20: wt | H20: wt %
D21: CH4 | E21: =J16/(SUM(J16:O16)) ->  | F21: 16 | G21: =F21*E21 ->  | H21: =G21/$G$24 -> 
D22: CO2 | E22: =L16/(SUM(J16:O16)) ->  | F22: 44 | G22: =F22*E22 ->  | H22: =G22/$G$24 -> 
D23: NH3 | E23: =N16/(SUM(J16:O16)) ->  | F23: 17 | G23: =F23*E23 ->  | H23: =G23/$G$24 -> 
G24: =SUM(G21:G23) ->  | H24: =G24/$G$24 -> 
D26: =J16/(SUM(J16:M16)) ->  | E26: % of carbon is degraded to methane | J26: =J16/(SUM(J16:P16)) ->  | K26: Methane content biogas
D27: =1-D26 ->  | E27: % of carbon degraded to CO2
D29: Biomass conversion efficiency | E29: 0.6
D30: VM | E30: =DS6_MEB!C11 -> 
E32: kg/s | F32: Mols
D33: Target methane production | E33: =DS6_MEB!K19 ->  | F33: =E33/J17 -> 
D34: CO2 | E34: =E33/H21*H22 ->  | F34: =E34/L17 -> 
D35: NH3 | E35: =E33/H21*H23 ->  | F35: =E35/N17 -> 
D37: Carbon required | E37: =F37*12 ->  | F37: =F33/E29/D26/E30 -> 
D39: Therefore total mass biomass required | E39: =E37/D7 ->  | F39: kg/s | G39: =E39*60*60 ->  | H39: kg/h
D41: Water required for reaction | E41: =E39-E33-E34-E35 ->  | F41: kg/s
D45: Water heats
D46: Vaporization heat | E46: 2256.4 | F46: kJ/kg
D47: Water | E47: 4.187 | F47: kJ/kgK
D48: Steam | E48: 1.996 | F48: kJ/kgK
D49: T exit steam | E49: 330 | F49: °C | K49: CHP | L49: CHP | M49: Electricity only | N49: Heat only | P49: Extra water
D50: Vaporization T | E50: 100 | F50: °C | K50: Ne | L50: 0.15 | M50: 0.3 | N50: 0 | P50: Solids content
D51: Reference for steam property requirements: | K51: Nh | L51: 0.65 | M51: 0 | N51: 0.85
D52: https://www.energy.gov/sites/prod/files/2016/09/f33/CHP-Steam%20Turbine.pdf | K52: Nt | L52: =SUM(L50:L51) -> 0.8 | M52: =SUM(M50:M51) -> 0.3 | N52: =SUM(N50:N51) -> 0.85
D54: Based on 3MWe turbine | F54: Enthalpy, kJ/kg
D55: Steam inlet pressure, bar | E55: 41.4 | F55: 2958.6 | G55: Supersteam - required for the CHP and Electricity case
D56: Steam inlet temperature, C | E56: 302
D57: Steam outlet pressure, bar | E57: 10 | F57: 1978 | G57: For the heat only and CHP case
D58: Steam outlet temperature, C | E58: 190
E59: CH4 | G59: O2 | I59: H2O | K59: CO2
D60: Stoic. Coefficient | E60: 1 | G60: 2 | I60: 2 | K60: 1
D61: Weight | E61: 16 | G61: 32 | I61: 18 | K61: 44
D62: kg/s | E62: =E33 ->  | G62: =G63*G61 ->  | I62: =I61*I63 ->  | K62: =K63*K61 -> 
D63: mols | E63: =E62/E61 ->  | G63: =G60*E63 ->  | I63: =I60*E63 ->  | K63: =E63 -> 

Sheet DS6_MEB (hidden)
I1: =1-ABS(K4/G4-1) -> 
B2: =Feedstocks_Pathways!B11 ->  | C2: ='DS6'!B25 -> 0 | D2: MW | F2: Anaerobic Digestion | Q2: Data type | R2: Magnitude | S2: Units | T2: Range/List | U2: Effect
B3: Energy input | C3: =IF(C19="Heat only",C2/C21,C2/C20) ->  | D3: Mwe,th | F3: INPUT | J3: OUTPUTS | Q3: User Inputs | R3: =Feedstocks_Pathways!B11 ->  | S3: MW | T3: 0.01-5
F4: TOTAL | G4: =G5+G7+G10 ->  | H4: kg/s | J4: TOTAL | K4: =SUM(K5:K9) ->  | L4: kg/s | Q4: Amendable parameters | R4: Manure composition | S4: % | T4: 0-100 | U4: Composition of C,H, N and O within the manure
B5: Manure | F5: Biomass (d.b.) | G5: =DS6_Information!E39 ->  | H5: kg/s | J5: Methane | K5: =K19 ->  | L5: kg/s | R5: Manure H2O Content | S5: % | T5: 0-100
B6: C | C6: =Feedstocks_Pathways!AE58/100 ->  | F6: Biomass (w.b.) | G6: =G5/(1-C13) ->  | H6: kg/s | J6: Carbon dioxide | K6: =K5/DS6_Information!H21*DS6_Information!H22 ->  | L6: kg/s | Q6: Methodology | R6: 1. Based on target product capacity, the biomass demand, and steam production are calculated. Energy balance is calculated based on process type
B7: H | C7: =Feedstocks_Pathways!AF58/100 ->  | F7: Water | G7: =G6-G5 ->  | H7: kg/s | J7: Ammonia | K7: =K5/DS6_Information!H21*DS6_Information!H23 ->  | L7: kg/s | R7: 2. Calculate the other components according to the reactions in sheet "Information"
B8: O | C8: =Feedstocks_Pathways!AH58/100 ->  | F8: Water Reaction | G8: =DS6_Information!E41 ->  | H8: kg/s | J8: Other | K8: =G4-SUM(K5:K7,K9) ->  | L8: kg/s | R8: 3. Calculate the other parameters such as excess water used and energy balance
B9: N | C9: =Feedstocks_Pathways!AG58/100 ->  | F9: Water fluent | G9: =G7-G8 ->  | H9: kg/s | J9: Wastewater | K9: =G9+G10+G5*(1-C11*C27) ->  | L9: kg/s | Q9: Inputs Results | R9: Biomass | S9: kg/s (w.b.)
B10: Others | C10: =1-C9-C8-C7-C6 ->  | F10: Extra water | G10: =IF(C14=DS6_Information!P49,C15,(G5-G7*C16)/C16) ->  | H10: kg/s | Q10: Outputs Results | R10: Gases from AD | S10: kg/s
B11: VM | C11: =Feedstocks_Pathways!AA58/100 ->  | F11: Solids content | G11: =C16 ->  | Q11: Closure Results | R11: Closure | S11: % | T11: 0-100 | U11: Accuracy of the calculations
F12: Total water | G12: =G10+G7 ->  | H12: kg/s
B13: Manure H2O Content | C13: =Feedstocks_Pathways!X58/100 -> 
B14: Define | C14: Solids content | I14: =1-ABS(K20/G19-1) ->  | N14: Methane per volatile matter
B15: =IF(C14=DS6_Information!P49,"Flow extra water","") ->  | C15: 0 | D15: =IF(C14=DS6_Information!P49,"kg/s","") ->  | F15: ENERGY BALANCE | N15: grams methane / grams VM
B16: =IF(C14=DS6_Information!P50,"Solids content","") -> Solids content | C16: =Feedstocks_Pathways!AK58/100 ->  | F16: INPUT | J16: Output
F17: Biomass | G17: =G5 ->  | H17: kg/s | J17: AD
F18: LHV biomass | G18: =DS6_Information!P7 ->  | H18: MJ/kg | J18: Methane | K18: =DS6_Information!D3 -> 50000 | L18: kJ/kg | R18: Temperatures | T18: Carnot factor | V18: Energy (MWh) | X18: Exergy (MWh)
B19: Production | C19: ='DS6'!B27 ->  | F19: AD input | G19: =G17*G18 ->  | H19: MW | J19: Methane Flow | K19: =K20*1000/K18 ->  | L19: kg/s | Q19: CHP | R19: Tamb | S19: =S22+273.15 ->  | T19: Electricity | U19: 1 | V19: 19.1 | W19: =V19/V21 -> 0.2112831858 | X19: =U19*V19 -> 19.1 | Y19: =X19/X21 -> 
B20: Ne | C20: =LOOKUP(C19,DS6_Information!L49:N49,DS6_Information!L50:N50) ->  | F20: Energy input | G20: =(C24-C23)*(G5*DS6_Information!T7+DS6_MEB!G12*DS6_Information!E47)/1000 ->  | H20: MW | J20: Energy output with Methane | K20: =C3 ->  | L20: MW | R20: Tsteam | S20: =S23+273.15 -> 603.15 | T20: Heat | U20: =(S20-S19)/S20 ->  | V20: =71.3 -> 71.3 | W20: =V20/V21 -> 0.7887168142 | X20: =U20*V20 ->  | Y20: =X20/X21 -> 
B21: Nh | C21: =LOOKUP(C19,DS6_Information!L49:N49,DS6_Information!L51:N51) ->  | V21: =SUM(V19:V20) -> 90.4 | X21: =SUM(X19:X20) -> 
G22: =G19*3600 ->  | H22: MWh | R22: Tamb | S22: =C23 -> 
B23: Ambient T | C23: ='DS6'!I8 ->  | R23: Tsteam | S23: =C25 -> 330
B24: T digestor | C24: ='DS6'!V7 -> 35 | F24: ENERGY/ELECTRICITY PRODUCTION
B25: T working fluid | C25: 330 | I25: =1-ABS(K28/G28-1) -> 
F26: MASS
B27: =DS6_Information!D29 -> Biomass conversion efficiency | C27: =DS6_Information!E29 -> 0.6 | F27: INPUT | J27: OUTPUT
F28: TOTAL | G28: =SUM(G29,G35,G33,G32) ->  | H28: kg/s | J28: TOTAL | K28: =SUM(K29,K31,K32,K33) ->  | L28: kg/s
B29: Chosen output | C29: =Feedstocks_Pathways!G6 -> 0 | F29: Methane | G29: =K19 ->  | H29: kg/s | J29: H2O | K29: =DS6_Information!I62 ->  | L29: kg/s
F30: O2 needed | G30: =DS6_Information!G62 ->  | H30: kg/s | J30: CO2 reaction | K30: =DS6_Information!K62 ->  | L30: kg/s
C31: Steam output | F31: Excess air | G31: ='DS6'!AC12 -> 0.15 | J31: CO2 total | K31: =K30+G35 ->  | L31: kg/s
B32: For CHP | C32: =IF(C29="chp",K40/DS6_Information!F57*1000,0) -> 0 | D32: kg/s | F32: O2 IN | G32: =G30*(1+G31) ->  | H32: kg/s | J32: N2 | K32: =G33 ->  | L32: kg/s
B33: For heat only | C33: =IF(C29="heat only",K40/DS6_Information!F57*1000,0) -> 0 | D33: kg/s | F33: N2 IN | G33: =G32/DS6_Information!L3*DS6_Information!L4 ->  | H33: kg/s | J33: Excess O2 | K33: =G32-G30 ->  | L33: kg/s
B34: For electricity only | C34: =IF(C29="electricity only",0,0) -> 0 | D34: kg/s | E34: =IF(C29="electricity only",K39/DS6_Information!F55*1000,0) -> 0 | F34: AIR IN | G34: =G33+G32 ->  | H34: kg/s
F35: Carbon dioxide | G35: =K6 ->  | H35: kg/s
F37: ENERGY
F38: INPUT | J38: OUTPUT
F39: Methane | G39: =G29*DS6_Information!D3/1000 ->  | H39: MW | J39: Electricity | K39: =C3*C20 ->  | L39: MW
J40: Heat | K40: =C3*C21 ->  | L40: MW
J41: Losses | K41: =C3-K39-K40 ->  | L41: MW
K42: =SUM(K39:K41) -> 

Sheet DS6
A2: Data summary from model | AJ2: Biogas 20C | AM2: Biogas Nm3 (0C)
A3: Mass balance | B3: SI | D3: Annual | G3: DS6 | Y3: Biogas produced | AH3: mass flow (kg/s) | AI3: % | AJ3: density 20C | AK3: Vol. flow (m3/s) | AL3: % | AM3: density | AN3: Nm3/s | AR3: kg/s | AS3: density | AT3: Nm3/s
A4: Biomass (d.b.) | B4: =I6 ->  | C4: kg/s | D4: =B4*$AG$12*$B$23/1000 ->  | E4: annual tonnes | G4: =D17/D5 ->  | AG4: CH4 | AH4: =AA8 ->  | AI4: =AH4/SUM($AH$4:$AH$6) ->  | AJ4: 0.668 | AK4: =AH4/AJ4 ->  | AL4: =AK4/SUM($AK$4:$AK$6) ->  | AM4: 0.716 | AN4: =AH4/AM4 ->  | AO4: =AN4/SUM($AN$4:$AN$6) ->  | AQ4: =R11 -> CO2 | AS4: =AM5 -> 1.98 | AT4: =AR4/AS4 -> 
A5: Biomass (a.r.) | B5: =I7 ->  | C5: kg/s | E5: annual tonnes | L5: BLENDING | R5: PREHEATING | X5: DIGESTER | AG5: CO2 | AH5: =AA9 ->  | AI5: =AH5/SUM($AH$4:$AH$6) ->  | AJ5: 1.842 | AK5: =AH5/AJ5 ->  | AL5: =AK5/SUM($AK$4:$AK$6) ->  | AM5: 1.98 | AN5: =AH5/AM5 ->  | AO5: =AN5/SUM($AN$4:$AN$6) ->  | AQ5: H2O | AS5: 0.804 | AT5: =AR5/AS5 -> 
A6: Extra water | B6: =J23 ->  | C6: kg/s | E6: annual tonnes | H6: Biomass (d.b.) | I6: =DS6_MEB!G5 ->  | J6: kg/s | AB6: Waste | AC6: =DS6_MEB!K7 ->  | AD6: kg/s | AG6: NH3 | AH6: =AA10 ->  | AJ6: 0.717 | AM6: 0.769 | AN6: =AH6/AM6 ->  | AQ6: N2 | AS6: 1.2506 | AT6: =AR6/AS6 -> 
A7: Air for combustion | B7: =J24 ->  | C7: kg/s | E7: annual tonnes | H7: Biomass (a.r.) | I7: =DS6_MEB!G6 ->  | J7: kg/s | O7: Solids content | P7: =B28 ->  | Q7: % | U7: T digester | V7: =B29 -> 35 | W7: ° C | AG7: Total | AH7: =SUM(AH4:AH6) ->  | AK7: =SUM(AK4:AK6) ->  | AN7: =SUM(AN4:AN6) ->  | AQ7: O2 | AS7: 1.429 | AT7: =AR7/AS7 -> 
A8: Biogas production | B8: =AD8 ->  | C8: kg/s | E8: annual tonnes | H8: Ambient T | I8: =B24 ->  | J8: ° C | Z8: Methane | AA8: =DS6_MEB!K5 ->  | AB8: kg/s | AC8: Total | AD8: =SUM(AA8:AA10) ->  | AQ8: NH3 | AS8: =AM6 -> 0.769 | AT8: =AR8/AS8 -> 
A9: Steam production | B9: =W15 -> 0 | C9: kg/s | D9: 0 | E9: annual tonnes | L9: Extra water | M9: =DS6_MEB!G10 ->  | N9: kg/s | R9: Heat input | S9: =DS6_MEB!G20 ->  | T9: MW | Z9: Carbon dioxide | AA9: =DS6_MEB!K6 ->  | AB9: kg/s | AG9: C->K | AH9: R | AK9: T dig (C) | AM9: Pressure | AN9: T standard (Degrees) | AQ9: Total | AR9: =SUM(AR4:AR8) ->  | AT9: =SUM(AT4:AT8) -> 
A10: Exhaust gases | B10: =M23 ->  | C10: kg/s | E10: annual tonnes | Z10: Ammonia | AA10: =DS6_MEB!K7 ->  | AB10: kg/s | AG10: 273 | AH10: 8.314 | AK10: 20 | AM10: =100000 -> 100000 | AN10: 0
A11: Output waste post-digester | B11: =AC6 ->  | C11: kg/s | E11: annual tonnes | R11: CO2 | S11: =DS6_MEB!K31 ->  | T11: kg/s | X11: Energy Production | AB11: Air | AC11: =DS6_MEB!G34 ->  | AD11: kg/s | AG11: s->h
A12: Biogas | B12: =AN7 ->  | C12: Nm3/s | D12: =B12*$AG$12*$B$23 ->  | E12: annual Nm3 | R12: H2O | S12: =DS6_MEB!K29 ->  | T12: kg/s | AB12: Excess air | AC12: =B31 -> 0.15 | AG12: 3600 | AN12: =AP7*B23/D5 -> 
A13: Exhaust gases | B13: =AT9 ->  | C13: Nm3/s | D13: =B13*$AG$12*$B$23 ->  | E13: annual Nm3 | H13: MWh/ tonne of biomass | R13: N2 | S13: =DS6_MEB!K32 ->  | T13: kg/s | X13: =F24 -> 
A14: Energy inputs | R14: O2 | S14: =DS6_MEB!K33 ->  | T14: kg/s
A15: Preheating | B15: =S9 ->  | C15: MW | D15: =B15*$B$23 ->  | E15: annual MWh | R15: NH3 | S15: =DS6_MEB!K6 ->  | T15: kg/s | V15: Steam | W15: =SUM(DS6_MEB!C32:C34) -> 0 | X15: kg/s | Z15: Heat | AA15: =DS6_MEB!K40 ->  | AB15: MW
A16: CHP Input | B16: =W15 -> 0 | C16: MW | D16: 0 | E16: annual MWh | Z16: Electricity | AA16: =DS6_MEB!K39 ->  | AB16: MW
A17: Heat produced | B17: =AA15 ->  | C17: MW | E17: annual MWh | Z17: Losses | AA17: =DS6_MEB!K41 ->  | AB17: MW
A18: Electricity | B18: =AA16 ->  | C18: MW | E18: annual MWh | I18: MASS BALANCE | P18: Efficiency
A19: Losses | B19: =AA17 ->  | C19: MW | E19: annual MWh
A20: Total Energy IN | B20: =B15+B16 ->  | C20: MW | E20: annual MWh | I20: IN | L20: OUT | P20: Biomass input x HV
I21: TOTAL | J21: =SUM(J22:J24) ->  | K21: kg/s | L21: TOTAL | M21: =SUM(M22:M23) ->  | N21: kg/s | P21: Energy output/Biomass input
A22: Amendable Parameters | F22: =B25 -> 0 | G22: MW | I22: Biomass (a.r.) | J22: =I7 ->  | K22: kg/s | L22: Water | M22: =AC6 ->  | N22: kg/s
A23: Operational hours per year | B23: =Feedstocks_Pathways!I24 -> 0 | C23: h | E23: =A25 ->  | F23: =B26 -> 0 0 | I23: Extra water | J23: =M9 ->  | K23: kg/s | L23: Flue gases | M23: =SUM(S11:S15) ->  | N23: kg/s
A24: Ambient temperature | B24: =B52 ->  | C24: ° C | E24: Feedstock type | F24: =B27 ->  | I24: Air | J24: =AC11 ->  | K24: kg/s
A25: =Feedstocks_Pathways!B11 ->  | B25: =Feedstocks_Pathways!B24 -> 0 | C25: MW | E25: Process | K25: Units! | L25: kg/s
A26: Feedstock | B26: =Feedstocks_Pathways!W56&" "&Feedstocks_Pathways!W57 -> 0 0 | V26: =D12*AO4*35.8/1000*0.3/3.6 -> 
A27: Energy production process | B27: =B50 ->  | V27: =D8*AI4*50/3.6*0.3 ->  | W27: =V27-V26 -> 
A28: Solids content | B28: =B67 -> 
A29: T digester | B29: =B68 -> 35 | C29: ° C
A31: Excess air | B31: 0.15
F48: Carnot index heat | G48: =DS6_MEB!U20 -> 
A49: Inputs DS6 | F49: Output
A50: =A27 -> Energy production process | B50: =IF(Feedstocks_Pathways!E22=Feedstocks_Pathways!H54,Feedstocks_Pathways!G6,D50) ->  | D50: CHP | H50: Dry basis | I50: Wet basis
F51: Biomass flow | G51: kg/s | H51: =B4 ->  | I51: =B5 -> 
A52: =A24 -> Ambient temperature | B52: =IF(Feedstocks_Pathways!$E$22=Feedstocks_Pathways!$H$54,Feedstocks_Pathways!G8,'DS6'!D52) ->  | C52: =C24 -> ° C | D52: 20 | G52: annual tonnes | H52: =D4 ->  | I52: =D5 -> 
F53: MWh electricity/ t biomass | H53: =D18/D4 ->  | I53: =D18/D5 -> 
F54: MWh heat/ t biomass | H54: =D17/D4 ->  | I54: =D17/D5 -> 
F55: Steam flow [tonnes per hour] | I55: =B9*3600/1000 -> 0
F56: Biogas production [annual Nm3] | I56: =D12 -> 
F57: Biogas/biomass [Nm3/ t w.b.] | I57: =I56/I52 -> 
F58: Methane content biogas (%) | I58: =AO4*100 -> 
A67: =A28 -> Solids content | B67: =IF(Feedstocks_Pathways!$E$22=Feedstocks_Pathways!$H$54,Feedstocks_Pathways!AK58,'DS6'!D67) ->  | D67: - | F67: MWh exergy/t biomass | H67: =(D18*G48+D17)/D4 ->  | I67: =(D18*G48+D17)/D5 -> 
A68: =A29 -> T digester | B68: 35 | C68: =C29 -> ° C | D68: 35

Sheet DS7_Information (hidden)
C2: LHV
C3: Methane | D3: 50000 | E3: kJ/kg | G3: Density POME | H3: 1 | I3: kg/m3 | K3: oxygen | L3: 0.21
C4: Hydrogen | D4: 120000 | E4: kJ/kg | G4: Yield POME from Fruit benches | H4: 0.85 | K4: nitrogen | L4: 0.79
C6: Manure | D6: Weight fraction | E6: Molar weight | F6: mol | G6: mol (%) | H6: Average Mol. Weight biomass | L6: Moisture content (application) | M6: Ash content | N6: Volatile matter | O6: Fixed carbon | P6: LHV (MJ/kg) | Q6: C | R6: H | S6: O | T6: Cp (kJ/kgK) | U6: Solids
C7: C | D7: =DS7_MEB!C6 ->  | E7: 12 | F7: =D7/E7 ->  | G7: =F7/$F$12 ->  | H7: =(G7*E7)+(G8*E8)+(G9*E9)+(G10*E10)+(E11*G11) ->  | K7: Feedstock | L7: =Feedstocks_Pathways!X58/100 ->  | M7: =Feedstocks_Pathways!Z58/100 ->  | N7: =Feedstocks_Pathways!AA58/100 ->  | O7: =Feedstocks_Pathways!AB58/100 ->  | P7: =Feedstocks_Pathways!AC58 ->  | Q7: =Feedstocks_Pathways!AE58/100 ->  | R7: =Feedstocks_Pathways!AF58/100 ->  | S7: =Feedstocks_Pathways!AG58/100 ->  | T7: =Feedstocks_Pathways!AJ58 ->  | U7: =Feedstocks_Pathways!AK58 -> 
C8: H | D8: =DS7_MEB!C7 ->  | E8: 1 | F8: =D8/E8 ->  | G8: =F8/$F$12 -> 
C9: O | D9: =DS7_MEB!C8 ->  | E9: 16 | F9: =D9/E9 ->  | G9: =F9/$F$12 -> 
C10: N | D10: =DS7_MEB!C9 ->  | E10: 14 | F10: =D10/E10 ->  | G10: =F10/$F$12 -> 
C11: others | D11: =DS7_MEB!C10 ->  | E11: 32 | F11: =D11/E11 ->  | G11: =F11/$F$12 -> 
F12: =SUM(F7:F11) -> 
D13: Buswell theoretical biogas composition
D14: Input | J14: Output
D15: Biomass (Manure) | G15: H2O | J15: CH4 | L15: CO2 | N15: NH3 | P15: H2S
C16: Coefficients | G16: =(4*G7-G8-(2*G9)+(3*G10)+(2*G11))/4 ->  | J16: =((4*G7)+G8-(2*G9)-(3*G10)-(2*G11))/8 ->  | L16: =((4*G7)-G8+(2*G9)+(3*G10)+(2*G11))/8 ->  | N16: =G10 ->  | P16: =G11 -> 
C17: Mol.weight | D17: =H7 ->  | G17: =2*E8+E9 -> 18 | J17: =E7+4*E8 -> 16 | L17: =E7+2*E9 -> 44 | N17: =E10+3*E8 -> 17
D20: Biogas composition | E20: mol% | F20: mol wt | G20: wt | H20: wt %
D21: CH4 | E21: =J16/(SUM(J16:O16)) ->  | F21: 16 | G21: =F21*E21 ->  | H21: =G21/$G$24 -> 
D22: CO2 | E22: =L16/(SUM(J16:O16)) ->  | F22: 44 | G22: =F22*E22 ->  | H22: =G22/$G$24 -> 
D23: NH3 | E23: =N16/(SUM(J16:O16)) ->  | F23: 17 | G23: =F23*E23 ->  | H23: =G23/$G$24 -> 
G24: =SUM(G21:G23) ->  | H24: =G24/$G$24 -> 
D26: =J16/(SUM(J16:M16)) ->  | E26: % of carbon is degraded to methane | J26: =J16/(SUM(J16:P16)) ->  | K26: Methane content biogas
D27: =1-D26 ->  | E27: % of carbon degraded to CO2
D29: Biomass conversion efficiency | E29: 0.6
D30: VM | E30: =DS7_MEB!C11 -> 
E32: kg/s | F32: Mols
D33: Target methane production | E33: =DS7_MEB!K19 ->  | F33: =E33/J17 -> 
D34: CO2 | E34: =E33/H21*H22 ->  | F34: =E34/L17 -> 
D35: NH3 | E35: =E33/H21*H23 ->  | F35: =E35/N17 -> 
D37: Carbon required | E37: =F37*12 ->  | F37: =F33/E29/D26/E30 ->  | AB37: CHP | AC37: CHP | AD37: Electricity only | AE37: Heat only
AB38: Ne | AC38: 0.15 | AD38: 0.3 | AE38: 0
D39: Therefore total mass biomass required | E39: =E37/D7 ->  | F39: kg/s | G39: =E39*60*60 ->  | H39: kg/h | AB39: Nh | AC39: 0.65 | AD39: ='DS7'!AT39 -> 0 | AE39: 0.85
AB40: Nt | AC40: =SUM(AC38:AC39) -> 0.8 | AD40: =SUM(AD38:AD39) -> 0.3 | AE40: =SUM(AE38:AE39) -> 0.85
D41: Water required for reaction | E41: =E39-E33-E34-E35 ->  | F41: kg/s
D49: Water heats | H49: CHP | I49: CHP | J49: Electricity only | K49: Heat only | M49: Extra water
D50: Vaporization heat | E50: 2256.4 | F50: kJ/kg | H50: Ne | I50: 0.15 | J50: 0.3 | K50: 0 | M50: Solids content
D51: Water | E51: 4.187 | F51: kJ/kgK | H51: Nh | I51: 0.65 | J51: 0 | K51: 0.85 | N51: Reference for steam property requirements:
D52: Steam | E52: 1.996 | F52: kJ/kgK | H52: Nt | I52: =SUM(I50:I51) -> 0.8 | J52: =SUM(J50:J51) -> 0.3 | K52: =SUM(K50:K51) -> 0.85 | N52: https://www.energy.gov/sites/prod/files/2016/09/f33/CHP-Steam%20Turbine.pdf
D53: T exit steam | E53: 330 | F53: °C
D54: Vaporization T | E54: 100 | F54: °C | N54: Based on 3MWe turbine | P54: Enthalpy, kJ/kg
N55: Steam inlet pressure, bar | O55: 41.4 | P55: 2958.6 | Q55: Supersteam - required for the CHP and Electricity case
E56: CH4 | G56: O2 | I56: H2O | K56: CO2 | N56: Steam inlet temperature, C | O56: 302
D57: Stoic. Coefficient | E57: 1 | G57: 2 | I57: 2 | K57: 1 | N57: Steam outlet pressure, bar | O57: 10 | P57: 1978 | Q57: For the heat only and CHP case
D58: Weight | E58: 16 | G58: 32 | I58: 18 | K58: 44 | N58: Steam outlet temperature, C | O58: 190
D59: kg/s | E59: =E33 ->  | G59: =G60*G58 ->  | I59: =I58*I60 ->  | K59: =K60*K58 -> 
D60: mols | E60: =E59/E58 ->  | G60: =G57*E60 ->  | I60: =I57*E60 ->  | K60: =E60 -> 
H62: CHP | I62: CHP | J62: Electricity only | K62: Heat only
H63: Ne | I63: 0.15 | J63: 0.3 | K63: 0
H64: Nh | I64: 0.65 | J64: 0 | K64: 0.85
H65: Nt | I65: =SUM(I63:I64) -> 0.8 | J65: =SUM(J63:J64) -> 0.3 | K65: =SUM(K63:K64) -> 0.85

Sheet DS7_MEB (hidden)
I1: =1-ABS(K4/G4-1) ->  | Q1: Data type | R1: Magnitude | S1: Units | T1: Range/List | U1: Effect
B2: =Feedstocks_Pathways!B11 ->  | C2: ='DS7'!B25 -> 0 | D2: MW | F2: Anaerobic Digestion | Q2: User Inputs | R2: =Feedstocks_Pathways!B11 ->  | S2: MW | T2: 0.01-5
B3: Energy input | C3: =IF(C19="Heat only",C2/C21,C2/C20) ->  | D3: MW | F3: INPUT | J3: OUTPUTS | Q3: Amendable parameters | R3: Manure composition | S3: % | T3: 0-100 | U3: Composition of C,H, N and O within the manure
F4: TOTAL | G4: =G5+G7+G10 ->  | H4: kg/s | J4: TOTAL | K4: =SUM(K5:K9) ->  | L4: kg/s | R4: Manure H2O Content | S4: % | T4: 0-100
B5: Manure | F5: Biomass (d.b.) | G5: =DS7_Information!E39 ->  | H5: kg/s | J5: Methane | K5: =K19 ->  | L5: kg/s | Q5: Methodology | R5: 1. Based on target product capacity, the biomass demand, and steam production are calculated. Energy balance is calculated based on process type
B6: C | C6: =Feedstocks_Pathways!AE58/100 ->  | F6: Biomass (w.b.) | G6: =G5/(1-C13) ->  | H6: kg/s | J6: Carbon dioxide | K6: =K5/DS7_Information!H21*DS7_Information!H22 ->  | L6: kg/s | R6: 2. Calculate the other components according to the reactions in sheet "Information"
B7: H | C7: =Feedstocks_Pathways!AF58/100 ->  | F7: Water | G7: =G6-G5 ->  | H7: kg/s | J7: Ammonia | K7: =K5/DS7_Information!H21*DS7_Information!H23 ->  | L7: kg/s | R7: 3. Calculate the other parameters such as excess water used and energy balance
B8: O | C8: =Feedstocks_Pathways!AH58/100 ->  | F8: Water Reaction | G8: =DS7_Information!E41 ->  | H8: kg/s | J8: Other | K8: =G4-SUM(K5:K7,K9) ->  | L8: kg/s | Q8: Inputs Results | R8: Biomass | S8: kg/s (w.b.)
B9: N | C9: =Feedstocks_Pathways!AG58/100 ->  | F9: Water fluent | G9: =G7-G8 ->  | H9: kg/s | J9: Wastewater | K9: =G9+G10+G5*(1-C11*C27) ->  | L9: kg/s | Q9: Outputs Results | R9: Gases from AD | S9: kg/s
B10: Others | C10: =1-C9-C8-C7-C6 ->  | F10: Extra water | G10: =IF(C14=DS7_Information!M49,C15,(G5-G7*C16)/C16) ->  | H10: kg/s | Q10: Closure Results | R10: Closure | S10: % | T10: 0-100 | U10: Accuracy of the calculations
B11: VM | C11: =Feedstocks_Pathways!AA58/100 ->  | F11: Solids content | G11: =C16 -> 
F12: Total water | G12: =G10+G7 ->  | H12: kg/s
B13: Manure H2O Content | C13: =Feedstocks_Pathways!X58/100 -> 
B14: Define | C14: Solids content | I14: =1-ABS(K20/G19-1) -> 
B15: =IF(C14=DS7_Information!M21,"Flow extra water","") ->  | C15: 0 | D15: =IF(C14=DS7_Information!M21,"kg/s","") ->  | F15: ENERGY BALANCE
B16: =IF(C14=DS7_Information!M22,"Solids content","") ->  | C16: =Feedstocks_Pathways!AK58/100 ->  | F16: INPUT | J16: Output
F17: Biomass | G17: =G5 ->  | H17: kg/s | J17: AD | R17: Temperatures | T17: Carnot factor | V17: Energy (MWh) | X17: Exergy (MWh)
F18: LHV biomass | G18: =DS7_Information!P7 ->  | H18: kJ/kg | J18: Methane | K18: =DS7_Information!D3 -> 50000 | L18: kJ/kg | Q18: CHP | R18: Tamb | S18: =S21+273.15 ->  | T18: Electricity | U18: 1 | V18: 19.1 | W18: =V18/V20 -> 0.2112831858 | X18: =U18*V18 -> 19.1 | Y18: =X18/X20 -> 
B19: Production | C19: ='DS7'!B27 ->  | F19: AD input | G19: =G17*G18 ->  | H19: MW | J19: Methane Flow | K19: =K20*1000/K18 ->  | L19: kg/s | R19: Tsteam | S19: =S22+273.15 -> 603.15 | T19: Heat | U19: =(S19-S18)/S19 ->  | V19: =71.3 -> 71.3 | W19: =V19/V20 -> 0.7887168142 | X19: =U19*V19 ->  | Y19: =X19/X20 -> 
B20: Ne | C20: =LOOKUP(C19,DS7_Information!I49:K49,DS7_Information!I50:K50) ->  | F20: Energy input | G20: =(C24-C23)*(G5*DS7_Information!T7+DS7_MEB!G12*DS7_Information!E51)/1000 ->  | H20: MW | J20: Energy output with Methane | K20: =C3 ->  | L20: MW | V20: =SUM(V18:V19) -> 90.4 | X20: =SUM(X18:X19) -> 
B21: Nh | C21: =LOOKUP(C19,DS7_Information!I49:K49,DS7_Information!I51:K51) ->  | R21: Tamb | S21: =C23 -> 
R22: Tsteam | S22: =C25 -> 330
B23: Ambient T | C23: ='DS7'!I8 -> 
B24: T digestor | C24: ='DS7'!V7 -> 35 | F24: ENERGY/ELECTRICITY PRODUCTION
B25: T working fluid | C25: 330 | I25: =1-ABS(K28/G28-1) -> 
F26: MASS
B27: =DS7_Information!D29 -> Biomass conversion efficiency | C27: =DS7_Information!E29 -> 0.6 | F27: INPUT | J27: OUTPUT
F28: TOTAL | G28: =SUM(G29,G35,G33,G32) ->  | H28: kg/s | J28: TOTAL | K28: =SUM(K29,K31,K32,K33) ->  | L28: kg/s
B29: Chosen output | C29: =Feedstocks_Pathways!G6 -> 0 | F29: Methane | G29: =K19 ->  | H29: kg/s | J29: H2O | K29: =DS7_Information!I59 ->  | L29: kg/s
F30: O2 needed | G30: =DS7_Information!G59 ->  | H30: kg/s | J30: CO2 reaction | K30: =DS7_Information!K59 ->  | L30: kg/s
C31: Steam output | F31: Excess air | G31: ='DS7'!AC12 -> 0.15 | J31: CO2 total | K31: =K30+G35 ->  | L31: kg/s
B32: For CHP | C32: =IF(C29="chp",K40/DS7_Information!P57*1000,0) -> 0 | D32: kg/s | F32: O2 IN | G32: =G30*(1+G31) ->  | H32: kg/s | J32: N2 | K32: =G33 ->  | L32: kg/s
B33: For heat only | C33: =IF(C29="heat only",K40/DS7_Information!P57*1000,0) -> 0 | D33: kg/s | F33: N2 IN | G33: =G32/DS7_Information!L3*DS7_Information!L4 ->  | H33: kg/s | J33: Excess O2 | K33: =G32-G30 ->  | L33: kg/s
B34: For electricity only | C34: =IF(C29="electricity only",0,0) -> 0 | D34: kg/s | E34: =IF(C29="electricity only",K39/DS7_Information!P55*1000,0) -> 0 | F34: AIR IN | G34: =G33+G32 ->  | H34: kg/s
F35: Carbon dioxide | G35: =K6 ->  | H35: kg/s
F37: ENERGY
F38: INPUT | J38: OUTPUT
F39: Methane | G39: =G29*DS7_Information!D3/1000 ->  | H39: MW | J39: Electricity | K39: =C3*C20 ->  | L39: MW
J40: Heat | K40: =C3*C21 ->  | L40: MW
J41: Losses | K41: =C3-K39-K40 ->  | L41: MW
K42: =SUM(K39:K41) -> 

Sheet DS7
A2: Data summary from model | AJ2: Biogas 20C | AM2: Biogas Nm3 (0C)
A3: Mass balance | B3: SI | D3: Annual | G3: DS7 | Y3: Biogas produced | AH3: mass flow (kg/s) | AI3: % | AJ3: density 20C | AK3: Vol. flow (m3/s) | AL3: % | AM3: density | AN3: Nm3/s | AR3: kg/s | AS3: density | AT3: Nm3/s
A4: Biomass (d.b.) | B4: =I6 ->  | C4: kg/s | D4: =B4*$AG$12*$B$23/1000 ->  | E4: annual tonnes | G4: =D17/D5 ->  | AG4: CH4 | AH4: =AA8 ->  | AI4: =AH4/SUM($AH$4:$AH$6) ->  | AJ4: 0.668 | AK4: =AH4/AJ4 ->  | AL4: =AK4/SUM($AK$4:$AK$6) ->  | AM4: 0.716 | AN4: =AH4/AM4 ->  | AO4: =AN4/SUM($AN$4:$AN$6) ->  | AQ4: =R11 -> CO2 | AS4: =AM5 -> 1.98 | AT4: =AR4/AS4 -> 
A5: Biomass (a.r.) | B5: =I7 ->  | C5: kg/s | E5: annual tonnes | L5: BLENDING | R5: PREHEATING | X5: DIGESTER | AG5: CO2 | AH5: =AA9 ->  | AI5: =AH5/SUM($AH$4:$AH$6) ->  | AJ5: 1.842 | AK5: =AH5/AJ5 ->  | AL5: =AK5/SUM($AK$4:$AK$6) ->  | AM5: 1.98 | AN5: =AH5/AM5 ->  | AO5: =AN5/SUM($AN$4:$AN$6) ->  | AQ5: H2O | AS5: 0.804 | AT5: =AR5/AS5 -> 
A6: Extra water | B6: =J22 -> 0 | C6: kg/s | D6: 0 | E6: annual tonnes | H6: Biomass (d.b.) | I6: =DS7_MEB!G5 ->  | J6: kg/s | AB6: Waste | AC6: =DS7_MEB!K7 ->  | AD6: kg/s | AG6: NH3 | AH6: =AA10 ->  | AJ6: 0.717 | AM6: 0.769 | AN6: =AH6/AM6 ->  | AQ6: N2 | AS6: 1.2506 | AT6: =AR6/AS6 -> 
A7: Air for combustion | B7: =J23 ->  | C7: kg/s | E7: annual tonnes | H7: Biomass (a.r.) | I7: =DS7_MEB!G6 ->  | J7: kg/s | O7: Solids content | P7: =B28 ->  | U7: T digester | V7: =B29 -> 35 | W7: ° C | AG7: Total | AH7: =SUM(AH4:AH6) ->  | AK7: =SUM(AK4:AK6) ->  | AN7: =SUM(AN4:AN6) ->  | AQ7: O2 | AS7: 1.429 | AT7: =AR7/AS7 -> 
A8: Biogas production | B8: =AD8 ->  | C8: kg/s | E8: annual tonnes | H8: Ambient T | I8: =B24 ->  | J8: ° C | Z8: Methane | AA8: =DS7_MEB!K5 ->  | AB8: kg/s | AC8: Total | AD8: =SUM(AA8:AA10) ->  | AO8: =SUM(AM4:AM5) -> 2.696 | AP8: =AO8*$AG$12 -> 9705.6 | AQ8: NH3 | AS8: =AM6 -> 0.769 | AT8: =AR8/AS8 -> 
A9: Steam production | B9: =W15 -> 0 | C9: kg/s | D9: 0 | E9: annual tonnes | L9: Extra water | M9: 0 | N9: kg/s | R9: Heat input | S9: =DS7_MEB!G20 ->  | T9: MW | Z9: Carbon dioxide | AA9: =DS7_MEB!K6 ->  | AB9: kg/s | AH9: R | AL9: C->K | AM9: T dig (C) | AN9: Pressure | AO9: T standard (Degrees) | AQ9: Total | AR9: =SUM(AR4:AR8) ->  | AT9: =SUM(AT4:AT8) -> 
A10: Exhaust gases | B10: =M22 ->  | C10: kg/s | E10: annual tonnes | Z10: Ammonia | AA10: =DS7_MEB!K7 ->  | AB10: kg/s | AH10: ='DS6'!AH10 -> 8.314 | AL10: 273 | AM10: =B52 ->  | AN10: =100000 -> 100000 | AO10: 0
A11: Output waste post-digester | B11: =AC6 ->  | C11: kg/s | E11: annual tonnes | R11: CO2 | S11: =DS7_MEB!K31 ->  | T11: kg/s | X11: Energy Production | AB11: Air | AC11: =DS7_MEB!G34 ->  | AD11: kg/s | AG11: s->h
A12: Biogas | B12: =AN7 ->  | C12: Nm3/s | D12: =B12*$AG$12*$B$23 ->  | E12: annual Nm3 | R12: H2O | S12: =DS7_MEB!K29 ->  | T12: kg/s | AB12: Excess air | AC12: =B31 -> 0.15 | AG12: 3600 | AO12: =AH4/0.657 -> 
A13: Exhaust gases | B13: =AT9 ->  | C13: Nm3/s | D13: =B13*$AG$12*$B$23 ->  | E13: annual Nm3 | H13: MWh/ tonne of biomass | R13: N2 | S13: =DS7_MEB!K32 ->  | T13: kg/s | X13: =F24 ->  | AM13: =AM4/I6*1000 ->  | AO13: =AH5/1.9842 -> 
A14: Energy inputs | R14: O2 | S14: =DS7_MEB!K33 ->  | T14: kg/s | AO14: =AH6/0.73 -> 
A15: Preheating | B15: =S9 ->  | C15: MW | D15: =B15*$B$23 ->  | E15: annual MWh | R15: NH3 | S15: =DS7_MEB!K6 ->  | T15: kg/s | V15: Steam output | W15: =SUM(DS7_MEB!C32:C34) -> 0 | X15: kg/s | Z15: Heat | AA15: =DS7_MEB!K40 ->  | AB15: MW | AO15: =SUM(AO12:AO14) -> 
A16: CHP Input | B16: =W15 -> 0 | C16: MW | D16: 0 | E16: annual MWh | Z16: Electricity | AA16: =DS7_MEB!K39 ->  | AB16: MW
A17: Heat produced | B17: =AA15 ->  | C17: MW | E17: annual MWh | Z17: Losses | AA17: =DS7_MEB!K41 ->  | AB17: MW
A18: Electricity | B18: =AA16 ->  | C18: MW | D18: =B18*$B$23 ->  | E18: annual MWh | I18: MASS BALANCE | P18: Efficiency | AJ18: 20 | AM18: MJ/m3
A19: Losses | B19: =AA17 ->  | C19: MW | E19: annual MWh | I19: IN | L19: OUT | P19: Biomass input x HV
A20: Total Energy IN | B20: =B15+B16 ->  | C20: MW | E20: annual MWh | I20: TOTAL | J20: =SUM(J21:J23) ->  | K20: kg/s | L20: TOTAL | M20: =SUM(M21:M22) ->  | N20: kg/s | P20: Energy output/Biomass input
I21: Biomass (a.r.) | J21: =I7 ->  | K21: kg/s | L21: Water | M21: =AC6 ->  | N21: kg/s | AJ21: 50000 | AM21: kJ/kg
A22: Amendable Parameters | F22: =B25 -> 0 | G22: MW | I22: Extra water | J22: =M9 -> 0 | K22: kg/s | L22: Flue gases | M22: =SUM(S11:S15) ->  | N22: kg/s | AJ22: =AM4/AH4 ->  | AM22: Nm3/kg
A23: Operational hours per year | B23: =Feedstocks_Pathways!I24 -> 0 | C23: h | E23: =Feedstocks_Pathways!B11 ->  | F23: =B26 -> 0 0 | I23: Air | J23: =AC11 ->  | K23: kg/s | W23: 0.05049971773 | AJ23: =AJ21/AJ22 ->  | AM23: kJ/ Nm3
A24: Ambient temperature | B24: =IF(Feedstocks_Pathways!E22="ds7",Feedstocks_Pathways!G8,B52) ->  | C24: ° C | E24: Feedstock type | F24: =B27 ->  | K24: Units! | L24: kg/s | W24: =ABS(S9-AA15) -> 
A25: =Feedstocks_Pathways!B11 ->  | B25: =Feedstocks_Pathways!B24 -> 0 | C25: MW | E25: Process
A26: Feedstock | B26: =Feedstocks_Pathways!W56&" "&Feedstocks_Pathways!W57 -> 0 0 | V26: =D12*AO4*35.8/1000*0.3/3.6 -> 
A27: Energy production process | B27: =B50 ->  | V27: =D8*AI4*50/3.6*0.3 ->  | W27: =V27-V26 -> 
A28: Solids content | B28: =B66 -> 
A29: T digester | B29: 35 | C29: ° C
A30: Comb. Temperature | B30: 1000 | C30: ° C
A31: Excess air | B31: 0.15 | R31: =D18/45 -> 
F48: Carnot index heat | G48: =DS7_MEB!U19 -> 
A49: Inputs DS6 | F49: Output
A50: =A27 -> Energy production process | B50: =IF(Feedstocks_Pathways!$E$22=Feedstocks_Pathways!$I$54,Feedstocks_Pathways!G6,'DS7'!D50) ->  | D50: CHP | H50: Dry basis | I50: Wet basis
F51: Biomass flow | G51: kg/s | H51: =B4 ->  | I51: =B5 -> 
A52: =A24 -> Ambient temperature | B52: =IF(Feedstocks_Pathways!$E$22=Feedstocks_Pathways!$H$54,Feedstocks_Pathways!G8,'DS6'!D52) ->  | C52: =C24 -> ° C | D52: 20 | G52: annual tonnes | H52: =D4 ->  | I52: =D5 -> 
F53: MWh electricity/ t biomass | H53: =D18/D4 ->  | I53: =D18/D5 -> 
F54: MWh heat/ t biomass | H54: =D17/D4 ->  | I54: =D17/D5 -> 
F55: Steam flow [tonnes per hour] | I55: =B9*3600/1000 -> 0
F56: Biogas production [annual Nm3] | I56: =D12 -> 
F57: Biogas/biomass [Nm3/ t w.b.] | I57: =I56/I52 -> 
F58: Methane content biogas (%) | I58: =AO4*100 -> 
A66: =A28 -> Solids content | B66: =IF(Feedstocks_Pathways!$E$22=Feedstocks_Pathways!$I$54,Feedstocks_Pathways!AK58,'DS7'!D66) ->  | D66: 0.42 | F66: MWh exergy/t biomass | H66: =(D18*G48+D17)/D4 ->  | I66: =(D18*G48+D17)/D5 -> 
A67: =A29 -> T digester | B67: =B29 -> 35 | C67: =C29 -> ° C
A68: =A30 -> Comb. Temperature | B68: =B30 -> 1000 | C68: =C30 -> ° C

Sheet Feedstock information
B2: Moisture content | C2: Ash content | D2: Volatile matter | E2: Fixed carbon | F2: LHV | G2: HHV | H2: References
B3: ='Feedstock Info'!E3 -> wt% | C3: ='Feedstock Info'!G3 -> wt% | D3: ='Feedstock Info'!H3 -> wt% | E3: ='Feedstock Info'!I3 -> MJ/kg | F3: ='Feedstock Info'!I3 -> MJ/kg | G3: ='Feedstock Info'!J3 -> MJ/kg
A4: ='Feedstock Info'!AJ4 -> Avocado waste | B4: ='Feedstock Info'!E4 -> 82.75 | C4: ='Feedstock Info'!F4 -> 2.2 | D4: ='Feedstock Info'!G4 -> 95 | E4: ='Feedstock Info'!H4 -> 16 | F4: ='Feedstock Info'!I4 -> 16.7 | G4: ='Feedstock Info'!J4 -> 18 | H4: Sánchez, F., Araus, K., Domínguez, M.P., et al. Thermochemical Transformation of Residual Avocado Seeds: Torrefaction and Carbonization. Waste and Biomass Valorization 2017; 8:2495-510. 10.1007/s12649-016-9699-6 Costagli, G., Betti, M. Avocado oil extraction processes: method for cold-pressed high-quality edible oil production versus traditional production. Journal of Agricultural Engineering 2015; 46:115-22. 10.4081/jae.2015.467
A5: ='Feedstock Info'!AJ36 -> Bagasse | B5: ='Feedstock Info'!E36 -> 20 | C5: ='Feedstock Info'!F36 -> 3 | D5: ='Feedstock Info'!G36 -> 83 | E5: ='Feedstock Info'!H36 -> 16 | F5: ='Feedstock Info'!I36 -> 13 | G5: ='Feedstock Info'!J36 -> 19 | H5: TNO. (2021). Phyllis2—Database for the physico-chemical composition of (treated) lignocellulosic biomass, micro- and macroalgae, various feedstocks for biogas production and biochar. https://phyllis.nl/ Celignis. (2020). Analysis of Sugarcane Bagasse, Cellulose Content of Sugarcane Bagasse, Lignin Content of Sugarcane Bagasse. https://www.celignis.com/feedstock.php?value=13 Motta, I. L., Miranda, N. T., Maciel Filho, R., & Wolf Maciel, M. R. (2019). Sugarcane bagasse gasification: Simulation and analysis of different operating parameters, fluidizing media, and gasifier types. Biomass and Bioenergy, 122, 433–445. https://doi.org/10.1016/j.biombioe.2019.01.051 Kumar, R., & Kumar, M. (2016). AN EXPERIMENTAL STUDY TO EVALUATE THE CALORIFIC VALUES OF BAGASSE AFTER OPEN SUN DRYING. International Journal of Science, Engineering and Technology Research, 5(6), 4. http://ijsetr.org/wp-content/uploads/2016/06/IJSETR-VOL-5-ISSUE-6-2153-2156.pdf
A6: ='Feedstock Info'!AJ40 -> Briquettes | B6: ='Feedstock Info'!E40 -> 10 | C6: ='Feedstock Info'!F40 -> 2 | D6: ='Feedstock Info'!G40 -> 85 | E6: ='Feedstock Info'!H40 -> 20 | F6: ='Feedstock Info'!I40 -> 17 | G6: ='Feedstock Info'!J40 -> 19 | H6: TNO. (2021). Phyllis2—Database for the physico-chemical composition of (treated) lignocellulosic biomass, micro- and macroalgae, various feedstocks for biogas production and biochar. https://phyllis.nl/
A7: ='Feedstock Info'!AJ7 -> Cassava stalks | B7: ='Feedstock Info'!E7 -> 40 | C7: ='Feedstock Info'!F7 -> 3 | D7: ='Feedstock Info'!G7 -> 75 | E7: ='Feedstock Info'!H7 -> 22.8 | F7: ='Feedstock Info'!I7 -> 10 | G7: ='Feedstock Info'!J7 -> 18 | H7: García-Velásquez, C. A., Daza, L., & Cardona, C. A. (2020). Economic and Energy Valorization of Cassava Stalks as Feedstock for Ethanol and Electricity Production. BioEnergy Research. doi:10.1007/s12155-020-10098-8 TNO. (2021). Phyllis2—Database for the physico-chemical composition of (treated) lignocellulosic biomass, micro- and macroalgae, various feedstocks for biogas production and biochar. https://phyllis.nl/ Zhu, W., Lestander, T. A., Örberg, H., Wei, M., Hedman, B., Ren, J., Xie, G., & Xiong, S. (2015). Cassava stems: A new resource to increase food and fuel production. GCB Bioenergy, 7(1), 72–83. https://doi.org/10.1111/gcbb.12112
A8: ='Feedstock Info'!AJ8 -> Cattle manure | B8: ='Feedstock Info'!E8 -> 75 | C8: ='Feedstock Info'!F8 -> 13 | D8: ='Feedstock Info'!G8 -> 80 | E8: ='Feedstock Info'!H8 -> 18 | F8: ='Feedstock Info'!I8 -> n/a | G8: ='Feedstock Info'!J8 -> 20 | H8: Achinas, S., Euverink, G.J.W. Theoretical analysis of biogas potential prediction from agricultural waste. Resource-Efficient Technologies 2016; 2:143-7. https://doi.org/10.1016/j.reffit.2016.08.001 TNO. (2021). Phyllis2—Database for the physico-chemical composition of (treated) lignocellulosic biomass, micro- and macroalgae, various feedstocks for biogas production and biochar. https://phyllis.nl/ Bayerisches Staatsministerium für Ernährung. (2020). Biogasausbeuten verschiedener Substrate. https://www.lfl.bayern.de/iba/energie/049711/?sel_list=51%2Cl&anker0=substratanker#substratanker
A9: ='Feedstock Info'!AJ9 -> Chicken manure | B9: ='Feedstock Info'!E9 -> 85 | C9: ='Feedstock Info'!F9 -> 20 | D9: ='Feedstock Info'!G9 -> 75 | E9: ='Feedstock Info'!H9 -> 10 | F9: ='Feedstock Info'!I9 -> 10 | G9: ='Feedstock Info'!J9 -> 18 | H9: Achinas, S., Euverink, G.J.W. Theoretical analysis of biogas potential prediction from agricultural waste. Resource-Efficient Technologies 2016; 2:143-7. https://doi.org/10.1016/j.reffit.2016.08.001 TNO. (2021). Phyllis2—Database for the physico-chemical composition of (treated) lignocellulosic biomass, micro- and macroalgae, various feedstocks for biogas production and biochar. https://phyllis.nl/ Bayerisches Staatsministerium für Ernährung. (2020). Biogasausbeuten verschiedener Substrate. https://www.lfl.bayern.de/iba/energie/049711/?sel_list=51%2Cl&anker0=substratanker#substratanker
A10: ='Feedstock Info'!AJ11 -> Coconut husk | B10: ='Feedstock Info'!E11 -> 15 | C10: ='Feedstock Info'!F11 -> 2 | D10: ='Feedstock Info'!G11 -> 67.4 | E10: ='Feedstock Info'!H11 -> 25.2 | F10: ='Feedstock Info'!I11 -> 16 | G10: ='Feedstock Info'!J11 -> 20 | H10: TNO. (2021). Phyllis2—Database for the physico-chemical composition of (treated) lignocellulosic biomass, micro- and macroalgae, various feedstocks for biogas production and biochar. https://phyllis.nl/ Bolivar-Telleria, M., et al. (2018). Second-Generation Bioethanol from Coconut Husk. BioMed Research International, 2018, 4916497. doi:10.1155/2018/4916497 Tsamba, A. J., et al. (2006). "Pyrolysis characteristics and global kinetics of coconut and cashew nut shells." Fuel Processing Technology 87(6): 523-530.
A11: ='Feedstock Info'!AJ13 -> Cotton straw | B11: ='Feedstock Info'!E13 -> 17 | C11: ='Feedstock Info'!F13 -> 7 | D11: ='Feedstock Info'!G13 -> 75 | E11: ='Feedstock Info'!H13 -> 25 | F11: ='Feedstock Info'!I13 -> 13 | G11: ='Feedstock Info'!J13 -> 18 | H11: TNO. (2021). Phyllis2—Database for the physico-chemical composition of (treated) lignocellulosic biomass, micro- and macroalgae, various feedstocks for biogas production and biochar. https://phyllis.nl/ Gemtos, T.A., Tsiricoglou, T. Harvesting of cotton residue for energy production. Biomass and Bioenergy 1999; 16:51-9. https://doi.org/10.1016/S0961-9534(98)00065-8
A12: ='Feedstock Info'!AJ14 -> Cow slurry | B12: ='Feedstock Info'!E14 -> 90 | C12: ='Feedstock Info'!F14 -> 0 | D12: ='Feedstock Info'!G14 -> 85 | E12: ='Feedstock Info'!H14 -> 20 | F12: ='Feedstock Info'!I14 -> n/a | G12: ='Feedstock Info'!J14 -> 18 | H12: TNO. (2021). Phyllis2—Database for the physico-chemical composition of (treated) lignocellulosic biomass, micro- and macroalgae, various feedstocks for biogas production and biochar. https://phyllis.nl/ Bayerisches Staatsministerium für Ernährung. (2020). Biogasausbeuten verschiedener Substrate. https://www.lfl.bayern.de/iba/energie/049711/?sel_list=51%2Cl&anker0=substratanker#substratanker
A13: ='Feedstock Info'!AJ15 -> Fruit waste | B13: ='Feedstock Info'!E15 -> 90 | C13: ='Feedstock Info'!F15 -> 5 | D13: ='Feedstock Info'!G15 -> 85 | E13: ='Feedstock Info'!H15 -> 15 | F13: ='Feedstock Info'!I15 -> n/a | G13: ='Feedstock Info'!J15 -> 18 | H13: Adeniyi, A. G., Otoikhian, K. S., Ighalo, J. O., & Alhassan, I. (2019). Pyrolysis of Different Fruit Peel Waste Via a Thermodynamic Model. Ournal of Engineering Research and Development, 2(2), 16–24. http://ajerd.abuad.edu.ng/wp-content/uploads/2019/12/AJERD0202_03.pdf Ouadi, M., Bashir, M. A., Speranza, L. G., Jahangiri, H., & Hornung, A. (2019). Food and Market Waste–A Pathway to Sustainable Fuels and Waste Valorization. Energy & Fuels, 33(10), 9843–9850. https://doi.org/10.1021/acs.energyfuels.9b01650 TNO. (2021). Phyllis2—Database for the physico-chemical composition of (treated) lignocellulosic biomass, micro- and macroalgae, various feedstocks for biogas production and biochar. https://phyllis.nl/ Bayerisches Staatsministerium für Ernährung. (2020). Biogasausbeuten verschiedener Substrate. https://www.lfl.bayern.de/iba/energie/049711/?sel_list=51%2Cl&anker0=substratanker#substratanker
A14: ='Feedstock Info'!AJ16 -> Groundnut shells | B14: ='Feedstock Info'!E16 -> 10 | C14: ='Feedstock Info'!F16 -> 4 | D14: ='Feedstock Info'!G16 -> 75 | E14: ='Feedstock Info'!H16 -> 20 | F14: ='Feedstock Info'!I16 -> 17 | G14: ='Feedstock Info'!J16 -> 21 | H14: TNO. (2021). Phyllis2—Database for the physico-chemical composition of (treated) lignocellulosic biomass, micro- and macroalgae, various feedstocks for biogas production and biochar. https://phyllis.nl/
A15: ='Feedstock Info'!AJ17 -> Macadamia shells | B15: ='Feedstock Info'!E17 -> 10 | C15: ='Feedstock Info'!F17 -> 1 | D15: ='Feedstock Info'!G17 -> 75 | E15: ='Feedstock Info'!H17 -> 23 | F15: ='Feedstock Info'!I17 -> 19 | G15: ='Feedstock Info'!J17 -> 21 | H15: TNO. (2021). Phyllis2—Database for the physico-chemical composition of (treated) lignocellulosic biomass, micro- and macroalgae, various feedstocks for biogas production and biochar. https://phyllis.nl/ T. P. Xavier et al., (2016) A Study of Pyrolysis of Macadamia Nut Shell: Parametric Sensitivity Analysis of the IPR Model, Brazilian Journal of Chemical Engineering, Vol. 33, No. 01, pp. 115 - 122, January - March, 2016 dx.doi.org/10.1590/0104-6632.20160331s00003629
A16: ='Feedstock Info'!AJ19 -> Maize stalks & cobs | B16: ='Feedstock Info'!E19 -> 10 | C16: ='Feedstock Info'!F19 -> 3 | D16: ='Feedstock Info'!G19 -> 80 | E16: ='Feedstock Info'!H19 -> 18 | F16: ='Feedstock Info'!I19 -> 16 | G16: ='Feedstock Info'!J19 -> 18 | H16: TNO. (2021). Phyllis2—Database for the physico-chemical composition of (treated) lignocellulosic biomass, micro- and macroalgae, various feedstocks for biogas production and biochar. https://phyllis.nl/
A17: ='Feedstock Info'!AJ20 -> Mango pulp | B17: ='Feedstock Info'!E20 -> 60 | C17: ='Feedstock Info'!F20 -> 3 | D17: ='Feedstock Info'!G20 -> 75 | E17: ='Feedstock Info'!H20 -> 26 | F17: ='Feedstock Info'!I20 -> n/a | G17: ='Feedstock Info'!J20 -> 19 | H17: TNO. (2021). Phyllis2—Database for the physico-chemical composition of (treated) lignocellulosic biomass, micro- and macroalgae, various feedstocks for biogas production and biochar. https://phyllis.nl/
A18: ='Feedstock Info'!AJ5 -> Nutshells | B18: ='Feedstock Info'!E5 -> 10 | C18: ='Feedstock Info'!F5 -> 2 | D18: ='Feedstock Info'!G5 -> 73 | E18: ='Feedstock Info'!H5 -> 20 | F18: ='Feedstock Info'!I5 -> 19 | G18: ='Feedstock Info'!J5 -> 21 | H18: ='Feedstock Info'!AC5 -> Uamusse, M. et al., Gasification of Cashew Nut Shell Using Gasifier Stovein Mozambique , Journal of Power and Energy Engineering > Vol.2 No.7, July 2014, DOI: 10.4236/jpee.2014.27002
A19: ='Feedstock Info'!AJ23 -> Oil Palm Effluent POME | B19: ='Feedstock Info'!E23 -> 90 | C19: ='Feedstock Info'!F23 -> 4.75 | D19: ='Feedstock Info'!G23 -> 85 | E19: ='Feedstock Info'!H23 -> 17.52 | F19: ='Feedstock Info'!I23 -> n/a | G19: ='Feedstock Info'!J23 -> 17 | H19: Elbersen, W. Valorization of palm oil (mill) residues. Identifying and solving the challenges. 2013; 38 p., URL: https://english.rvo.nl/sites/default/files/2013/12/Report%20palm%20oil%20byproducts.pdf Hassan, S., Kee, L. S., & Al-Kayiem, H. H. (2013). EXPERIMENTAL STUDY OF PALM OIL MILL EFFLUENT AND OIL PALM FROND WASTE MIXTURE AS AN ALTERNATIVE BIOMASS FUEL. Journal of Engineering Science and Technology, 8(6), 703–712. http://jestec.taylors.edu.my/Vol%208%20Issue%206%20December%2013/Volume%20(8)%20Issue%20(6)%20703-%20712.pdf Wilson, L., Yang, W., Blasiak, W., John, G. R., & Mhilu, C. F. (2011). Thermal characterization of tropical biomass feedstocks. Energy Conversion and Management, 52(1), 191–198. https://doi.org/10.1016/j.enconman.2010.06.058
A20: ='Feedstock Info'!AJ22 -> Oil Palm Empty fruit bunch | B20: ='Feedstock Info'!E22 -> 60 | C20: ='Feedstock Info'!F22 -> 5 | D20: ='Feedstock Info'!G22 -> 71 | E20: ='Feedstock Info'!H22 -> 21.26 | F20: ='Feedstock Info'!I22 -> 6.4 | G20: ='Feedstock Info'!J22 -> 17.5 | H20: Elbersen, W. Valorization of palm oil (mill) residues. Identifying and solving the challenges. 2013; 38 p., URL: https://english.rvo.nl/sites/default/files/2013/12/Report%20palm%20oil%20byproducts.pdf TNO. (2021). Phyllis2—Database for the physico-chemical composition of (treated) lignocellulosic biomass, micro- and macroalgae, various feedstocks for biogas production and biochar. https://phyllis.nl/ Wilson, L., Yang, W., Blasiak, W., John, G. R., & Mhilu, C. F. (2011). Thermal characterization of tropical biomass feedstocks. Energy Conversion and Management, 52(1), 191–198. https://doi.org/10.1016/j.enconman.2010.06.058
A21: ='Feedstock Info'!AJ24 -> Oil Palm Fruit Fibre | B21: ='Feedstock Info'!E24 -> 20 | C21: ='Feedstock Info'!F24 -> 5 | D21: ='Feedstock Info'!G24 -> 73 | E21: ='Feedstock Info'!H24 -> 18.8 | F21: ='Feedstock Info'!I24 -> 15 | G21: ='Feedstock Info'!J24 -> 20 | H21: Elbersen, W. Valorization of palm oil (mill) residues. Identifying and solving the challenges. 2013; 38 p., URL: https://english.rvo.nl/sites/default/files/2013/12/Report%20palm%20oil%20byproducts.pdf Yusoff, S. (2006). Renewable energy from palm oil – innovation on effective utilization of waste. Journal of Cleaner Production, 14(1), 87–93. https://doi.org/10.1016/j.jclepro.2004.07.005 Wilson, L., Yang, W., Blasiak, W., John, G. R., & Mhilu, C. F. (2011). Thermal characterization of tropical biomass feedstocks. Energy Conversion and Management, 52(1), 191–198. https://doi.org/10.1016/j.enconman.2010.06.058
A22: ='Feedstock Info'!AJ25 -> Oil Palm Fruit Kernel | B22: ='Feedstock Info'!E25 -> 10 | C22: ='Feedstock Info'!F25 -> 3 | D22: ='Feedstock Info'!G25 -> 70 | E22: ='Feedstock Info'!H25 -> 25 | F22: ='Feedstock Info'!I25 -> 18 | G22: ='Feedstock Info'!J25 -> 21 | H22: Elbersen, W. Valorization of palm oil (mill) residues. Identifying and solving the challenges. 2013; 38 p., URL: https://english.rvo.nl/sites/default/files/2013/12/Report%20palm%20oil%20byproducts.pdf TNO. (2021). Phyllis2—Database for the physico-chemical composition of (treated) lignocellulosic biomass, micro- and macroalgae, various feedstocks for biogas production and biochar. https://phyllis.nl/ Yusoff, S. (2006). Renewable energy from palm oil – innovation on effective utilization of waste. Journal of Cleaner Production, 14(1), 87–93. https://doi.org/10.1016/j.jclepro.2004.07.005 Wilson, L., Yang, W., Blasiak, W., John, G. R., & Mhilu, C. F. (2011). Thermal characterization of tropical biomass feedstocks. Energy Conversion and Management, 52(1), 191–198. https://doi.org/10.1016/j.enconman.2010.06.059
A23: ='Feedstock Info'!AJ21 -> Oil Palm residue mix | B23: ='Feedstock Info'!E21 -> 25 | C23: ='Feedstock Info'!F21 -> 4 | D23: ='Feedstock Info'!G21 -> 77 | E23: ='Feedstock Info'!H21 -> 23.13 | F23: ='Feedstock Info'!I21 -> 15 | G23: ='Feedstock Info'!J21 -> 18 | H23: Elbersen, W. Valorization of palm oil (mill) residues. Identifying and solving the challenges. 2013; 38 p., URL: https://english.rvo.nl/sites/default/files/2013/12/Report%20palm%20oil%20byproducts.pdf TNO. (2021). Phyllis2—Database for the physico-chemical composition of (treated) lignocellulosic biomass, micro- and macroalgae, various feedstocks for biogas production and biochar. https://phyllis.nl/ Abdullah, N., & Sulaiman, F. (2013). The Properties of the Washed Empty Fruit Bunches of Oil Palm. Journal of Physical Science, 24(2), 117–137. https://jps.usm.my/wp-content/uploads/2014/10/24-2-8.pdf
A24: ='Feedstock Info'!AJ26 -> Pig manure | B24: ='Feedstock Info'!E26 -> 77.5 | C24: ='Feedstock Info'!F26 -> 12 | D24: ='Feedstock Info'!G26 -> 83 | E24: ='Feedstock Info'!H26 -> 24 | F24: ='Feedstock Info'!I26 -> n/a | G24: ='Feedstock Info'!J26 -> 21 | H24: TNO. (2021). Phyllis2—Database for the physico-chemical composition of (treated) lignocellulosic biomass, micro- and macroalgae, various feedstocks for biogas production and biochar. https://phyllis.nl/ Cantrell, K.B., Martin II, J.H. Stochastic state-space temperature regulation of biochar production. Part II: Application to manure processing via pyrolysis. 2012; 92:490-5. https://doi.org/10.1002/jsfa.4617 Achinas, S., Euverink, G.J.W. Theoretical analysis of biogas potential prediction from agricultural waste. Resource-Efficient Technologies 2016; 2:143-7. https://doi.org/10.1016/j.reffit.2016.08.001 Bayerisches Staatsministerium für Ernährung. (2020). Biogasausbeuten verschiedener Substrate. https://www.lfl.bayern.de/iba/energie/049711/?sel_list=51%2Cl&anker0=substratanker#substratanker
A25: ='Feedstock Info'!AJ27 -> Pig slurry | B25: ='Feedstock Info'!E27 -> 94 | C25: ='Feedstock Info'!F27 -> 20 | D25: ='Feedstock Info'!G27 -> 85 | E25: ='Feedstock Info'!H27 -> 23 | F25: ='Feedstock Info'!I27 -> n/a | G25: ='Feedstock Info'!J27 -> 20 | H25: Sommer, S.G., Hjorth, M., Leahy, J.J., et al. Pig slurry characteristics, nutrient balance and biogas production as affected by separation and acidification. The Journal of Agricultural Science 2015; 153:177-91. 10.1017/S0021859614000367 Bayerisches Staatsministerium für Ernährung. (2020). Biogasausbeuten verschiedener Substrate. https://www.lfl.bayern.de/iba/energie/049711/?sel_list=51%2Cl&anker0=substratanker#substratanker
A26: ='Feedstock Info'!AJ28 -> Pineapple pulp | B26: ='Feedstock Info'!E28 -> 90 | C26: ='Feedstock Info'!F28 -> 4 | D26: ='Feedstock Info'!G28 -> 83 | E26: ='Feedstock Info'!H28 -> 18 | F26: ='Feedstock Info'!I28 -> n/a | G26: ='Feedstock Info'!J28 -> 18 | H26: TNO. (2021). Phyllis2—Database for the physico-chemical composition of (treated) lignocellulosic biomass, micro- and macroalgae, various feedstocks for biogas production and biochar. https://phyllis.nl/ Rani, D.S., Nand, K. Ensilage of pineapple processing waste for methane generation. Waste Management 2004; 24:523-8. https://doi.org/10.1016/j.wasman.2003.10.010 Engineering Tool Box (2021), https://www.engineeringtoolbox.com/specific-heat-capacity-food-d_295.html
A27: ='Feedstock Info'!AJ29 -> Potato processing | B27: ='Feedstock Info'!E29 -> 89 | C27: ='Feedstock Info'!F29 -> 5 | D27: ='Feedstock Info'!G29 -> 93 | E27: ='Feedstock Info'!H29 -> 14.2 | F27: ='Feedstock Info'!I29 -> n/a | G27: ='Feedstock Info'!J29 -> 18 | H27: Liang, S., Han, Y., Wei, L., et al. Production and characterization of bio-oil and bio-char from pyrolysis of potato peel wastes. Biomass Conversion and Biorefinery 2015; 5:237-46. 10.1007/s13399-014-0130-x Bayerisches Staatsministerium für Ernährung. (2020). Biogasausbeuten verschiedener Substrate. https://www.lfl.bayern.de/iba/energie/049711/?sel_list=51%2Cl&anker0=substratanker#substratanker Engineering Tool Box (2021), https://www.engineeringtoolbox.com/specific-heat-capacity-food-d_295.html
A28: ='Feedstock Info'!AJ30 -> Rice husk | B28: ='Feedstock Info'!E30 -> 10 | C28: ='Feedstock Info'!F30 -> 18 | D28: ='Feedstock Info'!G30 -> 75 | E28: ='Feedstock Info'!H30 -> 23 | F28: ='Feedstock Info'!I30 -> 17 | G28: ='Feedstock Info'!J30 -> 19 | H28: IRRI. Rice husk - IRRI Rice Knowledge Bank. 2020, http://www.knowledgebank.irri.org/step-by-step-production/postharvest/rice-by-products/rice-husk Wilson, L., Yang, W., Blasiak, W., John, G. R., & Mhilu, C. F. (2011). Thermal characterization of tropical biomass feedstocks. Energy Conversion and Management, 52(1), 191–198. https://doi.org/10.1016/j.enconman.2010.06.058 TNO. (2021). Phyllis2—Database for the physico-chemical composition of (treated) lignocellulosic biomass, micro- and macroalgae, various feedstocks for biogas production and biochar. https://phyllis.nl/
A29: ='Feedstock Info'!AJ31 -> Rice straw | B29: ='Feedstock Info'!E31 -> 15 | C29: ='Feedstock Info'!F31 -> 18 | D29: ='Feedstock Info'!G31 -> 75 | E29: ='Feedstock Info'!H31 -> 19 | F29: ='Feedstock Info'!I31 -> 16 | G29: ='Feedstock Info'!J31 -> 19 | H29: Van Hung, N., Maguyon-Detras, M.C., Migo, M.V., et al. Rice Straw Overview: Availability, Properties, and Management Practices. In: Gummert, Martin, et al., editors. Sustainable Rice Straw Management. Cham: Springer International Publishing; 2020. p. 1-13 TNO. (2021). Phyllis2—Database for the physico-chemical composition of (treated) lignocellulosic biomass, micro- and macroalgae, various feedstocks for biogas production and biochar. https://phyllis.nl/
A30: ='Feedstock Info'!AJ34 -> Sisal Sisal ball | B30: ='Feedstock Info'!E34 -> 70 | C30: ='Feedstock Info'!F34 -> 6.1 | D30: ='Feedstock Info'!G34 -> 93 | E30: ='Feedstock Info'!H34 -> 14.6 | F30: ='Feedstock Info'!I34 -> 6 | G30: ='Feedstock Info'!J34 -> 17.35 | H30: Terrapon-Pfaff, J. C., Fischedick, M., & Monheim, H. (2012). Energy potentials and sustainability—the case of sisal residues in Tanzania. Energy for Sustainable Development, 16(3), 312-319. doi:https://doi.org/10.1016/j.esd.2012.06.001 Wilson, L., et al. (2011). "Thermal characterization of tropical biomass feedstocks." Energy Conversion and Management 52(1): 191-198.
A31: ='Feedstock Info'!AJ33 -> Sisal Sisal pulp | B31: ='Feedstock Info'!E33 -> 85.5 | C31: ='Feedstock Info'!F33 -> 6.1 | D31: ='Feedstock Info'!G33 -> 85 | E31: ='Feedstock Info'!H33 -> 12.6 | F31: ='Feedstock Info'!I33 -> n/a | G31: ='Feedstock Info'!J33 -> 17.35 | H31: Terrapon-Pfaff, J. C., Fischedick, M., & Monheim, H. (2012). Energy potentials and sustainability—the case of sisal residues in Tanzania. Energy for Sustainable Development, 16(3), 312-319. doi:https://doi.org/10.1016/j.esd.2012.06.001 Wilson, L., et al. (2011). "Thermal characterization of tropical biomass feedstocks." Energy Conversion and Management 52(1): 191-198.
A32: ='Feedstock Info'!AJ35 -> Sisal Sisal wastewater | B32: ='Feedstock Info'!E35 -> 99.88 | C32: ='Feedstock Info'!F35 -> 6.1 | D32: ='Feedstock Info'!G35 -> 87 | E32: ='Feedstock Info'!H35 -> 13.6 | F32: ='Feedstock Info'!I35 -> n/a | G32: ='Feedstock Info'!J35 -> 17.35 | H32: Terrapon-Pfaff, J. C., Fischedick, M., & Monheim, H. (2012). Energy potentials and sustainability—the case of sisal residues in Tanzania. Energy for Sustainable Development, 16(3), 312-319. doi:https://doi.org/10.1016/j.esd.2012.06.001
A33: ='Feedstock Info'!AJ38 -> Vegetable waste | B33: ='Feedstock Info'!E38 -> 90 | C33: ='Feedstock Info'!F38 -> 10 | D33: ='Feedstock Info'!G38 -> 85 | E33: ='Feedstock Info'!H38 -> 15 | F33: ='Feedstock Info'!I38 -> n/a | G33: ='Feedstock Info'!J38 -> 18 | H33: TNO. (2021). Phyllis2—Database for the physico-chemical composition of (treated) lignocellulosic biomass, micro- and macroalgae, various feedstocks for biogas production and biochar. https://phyllis.nl/ Ouadi, M., Bashir, M. A., Speranza, L. G., Jahangiri, H., & Hornung, A. (2019). Food and Market Waste–A Pathway to Sustainable Fuels and Waste Valorization. Energy & Fuels, 33(10), 9843–9850. https://doi.org/10.1021/acs.energyfuels.9b01650 Bayerisches Staatsministerium für Ernährung. (2020). Biogasausbeuten verschiedener Substrate. https://www.lfl.bayern.de/iba/energie/049711/?sel_list=51%2Cl&anker0=substratanker#substratanker
A34: ='Feedstock Info'!AJ39 -> Wood chips | B34: ='Feedstock Info'!E39 -> 20 | C34: ='Feedstock Info'!F39 -> 1 | D34: ='Feedstock Info'!G39 -> 83 | E34: ='Feedstock Info'!H39 -> 17 | F34: ='Feedstock Info'!I39 -> 15 | G34: ='Feedstock Info'!J39 -> 19 | H34: Forest Research. (2021). Moisture content. Forest Research. https://www.forestresearch.gov.uk/tools-and-resources/biomass-energy-resources/reference-biomass/facts-figures/moisture-content/ TNO. (2021). Phyllis2—Database for the physico-chemical composition of (treated) lignocellulosic biomass, micro- and macroalgae, various feedstocks for biogas production and biochar. https://phyllis.nl/
A35: ='Feedstock Info'!AJ10 -> Wood logs | B35: ='Feedstock Info'!E10 -> 25 | C35: ='Feedstock Info'!F10 -> 2 | D35: ='Feedstock Info'!G10 -> 82 | E35: ='Feedstock Info'!H10 -> 16 | F35: ='Feedstock Info'!I10 -> 13.6 | G35: ='Feedstock Info'!J10 -> 19 | H35: TNO. (2021). Phyllis2—Database for the physico-chemical composition of (treated) lignocellulosic biomass, micro- and macroalgae, various feedstocks for biogas production and biochar. https://phyllis.nl/ Forest Research. (2021). Moisture content. Forest Research. https://www.forestresearch.gov.uk/tools-and-resources/biomass-energy-resources/reference-biomass/facts-figures/moisture-content/
A36: ='Feedstock Info'!AJ32 -> Wood processing residue | B36: ='Feedstock Info'!E32 -> 20 | C36: ='Feedstock Info'!F32 -> 1 | D36: ='Feedstock Info'!G32 -> 83 | E36: ='Feedstock Info'!H32 -> 17 | F36: ='Feedstock Info'!I32 -> 15 | G36: ='Feedstock Info'!J32 -> 19 | H36: TNO. (2021). Phyllis2—Database for the physico-chemical composition of (treated) lignocellulosic biomass, micro- and macroalgae, various feedstocks for biogas production and biochar. https://phyllis.nl/
A37: Coal | B37: 9 | C37: 9.9 | F37: 26 | H37: TNO. (2021). Phyllis2—Database for the physico-chemical composition of (treated) lignocellulosic biomass, micro- and macroalgae, various feedstocks for biogas production and biochar. https://phyllis.nl/ Department for Business, Energy & Industrial Strategy (2020). Digest of UK Energy Statistics (DUKES): calorific values
A38: Petcoke | B38: 3 | C38: 1 | F38: 33 | H38: TNO. (2021). Phyllis2—Database for the physico-chemical composition of (treated) lignocellulosic biomass, micro- and macroalgae, various feedstocks for biogas production and biochar. https://phyllis.nl/ Department for Business, Energy & Industrial Strategy (2020). Digest of UK Energy Statistics (DUKES): calorific values
A39: Natural Gas | B39: 0 | C39: 0 | F39: 50 | H39: TNO. (2021). Phyllis2—Database for the physico-chemical composition of (treated) lignocellulosic biomass, micro- and macroalgae, various feedstocks for biogas production and biochar. https://phyllis.nl/ Department for Business, Energy & Industrial Strategy (2020). Digest of UK Energy Statistics (DUKES): calorific values
